Body Name,Body,Service Label,Service Code,Service Division Label,Service Division Code,Expenditure Category,Expenditure Code,CIPFA Detailed Expenditure Type,CIPFA Detailed Expenditure Code,Date,Transaction Number,CC 43 TBM Section,CCN 43 TBM Section, Net Amount ,Capital and Revenue,Creditor Name
Brighton & Hove City Council,http://statistics.data.gov.uk/id/local-authority/00ML,Children`s & Education Serv,BVAEDU,Child Srvcs - Othr LAC Svcs,FLX,Transfer Payments,G,Other Transfer Payments,GD,04/10/2017,PAY00999470,AVFM,Agency Placements\VFM,600,Revenue,Greenways Guest House
Brighton & Hove City Council,http://statistics.data.gov.uk/id/local-authority/00ML,Central Support and Overheads,BVACEN,Support Services (SSC),PPT,Supplies and Services,E,Miscellaneous Expenses,EM,04/10/2017,PAY00999473,BIPR,Bulk Insurance Premia,1641.25,Revenue,DWF LLP
Brighton & Hove City Council,http://statistics.data.gov.uk/id/local-authority/00ML,Housing General Fund,BVAHOG,Homelessness,HML,Third Party Payments,F,Other Establishments,FH,04/10/2017,PAY00999474,TAAS,Temp Accom and Allocations,743,Revenue,Payment to Individual
Brighton & Hove City Council,http://statistics.data.gov.uk/id/local-authority/00ML,Housing General Fund,BVAHOG,Homelessness,HML,Premises Related,C,Rents Payable,CC,04/10/2017,PAY00999475,TAAS,Temp Accom and Allocations,1100,Revenue,Edmonds Letting
Brighton & Hove City Council,http://statistics.data.gov.uk/id/local-authority/00ML,Housing General Fund,BVAHOG,Homelessness,HML,Premises Related,C,Rents Payable,CC,04/10/2017,PAY00999476,TAAS,Temp Accom and Allocations,1100,Revenue,Payment to Individual
Brighton & Hove City Council,http://statistics.data.gov.uk/id/local-authority/00ML,Housing General Fund,BVAHOG,Homelessness,HML,Supplies and Services,E,Services,EF,04/10/2017,PAY00999480,TAAS,Temp Accom and Allocations,742,Revenue,Hove Wardley Company Ltd
Brighton & Hove City Council,http://statistics.data.gov.uk/id/local-authority/00ML,Adult Social Care,BVASOC,ASC Physical Support,PHY,Customer n Client Receipts,M,Fees n Charges,MB,04/10/2017,PAY00999481,PHYS,Physical Support,-3569.94,Revenue,Payment to Individual
Brighton & Hove City Council,http://statistics.data.gov.uk/id/local-authority/00ML,Adult Social Care,BVASOC,ASC Physical Support,PHY,Third Party Payments,F,Other Establishments,FH,04/10/2017,PAY00999481,PHYS,Physical Support,5242.29,Revenue,Payment to Individual
Brighton & Hove City Council,http://statistics.data.gov.uk/id/local-authority/00ML,Adult Social Care,BVASOC,S Svcs Other Adult Services,ADT,Indirect Employees,B,Training,BM,04/10/2017,PAY00999483,ORGD,Organisational Development,2899,Revenue,The Tavistock & Portman NHS Trust
Brighton & Hove City Council,http://statistics.data.gov.uk/id/local-authority/00ML,Housing Revenue Account,BVAHOU,Hsing Management - HRA,HGM,Supplies and Services,E,Miscellaneous Expenses,EM,04/10/2017,PAY00999484,HTEN,Tenancy Services,390.41,Revenue,Lancing Carpet Planners/Kemp Town Flooring Company
Brighton & Hove City Council,http://statistics.data.gov.uk/id/local-authority/00ML,Adult Social Care,BVASOC,ASC Learning Disabilities,ALD,Supplies and Services,E,Equip't Furniture n Materials,EA,04/10/2017,PAY00999485,LDSU,Supported Employment,3750,Revenue,Helping Hand Company (Ledbury) Ltd
Brighton & Hove City Council,http://statistics.data.gov.uk/id/local-authority/00ML,Children`s & Education Serv,BVAEDU,Ed EY PVI,ENP,Supplies and Services,E,Grants n Subscriptions,EK,04/10/2017,PAY00999486,EYRS,Early Years,470,Revenue,Dorothy Stringer Playgroup
Brighton & Hove City Council,http://statistics.data.gov.uk/id/local-authority/00ML,Adult Social Care,BVASOC,ASC Learning Disabilities,ALD,Premises Related,C,Cleaning n Domestic Supps,CH,04/10/2017,PAY00999487,LDAS,Adults LD Accomodation Service,3.59,Revenue,The Imprest Holder
Brighton & Hove City Council,http://statistics.data.gov.uk/id/local-authority/00ML,Adult Social Care,BVASOC,ASC Learning Disabilities,ALD,Supplies and Services,E,Catering,EB,04/10/2017,PAY00999487,LDAS,Adults LD Accomodation Service,905.98,Revenue,The Imprest Holder
Brighton & Hove City Council,http://statistics.data.gov.uk/id/local-authority/00ML,Adult Social Care,BVASOC,ASC Learning Disabilities,ALD,Supplies and Services,E,Equip't Furniture n Materials,EA,04/10/2017,PAY00999487,LDAS,Adults LD Accomodation Service,60.77,Revenue,The Imprest Holder
Brighton & Hove City Council,http://statistics.data.gov.uk/id/local-authority/00ML,Adult Social Care,BVASOC,ASC Learning Disabilities,ALD,Supplies and Services,E,Print Stat & Gen Office Exps,ED,04/10/2017,PAY00999487,LDAS,Adults LD Accomodation Service,11.67,Revenue,The Imprest Holder
Brighton & Hove City Council,http://statistics.data.gov.uk/id/local-authority/00ML,Adult Social Care,BVASOC,ASC Learning Disabilities,ALD,Transport Related,D,Public Transport,DD,04/10/2017,PAY00999487,LDAS,Adults LD Accomodation Service,46.55,Revenue,The Imprest Holder
Brighton & Hove City Council,http://statistics.data.gov.uk/id/local-authority/00ML,Children`s & Education Serv,BVAEDU,Ed EY PVI,ENP,Supplies and Services,E,Grants n Subscriptions,EK,04/10/2017,PAY00999488,EYRS,Early Years,321,Revenue,Little Ducklings Pre-School
Brighton & Hove City Council,http://statistics.data.gov.uk/id/local-authority/00ML,Cultural and Related Serv,BVACUL,Tourism,TRM,Supplies and Services,E,Miscellaneous Expenses,EM,04/10/2017,PAY00999490,TOMA,Tourism and Marketing,5906.25,Revenue,Centaur Communications Ltd 
Brighton & Hove City Council,http://statistics.data.gov.uk/id/local-authority/00ML,Adult Social Care,BVASOC,ASC Learning Disabilities,ALD,Third Party Payments,F,Other Establishments,FH,04/10/2017,PAY00999492,LDIS,Adults LD Community Care,-1183.81,Revenue,Southdown Housing Association
Brighton & Hove City Council,http://statistics.data.gov.uk/id/local-authority/00ML,Housing General Fund,BVAHOG,Hsing Welfare,HGW,Transfer Payments,G,Supporting People,GF,04/10/2017,PAY00999492,CONT,Contracts,55359.84,Revenue,Southdown Housing Association
Brighton & Hove City Council,http://statistics.data.gov.uk/id/local-authority/00ML,Housing Revenue Account,BVAHOU,Hsing Management - HRA,HGM,Premises Related,C,Repair Maint n Alterations,CA,04/10/2017,PAY00999493,HPAI,Property & Investment,15272.62,Revenue,Knightguard Security
Brighton & Hove City Council,http://statistics.data.gov.uk/id/local-authority/00ML,Non I&E,BVANON,Cap - Housing Services - HRA,4HR,New Construction n Conversion,PB,New Construction n Conversion,PBL5,04/10/2017,PAY00999493,HPAI,Property & Investment,14223.25,Capital,Knightguard Security
Brighton & Hove City Council,http://statistics.data.gov.uk/id/local-authority/00ML,Non-BHC Organisations,BVANON,Trusts,TRT,Supplies and Services,E,Miscellaneous Expenses,EM,04/10/2017,PAY00999494,NBHC,Non Council,500,Revenue,Honeybourne House Ltd
Brighton & Hove City Council,http://statistics.data.gov.uk/id/local-authority/00ML,Children`s & Education Serv,BVAEDU,Ed EY PVI,ENP,Supplies and Services,E,Grants n Subscriptions,EK,04/10/2017,PAY00999495,EYRS,Early Years,463,Revenue,Sunshine Day Nursery (Brighton)
Brighton & Hove City Council,http://statistics.data.gov.uk/id/local-authority/00ML,Environment & Regulatory Serv,BVAERS,Management Services (DEC),MGT,Transport Related,D,Direct Transport Costs,DA,04/10/2017,PAY00999496,CICL,City Clean,462.36,Revenue,BTR Brakes (Sussex) Ltd
Brighton & Hove City Council,http://statistics.data.gov.uk/id/local-authority/00ML,Adult Social Care,BVASOC,ASC Learning Disabilities,ALD,Customer n Client Receipts,M,Fees n Charges,MB,04/10/2017,PAY00999498,LDIS,Adults LD Community Care,-384,Revenue,Heritage Care
Brighton & Hove City Council,http://statistics.data.gov.uk/id/local-authority/00ML,Adult Social Care,BVASOC,ASC Learning Disabilities,ALD,Third Party Payments,F,Other Establishments,FH,04/10/2017,PAY00999498,LDIS,Adults LD Community Care,10975.35,Revenue,Heritage Care
Brighton & Hove City Council,http://statistics.data.gov.uk/id/local-authority/00ML,Adult Social Care,BVASOC,ASC Learning Disabilities,ALD,Customer n Client Receipts,M,Fees n Charges,MB,04/10/2017,PAY00999500,LDIS,Adults LD Community Care,-936,Revenue,The Regard Partnership Ltd
Brighton & Hove City Council,http://statistics.data.gov.uk/id/local-authority/00ML,Adult Social Care,BVASOC,ASC Learning Disabilities,ALD,Third Party Payments,F,Other Establishments,FH,04/10/2017,PAY00999500,LDIS,Adults LD Community Care,14452.48,Revenue,The Regard Partnership Ltd
Brighton & Hove City Council,http://statistics.data.gov.uk/id/local-authority/00ML,Central Services to the Public,BVACEN,Elections,ELE,Premises Related,C,Energy Costs,CB,04/10/2017,PAY00999501,ELEC,Elections,25.62,Revenue,Southern Electric
Brighton & Hove City Council,http://statistics.data.gov.uk/id/local-authority/00ML,Central Support and Overheads,BVACEN,Holding Accounts,PPH,Premises Related,C,Energy Costs,CB,04/10/2017,PAY00999501,PROP,Property and Design,712.23,Revenue,Southern Electric
Brighton & Hove City Council,http://statistics.data.gov.uk/id/local-authority/00ML,Central Support and Overheads,BVACEN,Support Services (SSC),PPT,Premises Related,C,Energy Costs,CB,04/10/2017,PAY00999501,PROP,Property and Design,21487.84,Revenue,Southern Electric
Brighton & Hove City Council,http://statistics.data.gov.uk/id/local-authority/00ML,Central Support and Overheads,BVACEN,Trading Services,TRD,Premises Related,C,Energy Costs,CB,04/10/2017,PAY00999501,PROP,Property and Design,258.03,Revenue,Southern Electric
Brighton & Hove City Council,http://statistics.data.gov.uk/id/local-authority/00ML,Children`s & Education Serv,BVAEDU,Ed Nursery Schools,EAA,Premises Related,C,Energy Costs,CB,04/10/2017,PAY00999501,SCHL,Schools,371.5,Revenue,Southern Electric
Brighton & Hove City Council,http://statistics.data.gov.uk/id/local-authority/00ML,Children`s & Education Serv,BVAEDU,Ed Primary Schools,EHH,Premises Related,C,Energy Costs,CB,04/10/2017,PAY00999501,SCHL,Schools,2867.53,Revenue,Southern Electric
Brighton & Hove City Council,http://statistics.data.gov.uk/id/local-authority/00ML,Children`s & Education Serv,BVAEDU,Ed Secondary Ed,EJE,Premises Related,C,Energy Costs,CB,04/10/2017,PAY00999501,SCHL,Schools,487.25,Revenue,Southern Electric
Brighton & Hove City Council,http://statistics.data.gov.uk/id/local-authority/00ML,Children`s & Education Serv,BVAEDU,Ed Secondary Schools,EJJ,Premises Related,C,Energy Costs,CB,04/10/2017,PAY00999501,SCHL,Schools,1037.33,Revenue,Southern Electric
Brighton & Hove City Council,http://statistics.data.gov.uk/id/local-authority/00ML,Children`s & Education Serv,BVAEDU,Ed Special Schools,EKK,Premises Related,C,Energy Costs,CB,04/10/2017,PAY00999501,SCHL,Schools,1048.8,Revenue,Southern Electric
Brighton & Hove City Council,http://statistics.data.gov.uk/id/local-authority/00ML,Cultural and Related Serv,BVACUL,Culture and Heritage,CHG,Premises Related,C,Energy Costs,CB,04/10/2017,PAY00999501,RPMU,Royal Pavilion and Museums,340,Revenue,Southern Electric
Brighton & Hove City Council,http://statistics.data.gov.uk/id/local-authority/00ML,Cultural and Related Serv,BVACUL,Culture and Heritage,CHG,Supplies and Services,E,Miscellaneous Expenses,EM,04/10/2017,PAY00999501,SPLE,Sport and Leisure,483.14,Revenue,Southern Electric
Brighton & Hove City Council,http://statistics.data.gov.uk/id/local-authority/00ML,Cultural and Related Serv,BVACUL,Recreation and Sport,REC,Premises Related,C,Energy Costs,CB,04/10/2017,PAY00999501,SPLE,Sport and Leisure,6347.94,Revenue,Southern Electric
Brighton & Hove City Council,http://statistics.data.gov.uk/id/local-authority/00ML,Environment & Regulatory Serv,BVAERS,Environmental Health,EVH,Premises Related,C,Energy Costs,CB,04/10/2017,PAY00999501,CICL,City Clean,1215.1,Revenue,Southern Electric
Brighton & Hove City Council,http://statistics.data.gov.uk/id/local-authority/00ML,Highways and Transportation,BVAHRT,Highways and Roads - Mntnce,HRM,Premises Related,C,Energy Costs,CB,04/10/2017,PAY00999501,HIGH,Traffic Management,701.99,Revenue,Southern Electric
Brighton & Hove City Council,http://statistics.data.gov.uk/id/local-authority/00ML,Highways and Transportation,BVAHRT,Parking Services,PRK,Premises Related,C,Energy Costs,CB,04/10/2017,PAY00999501,PARK,Parking Services,703.61,Revenue,Southern Electric
Brighton & Hove City Council,http://statistics.data.gov.uk/id/local-authority/00ML,Highways and Transportation,BVAHRT,Transport Plan Policy Strategy,TPP,Premises Related,C,Energy Costs,CB,04/10/2017,PAY00999501,TPRS,Transport Projects,43.72,Revenue,Southern Electric
Brighton & Hove City Council,http://statistics.data.gov.uk/id/local-authority/00ML,Housing General Fund,BVAHOG,Homelessness,HML,Premises Related,C,Energy Costs,CB,04/10/2017,PAY00999501,ASSA,Hostel Accommodation,2478.7,Revenue,Southern Electric
Brighton & Hove City Council,http://statistics.data.gov.uk/id/local-authority/00ML,Housing General Fund,BVAHOG,Homelessness,HML,Premises Related,C,Energy Costs,CB,04/10/2017,PAY00999501,SSHS,Seaside Homes (BHSCH),25.84,Revenue,Southern Electric
Brighton & Hove City Council,http://statistics.data.gov.uk/id/local-authority/00ML,Housing General Fund,BVAHOG,Homelessness,HML,Premises Related,C,Energy Costs,CB,04/10/2017,PAY00999501,TRAV,Travellers,39.79,Revenue,Southern Electric
Brighton & Hove City Council,http://statistics.data.gov.uk/id/local-authority/00ML,Housing Revenue Account,BVAHOU,Hsing Management - HRA,HGM,Premises Related,C,Energy Costs,CB,04/10/2017,PAY00999501,HIII,Income Involvement Improvement,379.54,Revenue,Southern Electric
Brighton & Hove City Council,http://statistics.data.gov.uk/id/local-authority/00ML,Housing Revenue Account,BVAHOU,Hsing Management - HRA,HGM,Premises Related,C,Energy Costs,CB,04/10/2017,PAY00999501,HTEN,Tenancy Services,21908.81,Revenue,Southern Electric
Brighton & Hove City Council,http://statistics.data.gov.uk/id/local-authority/00ML,Planning and Development,BVAPLA,Economic Development,ECD,Premises Related,C,Energy Costs,CB,04/10/2017,PAY00999501,PROP,Property and Design,244.94,Revenue,Southern Electric
Brighton & Hove City Council,http://statistics.data.gov.uk/id/local-authority/00ML,Adult Social Care,BVASOC,ASC Mental Health Support,MHP,Third Party Payments,F,Other Establishments,FH,04/10/2017,PAY00999502,MENH,Mental Health Support,1008.92,Revenue,NAS Services Ltd
Brighton & Hove City Council,http://statistics.data.gov.uk/id/local-authority/00ML,Adult Social Care,BVASOC,ASC Learning Disabilities,ALD,Third Party Payments,F,Other Establishments,FH,04/10/2017,PAY00999505,LDIS,Adults LD Community Care,467.62,Revenue,Hanover Care Ltd
Brighton & Hove City Council,http://statistics.data.gov.uk/id/local-authority/00ML,Adult Social Care,BVASOC,ASC Physical Support,PHY,Third Party Payments,F,Other Establishments,FH,04/10/2017,PAY00999505,PHYS,Physical Support,2042.25,Revenue,Hanover Care Ltd
Brighton & Hove City Council,http://statistics.data.gov.uk/id/local-authority/00ML,Adult Social Care,BVASOC,ASC Memory Cognition Support,MEM,Supplies and Services,E,Communications n Computing,EH,04/10/2017,PAY00999507,RCOP,Resource Centres Older People,52,Revenue,Virgin Media Business Ltd
Brighton & Hove City Council,http://statistics.data.gov.uk/id/local-authority/00ML,Central Support and Overheads,BVACEN,Support Services (SSC),PPT,Premises Related,C,Repair Maint n Alterations,CA,04/10/2017,PAY00999507,PROP,Property and Design,26,Revenue,Virgin Media Business Ltd
Brighton & Hove City Council,http://statistics.data.gov.uk/id/local-authority/00ML,Central Support and Overheads,BVACEN,Support Services (SSC),PPT,Supplies and Services,E,Communications n Computing,EH,04/10/2017,PAY00999507,ICTA,ICT,3125.56,Revenue,Virgin Media Business Ltd
Brighton & Hove City Council,http://statistics.data.gov.uk/id/local-authority/00ML,Central Support and Overheads,BVACEN,Support Services (SSC),PPT,Supplies and Services,E,Communications n Computing,EH,04/10/2017,PAY00999507,PROP,Property and Design,130,Revenue,Virgin Media Business Ltd
Brighton & Hove City Council,http://statistics.data.gov.uk/id/local-authority/00ML,Children`s & Education Serv,BVAEDU,Ed EY Central,EAE,Supplies and Services,E,Communications n Computing,EH,04/10/2017,PAY00999507,EYRS,Early Years,22,Revenue,Virgin Media Business Ltd
Brighton & Hove City Council,http://statistics.data.gov.uk/id/local-authority/00ML,Housing Revenue Account,BVAHOU,Hsing Management - HRA,HGM,Supplies and Services,E,Communications n Computing,EH,04/10/2017,PAY00999507,HPAI,Property & Investment,709.78,Revenue,Virgin Media Business Ltd
Brighton & Hove City Council,http://statistics.data.gov.uk/id/local-authority/00ML,Housing General Fund,BVAHOG,Homelessness,HML,Premises Related,C,Rents Payable,CC,04/10/2017,PAY00999509,TAAS,Temp Accom and Allocations,900,Revenue,Payment to Individual
Brighton & Hove City Council,http://statistics.data.gov.uk/id/local-authority/00ML,Adult Social Care,BVASOC,ASC Learning Disabilities,ALD,Third Party Payments,F,Other Establishments,FH,04/10/2017,PAY00999512,LDIS,Adults LD Community Care,1446.12,Revenue,Sanctuary Carr-Gomm
Brighton & Hove City Council,http://statistics.data.gov.uk/id/local-authority/00ML,Central Support and Overheads,BVACEN,Holding Accounts,PPH,Supplies and Services,E,Communications n Computing,EH,04/10/2017,PAY00999514,PROP,Property and Design,1625.1,Revenue,Royal Mail Group Ltd
Brighton & Hove City Council,http://statistics.data.gov.uk/id/local-authority/00ML,Cultural and Related Serv,BVACUL,Tourism,TRM,Customer n Client Receipts,M,Fees n Charges,MB,04/10/2017,PAY00999515,TOMA,Tourism and Marketing,212.62,Revenue,Gulliver`s Hotel
Brighton & Hove City Council,http://statistics.data.gov.uk/id/local-authority/00ML,Housing General Fund,BVAHOG,Homelessness,HML,Premises Related,C,Rents Payable,CC,04/10/2017,PAY00999516,TAAS,Temp Accom and Allocations,2425,Revenue,Payment to Individual
Brighton & Hove City Council,http://statistics.data.gov.uk/id/local-authority/00ML,Adult Social Care,BVASOC,Social Care Activities,ACM,Third Party Payments,F,Other Establishments,FH,04/10/2017,PAY00999517,ASIT,Assessment and SIT,352,Revenue,Sussex Interpreting Services
Brighton & Hove City Council,http://statistics.data.gov.uk/id/local-authority/00ML,Central Support and Overheads,BVACEN,Support Services (SSC),PPT,Premises Related,C,Repair Maint n Alterations,CA,04/10/2017,PAY00999518,PROP,Property and Design,204,Revenue,Blockbusters Contracts Ltd
Brighton & Hove City Council,http://statistics.data.gov.uk/id/local-authority/00ML,Non I&E,BVANON,CAP Education Services,4ED,New Construction n Conversion,PB,New Construction n Conversion,PBL5,04/10/2017,PAY00999518,OEDS,Other Education Support,32921,Capital,Blockbusters Contracts Ltd
Brighton & Hove City Council,http://statistics.data.gov.uk/id/local-authority/00ML,Cultural and Related Serv,BVACUL,Culture and Heritage,CHG,Supplies and Services,E,Equip't Furniture n Materials,EA,04/10/2017,PAY00999520,RPMU,Royal Pavilion and Museums,793,Revenue,Hardings Bar & Catering Services Ltd
Brighton & Hove City Council,http://statistics.data.gov.uk/id/local-authority/00ML,Housing Revenue Account,BVAHOU,Hsing Management - HRA,HGM,Indirect Employees,B,Training,BM,04/10/2017,PAY00999522,HIII,Income Involvement Improvement,348,Revenue,The White Paper Conference Co Ltd
Brighton & Hove City Council,http://statistics.data.gov.uk/id/local-authority/00ML,Children`s & Education Serv,BVAEDU,Ed EY Central,EAE,Supplies and Services,E,Grants n Subscriptions,EK,04/10/2017,PAY00999523,EYRS,Early Years,1986.96,Revenue,MOSAIC
Brighton & Hove City Council,http://statistics.data.gov.uk/id/local-authority/00ML,Central Services to the Public,BVACEN,Elections,ELE,Supplies and Services,E,Communications n Computing,EH,04/10/2017,PAY00999524,ELEC,Elections,31438.71,Revenue,Electoral Reform Services Ltd
Brighton & Hove City Council,http://statistics.data.gov.uk/id/local-authority/00ML,Central Services to the Public,BVACEN,Elections,ELE,Supplies and Services,E,Print Stat & Gen Office Exps,ED,04/10/2017,PAY00999524,ELEC,Elections,12653.54,Revenue,Electoral Reform Services Ltd
Brighton & Hove City Council,http://statistics.data.gov.uk/id/local-authority/00ML,Environment & Regulatory Serv,BVAERS,Management Services (DEC),MGT,Premises Related,C,Repair Maint n Alterations,CA,04/10/2017,PAY00999525,CICL,City Clean,347.68,Revenue,Safetykleen UK Ltd
Brighton & Hove City Council,http://statistics.data.gov.uk/id/local-authority/00ML,Housing Revenue Account,BVAHOU,Hsing Management - HRA,HGM,Supplies and Services,E,Miscellaneous Expenses,EM,04/10/2017,PAY00999526,HTEN,Tenancy Services,670,Revenue,Greenacre Recycling Ltd
Brighton & Hove City Council,http://statistics.data.gov.uk/id/local-authority/00ML,Environment & Regulatory Serv,BVAERS,Management Services (DEC),MGT,Transport Related,D,Direct Transport Costs,DA,04/10/2017,PAY00999527,CICL,City Clean,600.61,Revenue,Dennis Eagle Ltd
Brighton & Hove City Council,http://statistics.data.gov.uk/id/local-authority/00ML,Children`s & Education Serv,BVAEDU,Child Srvcs - Othr LAC Svcs,FLX,Transfer Payments,G,Other Transfer Payments,GD,04/10/2017,PAY00999529,AVFM,Agency Placements\VFM,1612.6,Revenue,YMCA Downslink Group
Brighton & Hove City Council,http://statistics.data.gov.uk/id/local-authority/00ML,Children`s & Education Serv,BVAEDU,Ed Ed Other Other,ENF,Third Party Payments,F,Other Establishments,FH,04/10/2017,PAY00999529,VSCH,Virtual School,2112,Revenue,YMCA Downslink Group
Brighton & Hove City Council,http://statistics.data.gov.uk/id/local-authority/00ML,Children`s & Education Serv,BVAEDU,Ed EY PVI,ENP,Supplies and Services,E,Grants n Subscriptions,EK,04/10/2017,PAY00999531,EYRS,Early Years,463,Revenue,Honeycroft
Brighton & Hove City Council,http://statistics.data.gov.uk/id/local-authority/00ML,Environment & Regulatory Serv,BVAERS,Management Services (DEC),MGT,Transport Related,D,Direct Transport Costs,DA,04/10/2017,PAY00999533,CICL,City Clean,255.15,Revenue,Barnes DAF
Brighton & Hove City Council,http://statistics.data.gov.uk/id/local-authority/00ML,Central Support and Overheads,BVACEN,Support Services (SSC),PPT,Premises Related,C,Repair Maint n Alterations,CA,04/10/2017,PAY00999535,PROP,Property and Design,1243.84,Revenue,Allsop & Francis Ltd
Brighton & Hove City Council,http://statistics.data.gov.uk/id/local-authority/00ML,Central Support and Overheads,BVACEN,Holding Accounts,PPH,Premises Related,C,Repair Maint n Alterations,CA,04/10/2017,PAY00999536,PROP,Property and Design,1153,Revenue,FJS Building & Property Maintenance Ltd
Brighton & Hove City Council,http://statistics.data.gov.uk/id/local-authority/00ML,Central Support and Overheads,BVACEN,Support Services (SSC),PPT,Premises Related,C,Repair Maint n Alterations,CA,04/10/2017,PAY00999536,PROP,Property and Design,5927.1,Revenue,FJS Building & Property Maintenance Ltd
Brighton & Hove City Council,http://statistics.data.gov.uk/id/local-authority/00ML,Housing General Fund,BVAHOG,Homelessness,HML,Supplies and Services,E,Services,EF,04/10/2017,PAY00999538,TAAS,Temp Accom and Allocations,2436,Revenue,Solutions Accommodation Providers Ltd
Brighton & Hove City Council,http://statistics.data.gov.uk/id/local-authority/00ML,Children`s & Education Serv,BVAEDU,Ed EY PVI,ENP,Supplies and Services,E,Grants n Subscriptions,EK,04/10/2017,PAY00999539,EYRS,Early Years,641,Revenue,The Ark Pre-School
Brighton & Hove City Council,http://statistics.data.gov.uk/id/local-authority/00ML,Children`s & Education Serv,BVAEDU,Ed EY PVI,ENP,Supplies and Services,E,Grants n Subscriptions,EK,04/10/2017,PAY00999540,EYRS,Early Years,1575,Revenue,Patcham Village Pre-School
Brighton & Hove City Council,http://statistics.data.gov.uk/id/local-authority/00ML,Children`s & Education Serv,BVAEDU,Ed EY PVI,ENP,Supplies and Services,E,Grants n Subscriptions,EK,04/10/2017,PAY00999541,EYRS,Early Years,371,Revenue,Robins Nursery School Ltd
Brighton & Hove City Council,http://statistics.data.gov.uk/id/local-authority/00ML,Adult Social Care,BVASOC,ASC Physical Support,PHY,Customer n Client Receipts,M,Fees n Charges,MB,04/10/2017,PAY00999543,PHYS,Physical Support,-2748.17,Revenue,Evans Care Ltd
Brighton & Hove City Council,http://statistics.data.gov.uk/id/local-authority/00ML,Adult Social Care,BVASOC,ASC Physical Support,PHY,Third Party Payments,F,Other Establishments,FH,04/10/2017,PAY00999543,PHYS,Physical Support,13600,Revenue,Evans Care Ltd
Brighton & Hove City Council,http://statistics.data.gov.uk/id/local-authority/00ML,Children`s & Education Serv,BVAEDU,Ed EY PVI,ENP,Supplies and Services,E,Grants n Subscriptions,EK,04/10/2017,PAY00999544,EYRS,Early Years,499,Revenue,Footsteps Day Nursery (Portslade)
Brighton & Hove City Council,http://statistics.data.gov.uk/id/local-authority/00ML,Children`s & Education Serv,BVAEDU,Child Srvcs - Other Fam Supp,FFX,Transfer Payments,G,Other Transfer Payments,GD,04/10/2017,PAY00999545,FAMP,Families\Prevention,1150,Revenue,Payment to Individual
Brighton & Hove City Council,http://statistics.data.gov.uk/id/local-authority/00ML,Adult Social Care,BVASOC,ASC Memory Cognition Support,MEM,Third Party Payments,F,Other Establishments,FH,04/10/2017,PAY00999546,COGN,Memory Cognition Support,60.48,Revenue,Prime Care Community Services Ltd
Brighton & Hove City Council,http://statistics.data.gov.uk/id/local-authority/00ML,Adult Social Care,BVASOC,ASC Mental Health Support,MHP,Third Party Payments,F,Other Establishments,FH,04/10/2017,PAY00999546,MENH,Mental Health Support,30.67,Revenue,Prime Care Community Services Ltd
Brighton & Hove City Council,http://statistics.data.gov.uk/id/local-authority/00ML,Adult Social Care,BVASOC,ASC Physical Support,PHY,Third Party Payments,F,Other Establishments,FH,04/10/2017,PAY00999546,PHYS,Physical Support,417.21,Revenue,Prime Care Community Services Ltd
Brighton & Hove City Council,http://statistics.data.gov.uk/id/local-authority/00ML,Adult Social Care,BVASOC,ASC Memory Cognition Support,MEM,Supplies and Services,E,Catering,EB,04/10/2017,PAY00999547,RCOP,Resource Centres Older People,239.79,Revenue,K D Catering Butchers Ltd
Brighton & Hove City Council,http://statistics.data.gov.uk/id/local-authority/00ML,Adult Social Care,BVASOC,ASC Physical Support,PHY,Supplies and Services,E,Catering,EB,04/10/2017,PAY00999547,RCOP,Resource Centres Older People,321.11,Revenue,K D Catering Butchers Ltd
Brighton & Hove City Council,http://statistics.data.gov.uk/id/local-authority/00ML,Environment & Regulatory Serv,BVAERS,Management Services (DEC),MGT,Transport Related,D,Direct Transport Costs,DA,04/10/2017,PAY00999548,CICL,City Clean,1547.36,Revenue,Haynes Bros Ltd
Brighton & Hove City Council,http://statistics.data.gov.uk/id/local-authority/00ML,Adult Social Care,BVASOC,ASC Mental Health Support,MHP,Customer n Client Receipts,M,Fees n Charges,MB,04/10/2017,PAY00999549,MENH,Mental Health Support,-104,Revenue,Sussex Oakleaf Housing Association
Brighton & Hove City Council,http://statistics.data.gov.uk/id/local-authority/00ML,Adult Social Care,BVASOC,ASC Mental Health Support,MHP,Third Party Payments,F,Other Establishments,FH,04/10/2017,PAY00999549,MENH,Mental Health Support,1137.15,Revenue,Sussex Oakleaf Housing Association
Brighton & Hove City Council,http://statistics.data.gov.uk/id/local-authority/00ML,Adult Social Care,BVASOC,ASC Physical Support,PHY,Customer n Client Receipts,M,Fees n Charges,MB,04/10/2017,PAY00999550,PHYS,Physical Support,-344,Revenue,Headway Hurstwood Park
Brighton & Hove City Council,http://statistics.data.gov.uk/id/local-authority/00ML,Adult Social Care,BVASOC,ASC Physical Support,PHY,Third Party Payments,F,Other Establishments,FH,04/10/2017,PAY00999550,PHYS,Physical Support,2102,Revenue,Headway Hurstwood Park
Brighton & Hove City Council,http://statistics.data.gov.uk/id/local-authority/00ML,Housing General Fund,BVAHOG,Homelessness,HML,Premises Related,C,Rents Payable,CC,04/10/2017,PAY00999551,TAAS,Temp Accom and Allocations,2212.74,Revenue,Sanctuary Housing Association
Brighton & Hove City Council,http://statistics.data.gov.uk/id/local-authority/00ML,Housing General Fund,BVAHOG,Homelessness,HML,Premises Related,C,Rents Payable,CC,04/10/2017,PAY00999552,TAAS,Temp Accom and Allocations,1050,Revenue,KEM Property Services Ltd
Brighton & Hove City Council,http://statistics.data.gov.uk/id/local-authority/00ML,Cultural and Related Serv,BVACUL,Open Spaces,PEN,Supplies and Services,E,Equip't Furniture n Materials,EA,04/10/2017,PAY00999553,CIPK,City Parks,312.48,Revenue,GB Sport & Leisure UK Ltd
Brighton & Hove City Council,http://statistics.data.gov.uk/id/local-authority/00ML,Adult Social Care,BVASOC,ASC Learning Disabilities,ALD,Direct Employees,A,Salaries,AA,04/10/2017,PAY00999554,LDAS,Adults LD Accomodation Service,8707.65,Revenue,Guidant Group
Brighton & Hove City Council,http://statistics.data.gov.uk/id/local-authority/00ML,Adult Social Care,BVASOC,ASC Learning Disabilities,ALD,Direct Employees,A,Salaries,AA,04/10/2017,PAY00999554,RESP,Adults Respite Services,1179.97,Revenue,Guidant Group
Brighton & Hove City Council,http://statistics.data.gov.uk/id/local-authority/00ML,Adult Social Care,BVASOC,ASC Memory Cognition Support,MEM,Direct Employees,A,Salaries,AA,04/10/2017,PAY00999554,RCOP,Resource Centres Older People,5069.85,Revenue,Guidant Group
Brighton & Hove City Council,http://statistics.data.gov.uk/id/local-authority/00ML,Adult Social Care,BVASOC,ASC Physical Support,PHY,Direct Employees,A,Salaries,AA,04/10/2017,PAY00999554,HOME,Home Care,627.33,Revenue,Guidant Group
Brighton & Hove City Council,http://statistics.data.gov.uk/id/local-authority/00ML,Adult Social Care,BVASOC,ASC Physical Support,PHY,Direct Employees,A,Salaries,AA,04/10/2017,PAY00999554,RCOP,Resource Centres Older People,11222.14,Revenue,Guidant Group
Brighton & Hove City Council,http://statistics.data.gov.uk/id/local-authority/00ML,Adult Social Care,BVASOC,Social Care Activities,ACM,Direct Employees,A,Salaries,AA,04/10/2017,PAY00999554,ASIT,Assessment and SIT,2282.49,Revenue,Guidant Group
Brighton & Hove City Council,http://statistics.data.gov.uk/id/local-authority/00ML,Adult Social Care,BVASOC,Social Care Activities,ACM,Direct Employees,A,Salaries,AA,04/10/2017,PAY00999554,LDAE,Adults LD Assessment,1105.77,Revenue,Guidant Group
Brighton & Hove City Council,http://statistics.data.gov.uk/id/local-authority/00ML,Central Support and Overheads,BVACEN,Support Services (SSC),PPT,Direct Employees,A,Salaries,AA,04/10/2017,PAY00999554,ICTA,ICT,43017.25,Revenue,Guidant Group
Brighton & Hove City Council,http://statistics.data.gov.uk/id/local-authority/00ML,Central Support and Overheads,BVACEN,Support Services (SSC),PPT,Direct Employees,A,Salaries,AA,04/10/2017,PAY00999554,LEGS,Legal Services,872.24,Revenue,Guidant Group
Brighton & Hove City Council,http://statistics.data.gov.uk/id/local-authority/00ML,Central Support and Overheads,BVACEN,Support Services (SSC),PPT,Direct Employees,A,Salaries,AA,04/10/2017,PAY00999554,ORGD,Organisational Development,106.49,Revenue,Guidant Group
Brighton & Hove City Council,http://statistics.data.gov.uk/id/local-authority/00ML,Central Support and Overheads,BVACEN,Support Services (SSC),PPT,Direct Employees,A,Salaries,AA,04/10/2017,PAY00999554,POLI,Policy and Initiatives,595.35,Revenue,Guidant Group
Brighton & Hove City Council,http://statistics.data.gov.uk/id/local-authority/00ML,Central Support and Overheads,BVACEN,Support Services (SSC),PPT,Direct Employees,A,Salaries,AA,04/10/2017,PAY00999554,POLY,Policy,495.68,Revenue,Guidant Group
Brighton & Hove City Council,http://statistics.data.gov.uk/id/local-authority/00ML,Central Support and Overheads,BVACEN,Support Services (SSC),PPT,Direct Employees,A,Salaries,AA,04/10/2017,PAY00999554,PROP,Property and Design,1090.07,Revenue,Guidant Group
Brighton & Hove City Council,http://statistics.data.gov.uk/id/local-authority/00ML,Children`s & Education Serv,BVAEDU,Child Srvcs Com and Scl Work,FCW,Direct Employees,A,Salaries,AA,04/10/2017,PAY00999554,SOCK,Social Work,8516.9,Revenue,Guidant Group
Brighton & Hove City Council,http://statistics.data.gov.uk/id/local-authority/00ML,Children`s & Education Serv,BVAEDU,Child Srvcs Com and Scl Work,FCW,Direct Employees,A,Salaries,AA,04/10/2017,PAY00999554,SPEA,Specialist Assessment,560.11,Revenue,Guidant Group
Brighton & Hove City Council,http://statistics.data.gov.uk/id/local-authority/00ML,Children`s & Education Serv,BVAEDU,Child Srvcs - Fostering,FLF,Direct Employees,A,Salaries,AA,04/10/2017,PAY00999554,CHIC,Fostering and Adoption,846.17,Revenue,Guidant Group
Brighton & Hove City Council,http://statistics.data.gov.uk/id/local-authority/00ML,Children`s & Education Serv,BVAEDU,Child Srvcs - Other Fam Supp,FFX,Direct Employees,A,Salaries,AA,04/10/2017,PAY00999554,DISS,Childrens Disability Services,237.06,Revenue,Guidant Group
Brighton & Hove City Council,http://statistics.data.gov.uk/id/local-authority/00ML,Children`s & Education Serv,BVAEDU,Child Srvcs - Residential Svcs,FLR,Direct Employees,A,Salaries,AA,04/10/2017,PAY00999554,DISS,Childrens Disability Services,3171.41,Revenue,Guidant Group
Brighton & Hove City Council,http://statistics.data.gov.uk/id/local-authority/00ML,Children`s & Education Serv,BVAEDU,Ed Ed Other Strat Mgt,ENM,Direct Employees,A,Salaries,AA,04/10/2017,PAY00999554,DOCS,Dir Families Children Learning,413.78,Revenue,Guidant Group
Brighton & Hove City Council,http://statistics.data.gov.uk/id/local-authority/00ML,Children`s & Education Serv,BVAEDU,Ed EY Central,EAE,Direct Employees,A,Salaries,AA,04/10/2017,PAY00999554,EYRS,Early Years,792.97,Revenue,Guidant Group
Brighton & Hove City Council,http://statistics.data.gov.uk/id/local-authority/00ML,Children`s & Education Serv,BVAEDU,Ed Mgmt and Support Services,EMG,Direct Employees,A,Salaries,AA,04/10/2017,PAY00999554,INSS,Integrated Support Services,462,Revenue,Guidant Group
Brighton & Hove City Council,http://statistics.data.gov.uk/id/local-authority/00ML,Children`s & Education Serv,BVAEDU,Ed Special Ed,EKE,Direct Employees,A,Salaries,AA,04/10/2017,PAY00999554,SENS,Special Educational Needs,2812.73,Revenue,Guidant Group
Brighton & Hove City Council,http://statistics.data.gov.uk/id/local-authority/00ML,Children`s & Education Serv,BVAEDU,Management Services (DEC),MGT,Direct Employees,A,Salaries,AA,04/10/2017,PAY00999554,SOCK,Social Work,274.47,Revenue,Guidant Group
Brighton & Hove City Council,http://statistics.data.gov.uk/id/local-authority/00ML,Cultural and Related Serv,BVACUL,Culture and Heritage,CHG,Direct Employees,A,Wages,AB,04/10/2017,PAY00999554,VENU,Venues,600.12,Revenue,Guidant Group
Brighton & Hove City Council,http://statistics.data.gov.uk/id/local-authority/00ML,Cultural and Related Serv,BVACUL,Management Services (DEC),MGT,Direct Employees,A,Salaries,AA,04/10/2017,PAY00999554,CIPK,City Parks,636.11,Revenue,Guidant Group
Brighton & Hove City Council,http://statistics.data.gov.uk/id/local-authority/00ML,Cultural and Related Serv,BVACUL,Open Spaces,PEN,Direct Employees,A,Salaries,AA,04/10/2017,PAY00999554,CIPK,City Parks,3283.85,Revenue,Guidant Group
Brighton & Hove City Council,http://statistics.data.gov.uk/id/local-authority/00ML,Environment & Regulatory Serv,BVAERS,Cem Crem and Mortuary Services,CCM,Direct Employees,A,Salaries,AA,04/10/2017,PAY00999554,BERE,Bereavement,629.91,Revenue,Guidant Group
Brighton & Hove City Council,http://statistics.data.gov.uk/id/local-authority/00ML,Environment & Regulatory Serv,BVAERS,Environmental Health,EVH,Direct Employees,A,Salaries,AA,04/10/2017,PAY00999554,PUPO,Public Protection,926.19,Revenue,Guidant Group
Brighton & Hove City Council,http://statistics.data.gov.uk/id/local-authority/00ML,Environment & Regulatory Serv,BVAERS,Management Services (DEC),MGT,Direct Employees,A,Salaries,AA,04/10/2017,PAY00999554,CICL,City Clean,887.2,Revenue,Guidant Group
Brighton & Hove City Council,http://statistics.data.gov.uk/id/local-authority/00ML,Environment & Regulatory Serv,BVAERS,Street Cleansing,CLE,Direct Employees,A,Salaries,AA,04/10/2017,PAY00999554,CICL,City Clean,4087.95,Revenue,Guidant Group
Brighton & Hove City Council,http://statistics.data.gov.uk/id/local-authority/00ML,Environment & Regulatory Serv,BVAERS,Waste Management,WMT,Direct Employees,A,Salaries,AA,04/10/2017,PAY00999554,CICL,City Clean,9366.07,Revenue,Guidant Group
Brighton & Hove City Council,http://statistics.data.gov.uk/id/local-authority/00ML,Highways and Transportation,BVAHRT,Highways and Roads - Mntnce,HRM,Direct Employees,A,Salaries,AA,04/10/2017,PAY00999554,HWEN,Highways Assets and Maint,558.1,Revenue,Guidant Group
Brighton & Hove City Council,http://statistics.data.gov.uk/id/local-authority/00ML,Highways and Transportation,BVAHRT,Parking Services,PRK,Direct Employees,A,Salaries,AA,04/10/2017,PAY00999554,PARK,Parking Services,1207.24,Revenue,Guidant Group
Brighton & Hove City Council,http://statistics.data.gov.uk/id/local-authority/00ML,Housing General Fund,BVAHOG,Homelessness,HML,Direct Employees,A,Salaries,AA,04/10/2017,PAY00999554,ASSA,Hostel Accommodation,2864.96,Revenue,Guidant Group
Brighton & Hove City Council,http://statistics.data.gov.uk/id/local-authority/00ML,Housing General Fund,BVAHOG,Homelessness,HML,Direct Employees,A,Salaries,AA,04/10/2017,PAY00999554,TAAS,Temp Accom and Allocations,1739.9,Revenue,Guidant Group
Brighton & Hove City Council,http://statistics.data.gov.uk/id/local-authority/00ML,Housing General Fund,BVAHOG,Homelessness,HML,Direct Employees,A,Salaries,AA,04/10/2017,PAY00999554,TRAV,Travellers,387.77,Revenue,Guidant Group
Brighton & Hove City Council,http://statistics.data.gov.uk/id/local-authority/00ML,Housing General Fund,BVAHOG,Hsing Strat Advice and RSLs,HGR,Direct Employees,A,Salaries,AA,04/10/2017,PAY00999554,HMVE,Homemove,971.96,Revenue,Guidant Group
Brighton & Hove City Council,http://statistics.data.gov.uk/id/local-authority/00ML,Housing Revenue Account,BVAHOU,Hsing Management - HRA,HGM,Direct Employees,A,Salaries,AA,04/10/2017,PAY00999554,HIII,Income Involvement Improvement,2873.11,Revenue,Guidant Group
Brighton & Hove City Council,http://statistics.data.gov.uk/id/local-authority/00ML,Housing Revenue Account,BVAHOU,Hsing Management - HRA,HGM,Direct Employees,A,Salaries,AA,04/10/2017,PAY00999554,HPAI,Property & Investment,1531.09,Revenue,Guidant Group
Brighton & Hove City Council,http://statistics.data.gov.uk/id/local-authority/00ML,Housing Revenue Account,BVAHOU,Hsing Management - HRA,HGM,Direct Employees,A,Salaries,AA,04/10/2017,PAY00999554,HSUP,Housing Support,1307.98,Revenue,Guidant Group
Brighton & Hove City Council,http://statistics.data.gov.uk/id/local-authority/00ML,Housing Revenue Account,BVAHOU,Hsing Management - HRA,HGM,Direct Employees,A,Salaries,AA,04/10/2017,PAY00999554,HTEN,Tenancy Services,3892.68,Revenue,Guidant Group
Brighton & Hove City Council,http://statistics.data.gov.uk/id/local-authority/00ML,Planning and Development,BVAPLA,Planning Policy,PLP,Direct Employees,A,Salaries,AA,04/10/2017,PAY00999554,BDCS,Business Dev and Cust Services,653.19,Revenue,Guidant Group
Brighton & Hove City Council,http://statistics.data.gov.uk/id/local-authority/00ML,Planning and Development,BVAPLA,Planning Policy,PLP,Direct Employees,A,Salaries,AA,04/10/2017,PAY00999554,DEVP,Development Planning,3667.88,Revenue,Guidant Group
Brighton & Hove City Council,http://statistics.data.gov.uk/id/local-authority/00ML,Public Health,BVAPHE,Public Health,PHE,Direct Employees,A,Salaries,AA,04/10/2017,PAY00999554,PHCM,PH Commissioning,180.82,Revenue,Guidant Group
Brighton & Hove City Council,http://statistics.data.gov.uk/id/local-authority/00ML,Adult Social Care,BVASOC,ASC Learning Disabilities,ALD,Premises Related,C,Cleaning n Domestic Supps,CH,04/10/2017,PAY00999555,RESP,Adults Respite Services,42.09,Revenue,Infinity Foods Co-Op Ltd
Brighton & Hove City Council,http://statistics.data.gov.uk/id/local-authority/00ML,Adult Social Care,BVASOC,ASC Learning Disabilities,ALD,Supplies and Services,E,Catering,EB,04/10/2017,PAY00999555,RESP,Adults Respite Services,371.63,Revenue,Infinity Foods Co-Op Ltd
Brighton & Hove City Council,http://statistics.data.gov.uk/id/local-authority/00ML,Environment & Regulatory Serv,BVAERS,Management Services (DEC),MGT,Transport Related,D,Direct Transport Costs,DA,04/10/2017,PAY00999557,CICL,City Clean,729.93,Revenue,Terberg Matec UK Ltd
Brighton & Hove City Council,http://statistics.data.gov.uk/id/local-authority/00ML,Housing General Fund,BVAHOG,Homelessness,HML,Premises Related,C,Rents Payable,CC,04/10/2017,PAY00999558,TAAS,Temp Accom and Allocations,14260,Revenue,W P Properties Ltd
Brighton & Hove City Council,http://statistics.data.gov.uk/id/local-authority/00ML,Central Support and Overheads,BVACEN,Support Services (SSC),PPT,Indirect Employees,B,Training,BM,04/10/2017,PAY00999559,OHAS,Occupational Health and Safety,2256,Revenue,Artagent Ltd t/a David Taylor Training
Brighton & Hove City Council,http://statistics.data.gov.uk/id/local-authority/00ML,Environment & Regulatory Serv,BVAERS,Environmental Health,EVH,Indirect Employees,B,Training,BM,04/10/2017,PAY00999559,PUPO,Public Protection,300,Revenue,Artagent Ltd t/a David Taylor Training
Brighton & Hove City Council,http://statistics.data.gov.uk/id/local-authority/00ML,Housing General Fund,BVAHOG,Homelessness,HML,Premises Related,C,Rents Payable,CC,04/10/2017,PAY00999560,TAAS,Temp Accom and Allocations,1385,Revenue,Payment to Individual
Brighton & Hove City Council,http://statistics.data.gov.uk/id/local-authority/00ML,Central Services to the Public,BVACEN,Local Tax Collection,LTC,Supplies and Services,E,Print Stat & Gen Office Exps,ED,04/10/2017,PAY00999562,REVS,Revenues and Benefits,3075,Revenue,Westcountry Corporate Ltd t/a Westcountry Group
Brighton & Hove City Council,http://statistics.data.gov.uk/id/local-authority/00ML,Children`s & Education Serv,BVAEDU,Child Srvcs Direct Pymts,FFD,Third Party Payments,F,Other Establishments,FH,04/10/2017,PAY00999563,DISS,Childrens Disability Services,768.35,Revenue,Payment to Individual
Brighton & Hove City Council,http://statistics.data.gov.uk/id/local-authority/00ML,Housing General Fund,BVAHOG,Homelessness,HML,Premises Related,C,Rents Payable,CC,04/10/2017,PAY00999564,TAAS,Temp Accom and Allocations,900,Revenue,Payment to Individual
Brighton & Hove City Council,http://statistics.data.gov.uk/id/local-authority/00ML,Housing General Fund,BVAHOG,Homelessness,HML,Premises Related,C,Rents Payable,CC,04/10/2017,PAY00999565,TAAS,Temp Accom and Allocations,825,Revenue,Payment to Individual
Brighton & Hove City Council,http://statistics.data.gov.uk/id/local-authority/00ML,Cultural and Related Serv,BVACUL,Culture and Heritage,CHG,Supplies and Services,E,Equip't Furniture n Materials,EA,04/10/2017,PAY00999566,RPMU,Royal Pavilion and Museums,2036,Revenue,Format Display Ltd
Brighton & Hove City Council,http://statistics.data.gov.uk/id/local-authority/00ML,Central Support and Overheads,BVACEN,Support Services (SSC),PPT,Supplies and Services,E,Equip't Furniture n Materials,EA,04/10/2017,PAY00999567,SCOR,School Organisation,2079.51,Revenue,Blackburns Metals Ltd
Brighton & Hove City Council,http://statistics.data.gov.uk/id/local-authority/00ML,Environment & Regulatory Serv,BVAERS,Management Services (DEC),MGT,Transport Related,D,Direct Transport Costs,DA,04/10/2017,PAY00999568,CICL,City Clean,614.47,Revenue,Hendy Group Ltd
Brighton & Hove City Council,http://statistics.data.gov.uk/id/local-authority/00ML,Non-BHC Organisations,BVANON,Trusts,TRT,Supplies and Services,E,Miscellaneous Expenses,EM,04/10/2017,PAY00999569,NBHC,Non Council,7674.91,Revenue,Mewsbrook House t/a Lifetime Care UK Ltd
Brighton & Hove City Council,http://statistics.data.gov.uk/id/local-authority/00ML,Central Support and Overheads,BVACEN,Support Services (SSC),PPT,Supplies and Services,E,Equip't Furniture n Materials,EA,04/10/2017,PAY00999570,SCOR,School Organisation,645.41,Revenue,Elliott Baxter & Company Ltd
Brighton & Hove City Council,http://statistics.data.gov.uk/id/local-authority/00ML,Children`s & Education Serv,BVAEDU,Child Srvcs - Othr LAC Svcs,FLX,Transfer Payments,G,Other Transfer Payments,GD,04/10/2017,PAY00999571,AVFM,Agency Placements\VFM,2596.99,Revenue,Seven Ways (Support) Ltd
Brighton & Hove City Council,http://statistics.data.gov.uk/id/local-authority/00ML,Children`s & Education Serv,BVAEDU,Ed Ed Other Other,ENF,Third Party Payments,F,Private Contractors,FJ,04/10/2017,PAY00999573,PROP,Property and Design,1049,Revenue,UK Power Networks (Operations) Ltd
Brighton & Hove City Council,http://statistics.data.gov.uk/id/local-authority/00ML,Housing General Fund,BVAHOG,Homelessness,HML,Premises Related,C,Rents Payable,CC,04/10/2017,PAY00999574,TAAS,Temp Accom and Allocations,1100,Revenue,Avon Estates (London) Ltd
Brighton & Hove City Council,http://statistics.data.gov.uk/id/local-authority/00ML,Housing General Fund,BVAHOG,Homelessness,HML,Premises Related,C,Rents Payable,CC,04/10/2017,PAY00999575,TAAS,Temp Accom and Allocations,950,Revenue,Payment to Individual
Brighton & Hove City Council,http://statistics.data.gov.uk/id/local-authority/00ML,Cultural and Related Serv,BVACUL,Culture and Heritage,CHG,Supplies and Services,E,Services,EF,04/10/2017,PAY00999578,RPMU,Royal Pavilion and Museums,601.4,Revenue,Brighton Toy & Model Museum Limited
Brighton & Hove City Council,http://statistics.data.gov.uk/id/local-authority/00ML,Children`s & Education Serv,BVAEDU,Management Services (DEC),MGT,Supplies and Services,E,Services,EF,04/10/2017,PAY00999579,SOCK,Social Work,550,Revenue,Payment to Individual
Brighton & Hove City Council,http://statistics.data.gov.uk/id/local-authority/00ML,Adult Social Care,BVASOC,ASC Learning Disabilities,ALD,Customer n Client Receipts,M,Fees n Charges,MB,04/10/2017,PAY00999581,LDIS,Adults LD Community Care,-402.6,Revenue,The Disabilities Trust
Brighton & Hove City Council,http://statistics.data.gov.uk/id/local-authority/00ML,Adult Social Care,BVASOC,ASC Learning Disabilities,ALD,Third Party Payments,F,Other Establishments,FH,04/10/2017,PAY00999581,LDIS,Adults LD Community Care,3740,Revenue,The Disabilities Trust
Brighton & Hove City Council,http://statistics.data.gov.uk/id/local-authority/00ML,Adult Social Care,BVASOC,ASC Learning Disabilities,ALD,Third Party Payments,F,Other Establishments,FH,04/10/2017,PAY00999582,LDIS,Adults LD Community Care,184.1,Revenue,Agincare UK Ltd
Brighton & Hove City Council,http://statistics.data.gov.uk/id/local-authority/00ML,Adult Social Care,BVASOC,ASC Memory Cognition Support,MEM,Third Party Payments,F,Other Establishments,FH,04/10/2017,PAY00999582,COGN,Memory Cognition Support,1210.56,Revenue,Agincare UK Ltd
Brighton & Hove City Council,http://statistics.data.gov.uk/id/local-authority/00ML,Adult Social Care,BVASOC,ASC Mental Health Support,MHP,Third Party Payments,F,Other Establishments,FH,04/10/2017,PAY00999582,MENH,Mental Health Support,1073.29,Revenue,Agincare UK Ltd
Brighton & Hove City Council,http://statistics.data.gov.uk/id/local-authority/00ML,Adult Social Care,BVASOC,ASC Physical Support,PHY,Customer n Client Receipts,M,Fees n Charges,MB,04/10/2017,PAY00999582,PHYS,Physical Support,-792,Revenue,Agincare UK Ltd
Brighton & Hove City Council,http://statistics.data.gov.uk/id/local-authority/00ML,Adult Social Care,BVASOC,ASC Physical Support,PHY,Third Party Payments,F,Other Establishments,FH,04/10/2017,PAY00999582,PHYS,Physical Support,19381.81,Revenue,Agincare UK Ltd
Brighton & Hove City Council,http://statistics.data.gov.uk/id/local-authority/00ML,Adult Social Care,BVASOC,ASC Sensory Support,AHV,Third Party Payments,F,Other Establishments,FH,04/10/2017,PAY00999582,SORY,Sensory Support,122.71,Revenue,Agincare UK Ltd
Brighton & Hove City Council,http://statistics.data.gov.uk/id/local-authority/00ML,Adult Social Care,BVASOC,ASC Substance Misuse,ADM,Third Party Payments,F,Other Establishments,FH,04/10/2017,PAY00999582,SUBM,Substance Misuse Support,271.71,Revenue,Agincare UK Ltd
Brighton & Hove City Council,http://statistics.data.gov.uk/id/local-authority/00ML,Housing General Fund,BVAHOG,Homelessness,HML,Premises Related,C,Rents Payable,CC,04/10/2017,PAY00999583,ASSA,Hostel Accommodation,6993.4,Revenue,West Pier Services Limited
Brighton & Hove City Council,http://statistics.data.gov.uk/id/local-authority/00ML,Housing General Fund,BVAHOG,Homelessness,HML,Premises Related,C,Repair Maint n Alterations,CA,04/10/2017,PAY00999584,TAAS,Temp Accom and Allocations,2367.9,Revenue,Lee Sullivan Contract Flooring Limited
Brighton & Hove City Council,http://statistics.data.gov.uk/id/local-authority/00ML,Adult Social Care,BVASOC,ASC Learning Disabilities,ALD,Third Party Payments,F,Other Establishments,FH,04/10/2017,PAY00999587,LDIS,Adults LD Community Care,1890,Revenue,Scope
Brighton & Hove City Council,http://statistics.data.gov.uk/id/local-authority/00ML,Children`s & Education Serv,BVAEDU,Child Srvcs Direct Pymts,FFD,Third Party Payments,F,Other Establishments,FH,04/10/2017,PAY00999588,DISS,Childrens Disability Services,297.9,Revenue,Payment to Individual
Brighton & Hove City Council,http://statistics.data.gov.uk/id/local-authority/00ML,Housing General Fund,BVAHOG,Homelessness,HML,Premises Related,C,Rents Payable,CC,04/10/2017,PAY00999589,TAAS,Temp Accom and Allocations,2300,Revenue,Payment to Individual
Brighton & Hove City Council,http://statistics.data.gov.uk/id/local-authority/00ML,Adult Social Care,BVASOC,ASC Physical Support,PHY,Third Party Payments,F,Other Establishments,FH,04/10/2017,PAY00999591,PHYS,Physical Support,11564.07,Revenue,Aitch Care Homes (London) Ltd
Brighton & Hove City Council,http://statistics.data.gov.uk/id/local-authority/00ML,Cultural and Related Serv,BVACUL,Open Spaces,PEN,Third Party Payments,F,Private Contractors,FJ,04/10/2017,PAY00999594,CIPK,City Parks,1975.15,Revenue,Station Farm
Brighton & Hove City Council,http://statistics.data.gov.uk/id/local-authority/00ML,Cultural and Related Serv,BVACUL,Open Spaces,PEN,Supplies and Services,E,Equip't Furniture n Materials,EA,04/10/2017,PAY00999595,CIPK,City Parks,572.02,Revenue,Bourne Amenity Ltd
Brighton & Hove City Council,http://statistics.data.gov.uk/id/local-authority/00ML,Housing General Fund,BVAHOG,Hsing Welfare,HGW,Transfer Payments,G,Supporting People,GF,04/10/2017,PAY00999597,CONT,Contracts,10057.33,Revenue,Family Mosaic Housing t/a In Touch
Brighton & Hove City Council,http://statistics.data.gov.uk/id/local-authority/00ML,Adult Social Care,BVASOC,ASC Learning Disabilities,ALD,Third Party Payments,F,Other Establishments,FH,04/10/2017,PAY00999598,LDIS,Adults LD Community Care,15785.16,Revenue,Sussex Partnership NHS Foundation Trust
Brighton & Hove City Council,http://statistics.data.gov.uk/id/local-authority/00ML,Adult Social Care,BVASOC,ASC Mental Health Support,MHP,Customer n Client Receipts,M,Fees n Charges,MB,04/10/2017,PAY00999598,MENH,Mental Health Support,-264,Revenue,Sussex Partnership NHS Foundation Trust
Brighton & Hove City Council,http://statistics.data.gov.uk/id/local-authority/00ML,Adult Social Care,BVASOC,ASC Mental Health Support,MHP,Third Party Payments,F,Other Establishments,FH,04/10/2017,PAY00999598,MENH,Mental Health Support,8492,Revenue,Sussex Partnership NHS Foundation Trust
Brighton & Hove City Council,http://statistics.data.gov.uk/id/local-authority/00ML,Non-BHC Organisations,BVANON,Trusts,TRT,Supplies and Services,E,Miscellaneous Expenses,EM,04/10/2017,PAY00999598,NBHC,Non Council,400,Revenue,Sussex Partnership NHS Foundation Trust
Brighton & Hove City Council,http://statistics.data.gov.uk/id/local-authority/00ML,Environment & Regulatory Serv,BVAERS,Management Services (DEC),MGT,Transport Related,D,Direct Transport Costs,DA,04/10/2017,PAY00999599,CICL,City Clean,2831.32,Revenue,Farid Hillend Engineering Ltd
Brighton & Hove City Council,http://statistics.data.gov.uk/id/local-authority/00ML,Adult Social Care,BVASOC,ASC Memory Cognition Support,MEM,Supplies and Services,E,Catering,EB,04/10/2017,PAY00999601,RCOP,Resource Centres Older People,549.73,Revenue,West Horsley Dairy Ltd
Brighton & Hove City Council,http://statistics.data.gov.uk/id/local-authority/00ML,Adult Social Care,BVASOC,ASC Physical Support,PHY,Supplies and Services,E,Catering,EB,04/10/2017,PAY00999601,RCOP,Resource Centres Older People,259.82,Revenue,West Horsley Dairy Ltd
Brighton & Hove City Council,http://statistics.data.gov.uk/id/local-authority/00ML,Non I&E,BVANON,Cap - Housing Services - HRA,4HR,New Construction n Conversion,PB,New Construction n Conversion,PBL5,04/10/2017,PAY00999604,HPAI,Property & Investment,3786,Capital,T Brown Group Ltd
Brighton & Hove City Council,http://statistics.data.gov.uk/id/local-authority/00ML,Central Services to the Public,BVACEN,Reg - Birth Death and Marriage,RBD,Supplies and Services,E,Communications n Computing,EH,04/10/2017,PAY00999607,REGI,Registrars,1000,Revenue,Stopford Information Systems Limited
Brighton & Hove City Council,http://statistics.data.gov.uk/id/local-authority/00ML,Cultural and Related Serv,BVACUL,Open Spaces,PEN,Supplies and Services,E,Equip't Furniture n Materials,EA,04/10/2017,PAY00999609,CIPK,City Parks,711.9,Revenue,AMP Groundcare Machinery Services Ltd
Brighton & Hove City Council,http://statistics.data.gov.uk/id/local-authority/00ML,Central Support and Overheads,BVACEN,Holding Accounts,PPH,Premises Related,C,Repair Maint n Alterations,CA,04/10/2017,PAY00999610,PROP,Property and Design,482.95,Revenue,AM Security Ltd t/a AM Fire & Security Group
Brighton & Hove City Council,http://statistics.data.gov.uk/id/local-authority/00ML,Central Support and Overheads,BVACEN,Support Services (SSC),PPT,Premises Related,C,Repair Maint n Alterations,CA,04/10/2017,PAY00999610,PROP,Property and Design,1690.18,Revenue,AM Security Ltd t/a AM Fire & Security Group
Brighton & Hove City Council,http://statistics.data.gov.uk/id/local-authority/00ML,Housing General Fund,BVAHOG,Homelessness,HML,Premises Related,C,Rents Payable,CC,04/10/2017,PAY00999611,TAAS,Temp Accom and Allocations,43213.32,Revenue,The Baron Homes Corporation Ltd
Brighton & Hove City Council,http://statistics.data.gov.uk/id/local-authority/00ML,Housing General Fund,BVAHOG,Homelessness,HML,Supplies and Services,E,Services,EF,04/10/2017,PAY00999611,TAAS,Temp Accom and Allocations,16946.4,Revenue,The Baron Homes Corporation Ltd
Brighton & Hove City Council,http://statistics.data.gov.uk/id/local-authority/00ML,Non I&E,BVANON,Cap - Housing Services - HRA,4HR,New Construction n Conversion,PB,New Construction n Conversion,PBL5,04/10/2017,PAY00999612,HPAI,Property & Investment,500,Capital,BLB Surveyors Ltd
Brighton & Hove City Council,http://statistics.data.gov.uk/id/local-authority/00ML,Adult Social Care,BVASOC,ASC Memory Cognition Support,MEM,Supplies and Services,E,Catering,EB,04/10/2017,PAY00999613,RCOP,Resource Centres Older People,355.47,Revenue,BFS Group Ltd t/a Bidvest Foodservice
Brighton & Hove City Council,http://statistics.data.gov.uk/id/local-authority/00ML,Adult Social Care,BVASOC,ASC Physical Support,PHY,Supplies and Services,E,Catering,EB,04/10/2017,PAY00999613,RCOP,Resource Centres Older People,501.33,Revenue,BFS Group Ltd t/a Bidvest Foodservice
Brighton & Hove City Council,http://statistics.data.gov.uk/id/local-authority/00ML,Housing General Fund,BVAHOG,Homelessness,HML,Supplies and Services,E,Catering,EB,04/10/2017,PAY00999613,ASSA,Hostel Accommodation,228.69,Revenue,BFS Group Ltd t/a Bidvest Foodservice
Brighton & Hove City Council,http://statistics.data.gov.uk/id/local-authority/00ML,Children`s & Education Serv,BVAEDU,Child Srvcs Adoption,FAA,Customer n Client Receipts,M,Fees n Charges,MB,04/10/2017,PAY00999615,CHIC,Fostering and Adoption,390,Revenue,Brighton Youth Centre
Brighton & Hove City Council,http://statistics.data.gov.uk/id/local-authority/00ML,Central Support and Overheads,BVACEN,Support Services (SSC),PPT,Premises Related,C,Repair Maint n Alterations,CA,04/10/2017,PAY00999617,PROP,Property and Design,763.09,Revenue,Chubb Fire Ltd
Brighton & Hove City Council,http://statistics.data.gov.uk/id/local-authority/00ML,Children`s & Education Serv,BVAEDU,Ed Ed Other LA Attrib Sch,ELA,Transport Related,D,Other Transport Costs,DG,04/10/2017,PAY00999618,SCOR,School Organisation,3842.32,Revenue,Community Transport (Bton Hove & Area) Ltd
Brighton & Hove City Council,http://statistics.data.gov.uk/id/local-authority/00ML,Cultural and Related Serv,BVACUL,Culture and Heritage,CHG,Premises Related,C,Repair Maint n Alterations,CA,04/10/2017,PAY00999619,RPMU,Royal Pavilion and Museums,645,Revenue,Connick Tree Care Brighton Ltd
Brighton & Hove City Council,http://statistics.data.gov.uk/id/local-authority/00ML,Central Services to the Public,BVACEN,Local Tax Collection,LTC,Supplies and Services,E,Print Stat & Gen Office Exps,ED,04/10/2017,PAY00999620,REVS,Revenues and Benefits,387,Revenue,Computastat Group Ltd
Brighton & Hove City Council,http://statistics.data.gov.uk/id/local-authority/00ML,Central Support and Overheads,BVACEN,Support Services (SSC),PPT,Supplies and Services,E,Grants n Subscriptions,EK,04/10/2017,PAY00999621,ICTA,ICT,955,Revenue,Information Commissioner`s Office
Brighton & Hove City Council,http://statistics.data.gov.uk/id/local-authority/00ML,Central Support and Overheads,BVACEN,Support Services (SSC),PPT,Supplies and Services,E,Communications n Computing,EH,04/10/2017,PAY00999622,ICTA,ICT,1597.6,Revenue,Dell Computer Corporation Ltd
Brighton & Hove City Council,http://statistics.data.gov.uk/id/local-authority/00ML,Children`s & Education Serv,BVAEDU,Management Services (DEC),MGT,Supplies and Services,E,Services,EF,04/10/2017,PAY00999623,SOCK,Social Work,575,Revenue,Payment to Individual
Brighton & Hove City Council,http://statistics.data.gov.uk/id/local-authority/00ML,Environment & Regulatory Serv,BVAERS,Waste Management,WMT,Supplies and Services,E,Equip't Furniture n Materials,EA,04/10/2017,PAY00999625,CICL,City Clean,440.25,Revenue,Egbert H Taylor & Company Ltd
Brighton & Hove City Council,http://statistics.data.gov.uk/id/local-authority/00ML,Highways and Transportation,BVAHRT,Highways and Roads - Mntnce,HRM,Premises Related,C,Repair Maint n Alterations,CA,04/10/2017,PAY00999627,HWEN,Highways Assets and Maint,1010,Revenue,Payment to Individual
Brighton & Hove City Council,http://statistics.data.gov.uk/id/local-authority/00ML,Housing Revenue Account,BVAHOU,Hsing Management - HRA,HGM,Supplies and Services,E,Grants n Subscriptions,EK,04/10/2017,PAY00999628,HIII,Income Involvement Improvement,265.34,Revenue,Ingram Crescent Residents Association
Brighton & Hove City Council,http://statistics.data.gov.uk/id/local-authority/00ML,Non I&E,BVANON,CAP Education Services,4ED,New Construction n Conversion,PB,New Construction n Conversion,PBL5,04/10/2017,PAY00999629,OEDS,Other Education Support,40846.29,Capital,J Cheesmur & Sons (Lewes) Ltd
Brighton & Hove City Council,http://statistics.data.gov.uk/id/local-authority/00ML,Central Support and Overheads,BVACEN,Holding Accounts,PPH,Premises Related,C,Repair Maint n Alterations,CA,04/10/2017,PAY00999630,PROP,Property and Design,1525,Revenue,J Davies Building Ltd
Brighton & Hove City Council,http://statistics.data.gov.uk/id/local-authority/00ML,Central Support and Overheads,BVACEN,Support Services (SSC),PPT,Premises Related,C,Repair Maint n Alterations,CA,04/10/2017,PAY00999630,PROP,Property and Design,976.25,Revenue,J Davies Building Ltd
Brighton & Hove City Council,http://statistics.data.gov.uk/id/local-authority/00ML,Adult Social Care,BVASOC,ASC Learning Disabilities,ALD,Premises Related,C,Cleaning n Domestic Supps,CH,04/10/2017,PAY00999632,RESP,Adults Respite Services,51.2,Revenue,Kent County Council Commercial Services
Brighton & Hove City Council,http://statistics.data.gov.uk/id/local-authority/00ML,Cultural and Related Serv,BVACUL,Culture and Heritage,CHG,Supplies and Services,E,Equip't Furniture n Materials,EA,04/10/2017,PAY00999632,RPMU,Royal Pavilion and Museums,15.25,Revenue,Kent County Council Commercial Services
Brighton & Hove City Council,http://statistics.data.gov.uk/id/local-authority/00ML,Non I&E,BVANON,CAP Education Services,4ED,Plant Machinery n Equipment,PE2,Plant Machinery n Equipment,PE2L5,04/10/2017,PAY00999632,OEDS,Other Education Support,496.05,Capital,Kent County Council Commercial Services
Brighton & Hove City Council,http://statistics.data.gov.uk/id/local-authority/00ML,Adult Social Care,BVASOC,ASC Learning Disabilities,ALD,Supplies and Services,E,Communications n Computing,EH,04/10/2017,PAY00999633,LDAS,Adults LD Accomodation Service,7.33,Revenue,O2 (UK) Ltd
Brighton & Hove City Council,http://statistics.data.gov.uk/id/local-authority/00ML,Adult Social Care,BVASOC,ASC Learning Disabilities,ALD,Supplies and Services,E,Communications n Computing,EH,04/10/2017,PAY00999633,LDHC,Adults LD Home Care,55.11,Revenue,O2 (UK) Ltd
Brighton & Hove City Council,http://statistics.data.gov.uk/id/local-authority/00ML,Adult Social Care,BVASOC,ASC Learning Disabilities,ALD,Supplies and Services,E,Communications n Computing,EH,04/10/2017,PAY00999633,LDSE,Adults LD Day Services,3.53,Revenue,O2 (UK) Ltd
Brighton & Hove City Council,http://statistics.data.gov.uk/id/local-authority/00ML,Adult Social Care,BVASOC,ASC Learning Disabilities,ALD,Supplies and Services,E,Communications n Computing,EH,04/10/2017,PAY00999633,LDSU,Supported Employment,141.34,Revenue,O2 (UK) Ltd
Brighton & Hove City Council,http://statistics.data.gov.uk/id/local-authority/00ML,Adult Social Care,BVASOC,ASC Memory Cognition Support,MEM,Supplies and Services,E,Communications n Computing,EH,04/10/2017,PAY00999633,RCOP,Resource Centres Older People,33.19,Revenue,O2 (UK) Ltd
Brighton & Hove City Council,http://statistics.data.gov.uk/id/local-authority/00ML,Adult Social Care,BVASOC,ASC Physical Support,PHY,Supplies and Services,E,Communications n Computing,EH,04/10/2017,PAY00999633,HOME,Home Care,446.36,Revenue,O2 (UK) Ltd
Brighton & Hove City Council,http://statistics.data.gov.uk/id/local-authority/00ML,Adult Social Care,BVASOC,ASC Physical Support,PHY,Supplies and Services,E,Communications n Computing,EH,04/10/2017,PAY00999633,RCOP,Resource Centres Older People,10.52,Revenue,O2 (UK) Ltd
Brighton & Hove City Council,http://statistics.data.gov.uk/id/local-authority/00ML,Adult Social Care,BVASOC,Assistive Equipment & Tech,AET,Supplies and Services,E,Communications n Computing,EH,04/10/2017,PAY00999633,ASIT,Assessment and SIT,49.84,Revenue,O2 (UK) Ltd
Brighton & Hove City Council,http://statistics.data.gov.uk/id/local-authority/00ML,Adult Social Care,BVASOC,Commission & Service Delivery,CMM,Supplies and Services,E,Communications n Computing,EH,04/10/2017,PAY00999633,COMM,Commissioning,238.74,Revenue,O2 (UK) Ltd
Brighton & Hove City Council,http://statistics.data.gov.uk/id/local-authority/00ML,Adult Social Care,BVASOC,Commission & Service Delivery,CMM,Supplies and Services,E,Communications n Computing,EH,04/10/2017,PAY00999633,LDMA,Adults LD Management,21.86,Revenue,O2 (UK) Ltd
Brighton & Hove City Council,http://statistics.data.gov.uk/id/local-authority/00ML,Adult Social Care,BVASOC,Social Care Activities,ACM,Supplies and Services,E,Communications n Computing,EH,04/10/2017,PAY00999633,ASIT,Assessment and SIT,592.35,Revenue,O2 (UK) Ltd
Brighton & Hove City Council,http://statistics.data.gov.uk/id/local-authority/00ML,Adult Social Care,BVASOC,Social Care Activities,ACM,Supplies and Services,E,Communications n Computing,EH,04/10/2017,PAY00999633,COGN,Memory Cognition Support,32.8,Revenue,O2 (UK) Ltd
Brighton & Hove City Council,http://statistics.data.gov.uk/id/local-authority/00ML,Adult Social Care,BVASOC,Social Care Activities,ACM,Supplies and Services,E,Communications n Computing,EH,04/10/2017,PAY00999633,LDAE,Adults LD Assessment,86.31,Revenue,O2 (UK) Ltd
Brighton & Hove City Council,http://statistics.data.gov.uk/id/local-authority/00ML,Adult Social Care,BVASOC,Social Care Activities,ACM,Supplies and Services,E,Communications n Computing,EH,04/10/2017,PAY00999633,MENH,Mental Health Support,111.2,Revenue,O2 (UK) Ltd
Brighton & Hove City Council,http://statistics.data.gov.uk/id/local-authority/00ML,Central Services to the Public,BVACEN,Elections,ELE,Supplies and Services,E,Communications n Computing,EH,04/10/2017,PAY00999633,ELEC,Elections,40,Revenue,O2 (UK) Ltd
Brighton & Hove City Council,http://statistics.data.gov.uk/id/local-authority/00ML,Central Services to the Public,BVACEN,Emergency Planning,EPL,Supplies and Services,E,Communications n Computing,EH,04/10/2017,PAY00999633,PUPO,Public Protection,39.04,Revenue,O2 (UK) Ltd
Brighton & Hove City Council,http://statistics.data.gov.uk/id/local-authority/00ML,Central Services to the Public,BVACEN,Local Tax Collection,LTC,Supplies and Services,E,Communications n Computing,EH,04/10/2017,PAY00999633,REVS,Revenues and Benefits,62.86,Revenue,O2 (UK) Ltd
Brighton & Hove City Council,http://statistics.data.gov.uk/id/local-authority/00ML,Central Services to the Public,BVACEN,Reg - Birth Death and Marriage,RBD,Supplies and Services,E,Communications n Computing,EH,04/10/2017,PAY00999633,REGI,Registrars,11.69,Revenue,O2 (UK) Ltd
Brighton & Hove City Council,http://statistics.data.gov.uk/id/local-authority/00ML,Central Services to the Public,BVACEN,Support Services (SSC),PPT,Supplies and Services,E,Communications n Computing,EH,04/10/2017,PAY00999633,REVS,Revenues and Benefits,37.23,Revenue,O2 (UK) Ltd
Brighton & Hove City Council,http://statistics.data.gov.uk/id/local-authority/00ML,Central Support and Overheads,BVACEN,Support Services (SSC),PPT,Supplies and Services,E,Communications n Computing,EH,04/10/2017,PAY00999633,AUDB,Audit and Business Risk,24.5,Revenue,O2 (UK) Ltd
Brighton & Hove City Council,http://statistics.data.gov.uk/id/local-authority/00ML,Central Support and Overheads,BVACEN,Support Services (SSC),PPT,Supplies and Services,E,Communications n Computing,EH,04/10/2017,PAY00999633,COMU,Communications,79.74,Revenue,O2 (UK) Ltd
Brighton & Hove City Council,http://statistics.data.gov.uk/id/local-authority/00ML,Central Support and Overheads,BVACEN,Support Services (SSC),PPT,Supplies and Services,E,Communications n Computing,EH,04/10/2017,PAY00999633,DEMO,Democratic Services,78.85,Revenue,O2 (UK) Ltd
Brighton & Hove City Council,http://statistics.data.gov.uk/id/local-authority/00ML,Central Support and Overheads,BVACEN,Support Services (SSC),PPT,Supplies and Services,E,Communications n Computing,EH,04/10/2017,PAY00999633,FINS,Financial Services,4.96,Revenue,O2 (UK) Ltd
Brighton & Hove City Council,http://statistics.data.gov.uk/id/local-authority/00ML,Central Support and Overheads,BVACEN,Support Services (SSC),PPT,Supplies and Services,E,Communications n Computing,EH,04/10/2017,PAY00999633,ICTA,ICT,1103.78,Revenue,O2 (UK) Ltd
Brighton & Hove City Council,http://statistics.data.gov.uk/id/local-authority/00ML,Central Support and Overheads,BVACEN,Support Services (SSC),PPT,Supplies and Services,E,Communications n Computing,EH,04/10/2017,PAY00999633,LEGS,Legal Services,224.16,Revenue,O2 (UK) Ltd
Brighton & Hove City Council,http://statistics.data.gov.uk/id/local-authority/00ML,Central Support and Overheads,BVACEN,Support Services (SSC),PPT,Supplies and Services,E,Communications n Computing,EH,04/10/2017,PAY00999633,MEMB,Members Services,33.5,Revenue,O2 (UK) Ltd
Brighton & Hove City Council,http://statistics.data.gov.uk/id/local-authority/00ML,Central Support and Overheads,BVACEN,Support Services (SSC),PPT,Supplies and Services,E,Communications n Computing,EH,04/10/2017,PAY00999633,OHAS,Occupational Health and Safety,91.37,Revenue,O2 (UK) Ltd
Brighton & Hove City Council,http://statistics.data.gov.uk/id/local-authority/00ML,Central Support and Overheads,BVACEN,Support Services (SSC),PPT,Supplies and Services,E,Communications n Computing,EH,04/10/2017,PAY00999633,ORGD,Organisational Development,21.11,Revenue,O2 (UK) Ltd
Brighton & Hove City Council,http://statistics.data.gov.uk/id/local-authority/00ML,Central Support and Overheads,BVACEN,Support Services (SSC),PPT,Supplies and Services,E,Communications n Computing,EH,04/10/2017,PAY00999633,PERR,Performance & Improvement,11.66,Revenue,O2 (UK) Ltd
Brighton & Hove City Council,http://statistics.data.gov.uk/id/local-authority/00ML,Central Support and Overheads,BVACEN,Support Services (SSC),PPT,Supplies and Services,E,Communications n Computing,EH,04/10/2017,PAY00999633,POLI,Policy and Initiatives,166.88,Revenue,O2 (UK) Ltd
Brighton & Hove City Council,http://statistics.data.gov.uk/id/local-authority/00ML,Central Support and Overheads,BVACEN,Support Services (SSC),PPT,Supplies and Services,E,Communications n Computing,EH,04/10/2017,PAY00999633,POLY,Policy,34.59,Revenue,O2 (UK) Ltd
Brighton & Hove City Council,http://statistics.data.gov.uk/id/local-authority/00ML,Central Support and Overheads,BVACEN,Support Services (SSC),PPT,Supplies and Services,E,Communications n Computing,EH,04/10/2017,PAY00999633,PROP,Property and Design,485.51,Revenue,O2 (UK) Ltd
Brighton & Hove City Council,http://statistics.data.gov.uk/id/local-authority/00ML,Children`s & Education Serv,BVAEDU,Child Srvcs Adoption,FAA,Supplies and Services,E,Communications n Computing,EH,04/10/2017,PAY00999633,YOTS,Youth Service,4.5,Revenue,O2 (UK) Ltd
Brighton & Hove City Council,http://statistics.data.gov.uk/id/local-authority/00ML,Children`s & Education Serv,BVAEDU,Child Srvcs Com and Scl Work,FCW,Supplies and Services,E,Communications n Computing,EH,04/10/2017,PAY00999633,ASER,Adolescent Service,64.68,Revenue,O2 (UK) Ltd
Brighton & Hove City Council,http://statistics.data.gov.uk/id/local-authority/00ML,Children`s & Education Serv,BVAEDU,Child Srvcs Com and Scl Work,FCW,Supplies and Services,E,Communications n Computing,EH,04/10/2017,PAY00999633,DISS,Childrens Disability Services,83.06,Revenue,O2 (UK) Ltd
Brighton & Hove City Council,http://statistics.data.gov.uk/id/local-authority/00ML,Children`s & Education Serv,BVAEDU,Child Srvcs Com and Scl Work,FCW,Supplies and Services,E,Communications n Computing,EH,04/10/2017,PAY00999633,IROT,Independant Review Team,79.84,Revenue,O2 (UK) Ltd
Brighton & Hove City Council,http://statistics.data.gov.uk/id/local-authority/00ML,Children`s & Education Serv,BVAEDU,Child Srvcs Com and Scl Work,FCW,Supplies and Services,E,Communications n Computing,EH,04/10/2017,PAY00999633,SOCK,Social Work,1040.45,Revenue,O2 (UK) Ltd
Brighton & Hove City Council,http://statistics.data.gov.uk/id/local-authority/00ML,Children`s & Education Serv,BVAEDU,Child Srvcs - Family Centres,FFF,Supplies and Services,E,Communications n Computing,EH,04/10/2017,PAY00999633,CONS,Contact Service,23.83,Revenue,O2 (UK) Ltd
Brighton & Hove City Council,http://statistics.data.gov.uk/id/local-authority/00ML,Children`s & Education Serv,BVAEDU,Child Srvcs - Fostering,FLF,Supplies and Services,E,Communications n Computing,EH,04/10/2017,PAY00999633,CHIC,Fostering and Adoption,321.98,Revenue,O2 (UK) Ltd
Brighton & Hove City Council,http://statistics.data.gov.uk/id/local-authority/00ML,Children`s & Education Serv,BVAEDU,Child Srvcs Leaving Care,FAL,Supplies and Services,E,Communications n Computing,EH,04/10/2017,PAY00999633,CARL,Care Leavers,78.91,Revenue,O2 (UK) Ltd
Brighton & Hove City Council,http://statistics.data.gov.uk/id/local-authority/00ML,Children`s & Education Serv,BVAEDU,Child Srvcs Other,FAX,Supplies and Services,E,Communications n Computing,EH,04/10/2017,PAY00999633,ASER,Adolescent Service,23.58,Revenue,O2 (UK) Ltd
Brighton & Hove City Council,http://statistics.data.gov.uk/id/local-authority/00ML,Children`s & Education Serv,BVAEDU,Child Srvcs Other,FAX,Supplies and Services,E,Communications n Computing,EH,04/10/2017,PAY00999633,CHIC,Fostering and Adoption,10,Revenue,O2 (UK) Ltd
Brighton & Hove City Council,http://statistics.data.gov.uk/id/local-authority/00ML,Children`s & Education Serv,BVAEDU,Child Srvcs Other,FAX,Supplies and Services,E,Communications n Computing,EH,04/10/2017,PAY00999633,DISS,Childrens Disability Services,21.9,Revenue,O2 (UK) Ltd
Brighton & Hove City Council,http://statistics.data.gov.uk/id/local-authority/00ML,Children`s & Education Serv,BVAEDU,Child Srvcs Other,FAX,Supplies and Services,E,Communications n Computing,EH,04/10/2017,PAY00999633,SAFE,Safeguarding,81.26,Revenue,O2 (UK) Ltd
Brighton & Hove City Council,http://statistics.data.gov.uk/id/local-authority/00ML,Children`s & Education Serv,BVAEDU,Child Srvcs Other,FAX,Supplies and Services,E,Communications n Computing,EH,04/10/2017,PAY00999633,YOTS,Youth Service,39.44,Revenue,O2 (UK) Ltd
Brighton & Hove City Council,http://statistics.data.gov.uk/id/local-authority/00ML,Children`s & Education Serv,BVAEDU,Child Srvcs - Other Fam Supp,FFX,Supplies and Services,E,Communications n Computing,EH,04/10/2017,PAY00999633,DISS,Childrens Disability Services,36.63,Revenue,O2 (UK) Ltd
Brighton & Hove City Council,http://statistics.data.gov.uk/id/local-authority/00ML,Children`s & Education Serv,BVAEDU,Child Srvcs - Other Fam Supp,FFX,Supplies and Services,E,Communications n Computing,EH,04/10/2017,PAY00999633,ITFF,Integrated Team For Families,134.81,Revenue,O2 (UK) Ltd
Brighton & Hove City Council,http://statistics.data.gov.uk/id/local-authority/00ML,Children`s & Education Serv,BVAEDU,Child Srvcs - Other Fam Supp,FFX,Supplies and Services,E,Communications n Computing,EH,04/10/2017,PAY00999633,SFSC,Troubled Families,11.2,Revenue,O2 (UK) Ltd
Brighton & Hove City Council,http://statistics.data.gov.uk/id/local-authority/00ML,Children`s & Education Serv,BVAEDU,Child Srvcs - Other Fam Supp,FFX,Supplies and Services,E,Communications n Computing,EH,04/10/2017,PAY00999633,SPEA,Specialist Assessment,4.5,Revenue,O2 (UK) Ltd
Brighton & Hove City Council,http://statistics.data.gov.uk/id/local-authority/00ML,Children`s & Education Serv,BVAEDU,Child Srvcs - Other Yth Jstce,FYX,Supplies and Services,E,Communications n Computing,EH,04/10/2017,PAY00999633,ASER,Adolescent Service,122.33,Revenue,O2 (UK) Ltd
Brighton & Hove City Council,http://statistics.data.gov.uk/id/local-authority/00ML,Children`s & Education Serv,BVAEDU,Child Srvcs - Residential Svcs,FLR,Supplies and Services,E,Communications n Computing,EH,04/10/2017,PAY00999633,DISS,Childrens Disability Services,49.94,Revenue,O2 (UK) Ltd
Brighton & Hove City Council,http://statistics.data.gov.uk/id/local-authority/00ML,Children`s & Education Serv,BVAEDU,Child Srvcs - Yth Offender Tm,FYY,Supplies and Services,E,Communications n Computing,EH,04/10/2017,PAY00999633,ASER,Adolescent Service,102.33,Revenue,O2 (UK) Ltd
Brighton & Hove City Council,http://statistics.data.gov.uk/id/local-authority/00ML,Children`s & Education Serv,BVAEDU,Ed Ed Other LAA,ELL,Supplies and Services,E,Communications n Computing,EH,04/10/2017,PAY00999633,SCOR,School Organisation,14.53,Revenue,O2 (UK) Ltd
Brighton & Hove City Council,http://statistics.data.gov.uk/id/local-authority/00ML,Children`s & Education Serv,BVAEDU,Ed Ed Other LA Attrib Sch,ELA,Supplies and Services,E,Communications n Computing,EH,04/10/2017,PAY00999633,ACED,Access to Education,40.02,Revenue,O2 (UK) Ltd
Brighton & Hove City Council,http://statistics.data.gov.uk/id/local-authority/00ML,Children`s & Education Serv,BVAEDU,Ed Ed Other Other,ENF,Supplies and Services,E,Communications n Computing,EH,04/10/2017,PAY00999633,SACH,Standards and Achievement,20.02,Revenue,O2 (UK) Ltd
Brighton & Hove City Council,http://statistics.data.gov.uk/id/local-authority/00ML,Children`s & Education Serv,BVAEDU,Ed Ed Other Other,ENF,Supplies and Services,E,Communications n Computing,EH,04/10/2017,PAY00999633,SCOR,School Organisation,10.99,Revenue,O2 (UK) Ltd
Brighton & Hove City Council,http://statistics.data.gov.uk/id/local-authority/00ML,Children`s & Education Serv,BVAEDU,Ed Ed Other Other,ENF,Supplies and Services,E,Communications n Computing,EH,04/10/2017,PAY00999633,VSCH,Virtual School,100.96,Revenue,O2 (UK) Ltd
Brighton & Hove City Council,http://statistics.data.gov.uk/id/local-authority/00ML,Children`s & Education Serv,BVAEDU,Ed Ed Other Strat Mgt,ENM,Supplies and Services,E,Communications n Computing,EH,04/10/2017,PAY00999633,DOCS,Dir Families Children Learning,60.57,Revenue,O2 (UK) Ltd
Brighton & Hove City Council,http://statistics.data.gov.uk/id/local-authority/00ML,Children`s & Education Serv,BVAEDU,Ed EY Central,EAE,Supplies and Services,E,Communications n Computing,EH,04/10/2017,PAY00999633,EYRS,Early Years,91.52,Revenue,O2 (UK) Ltd
Brighton & Hove City Council,http://statistics.data.gov.uk/id/local-authority/00ML,Children`s & Education Serv,BVAEDU,Ed EY Central,EAE,Supplies and Services,E,Communications n Computing,EH,04/10/2017,PAY00999633,SOCK,Social Work,43.72,Revenue,O2 (UK) Ltd
Brighton & Hove City Council,http://statistics.data.gov.uk/id/local-authority/00ML,Children`s & Education Serv,BVAEDU,Ed Mgmt and Support Services,EMG,Supplies and Services,E,Communications n Computing,EH,04/10/2017,PAY00999633,ACED,Access to Education,82.71,Revenue,O2 (UK) Ltd
Brighton & Hove City Council,http://statistics.data.gov.uk/id/local-authority/00ML,Children`s & Education Serv,BVAEDU,Ed Mgmt and Support Services,EMG,Supplies and Services,E,Communications n Computing,EH,04/10/2017,PAY00999633,ANTB,Anti-Bullying,-0.91,Revenue,O2 (UK) Ltd
Brighton & Hove City Council,http://statistics.data.gov.uk/id/local-authority/00ML,Children`s & Education Serv,BVAEDU,Ed Mgmt and Support Services,EMG,Supplies and Services,E,Communications n Computing,EH,04/10/2017,PAY00999633,EYRS,Early Years,30.03,Revenue,O2 (UK) Ltd
Brighton & Hove City Council,http://statistics.data.gov.uk/id/local-authority/00ML,Children`s & Education Serv,BVAEDU,Ed Mgmt and Support Services,EMG,Supplies and Services,E,Communications n Computing,EH,04/10/2017,PAY00999633,INSS,Integrated Support Services,354.46,Revenue,O2 (UK) Ltd
Brighton & Hove City Council,http://statistics.data.gov.uk/id/local-authority/00ML,Children`s & Education Serv,BVAEDU,Ed Mgmt and Support Services,EMG,Supplies and Services,E,Communications n Computing,EH,04/10/2017,PAY00999633,SACH,Standards and Achievement,51.94,Revenue,O2 (UK) Ltd
Brighton & Hove City Council,http://statistics.data.gov.uk/id/local-authority/00ML,Children`s & Education Serv,BVAEDU,Ed Primary Schools,EHH,Supplies and Services,E,Communications n Computing,EH,04/10/2017,PAY00999633,SCHL,Schools,22.89,Revenue,O2 (UK) Ltd
Brighton & Hove City Council,http://statistics.data.gov.uk/id/local-authority/00ML,Children`s & Education Serv,BVAEDU,Ed Secondary Ed,EJE,Supplies and Services,E,Communications n Computing,EH,04/10/2017,PAY00999633,SCHL,Schools,20.03,Revenue,O2 (UK) Ltd
Brighton & Hove City Council,http://statistics.data.gov.uk/id/local-authority/00ML,Children`s & Education Serv,BVAEDU,Ed Special Ed,EKE,Supplies and Services,E,Communications n Computing,EH,04/10/2017,PAY00999633,EMAS,EMAS,19.83,Revenue,O2 (UK) Ltd
Brighton & Hove City Council,http://statistics.data.gov.uk/id/local-authority/00ML,Children`s & Education Serv,BVAEDU,Ed Special Ed,EKE,Supplies and Services,E,Communications n Computing,EH,04/10/2017,PAY00999633,SENS,Special Educational Needs,65.06,Revenue,O2 (UK) Ltd
Brighton & Hove City Council,http://statistics.data.gov.uk/id/local-authority/00ML,Children`s & Education Serv,BVAEDU,Ed Srvcs YP Youth Srvcs,ENY,Supplies and Services,E,Communications n Computing,EH,04/10/2017,PAY00999633,SKEM,Skills and Employment,50.45,Revenue,O2 (UK) Ltd
Brighton & Hove City Council,http://statistics.data.gov.uk/id/local-authority/00ML,Children`s & Education Serv,BVAEDU,Ed Srvcs YP Youth Srvcs,ENY,Supplies and Services,E,Communications n Computing,EH,04/10/2017,PAY00999633,YOTS,Youth Service,33.02,Revenue,O2 (UK) Ltd
Brighton & Hove City Council,http://statistics.data.gov.uk/id/local-authority/00ML,Children`s & Education Serv,BVAEDU,Management Services (DEC),MGT,Supplies and Services,E,Communications n Computing,EH,04/10/2017,PAY00999633,ESMA,Educ Skills Management Admin ,20.22,Revenue,O2 (UK) Ltd
Brighton & Hove City Council,http://statistics.data.gov.uk/id/local-authority/00ML,Children`s & Education Serv,BVAEDU,Management Services (DEC),MGT,Supplies and Services,E,Communications n Computing,EH,04/10/2017,PAY00999633,SOCK,Social Work,20,Revenue,O2 (UK) Ltd
Brighton & Hove City Council,http://statistics.data.gov.uk/id/local-authority/00ML,Children`s & Education Serv,BVAEDU,Support Services (SSC),PPT,Supplies and Services,E,Communications n Computing,EH,04/10/2017,PAY00999633,SCOR,School Organisation,1.99,Revenue,O2 (UK) Ltd
Brighton & Hove City Council,http://statistics.data.gov.uk/id/local-authority/00ML,Cultural and Related Serv,BVACUL,Culture and Heritage,CHG,Supplies and Services,E,Communications n Computing,EH,04/10/2017,PAY00999633,RPMU,Royal Pavilion and Museums,140.39,Revenue,O2 (UK) Ltd
Brighton & Hove City Council,http://statistics.data.gov.uk/id/local-authority/00ML,Cultural and Related Serv,BVACUL,Culture and Heritage,CHG,Supplies and Services,E,Communications n Computing,EH,04/10/2017,PAY00999633,SPLE,Sport and Leisure,29.24,Revenue,O2 (UK) Ltd
Brighton & Hove City Council,http://statistics.data.gov.uk/id/local-authority/00ML,Cultural and Related Serv,BVACUL,Culture and Heritage,CHG,Supplies and Services,E,Communications n Computing,EH,04/10/2017,PAY00999633,VENU,Venues,110.1,Revenue,O2 (UK) Ltd
Brighton & Hove City Council,http://statistics.data.gov.uk/id/local-authority/00ML,Cultural and Related Serv,BVACUL,Management Services (DEC),MGT,Supplies and Services,E,Communications n Computing,EH,04/10/2017,PAY00999633,CIPK,City Parks,106.81,Revenue,O2 (UK) Ltd
Brighton & Hove City Council,http://statistics.data.gov.uk/id/local-authority/00ML,Cultural and Related Serv,BVACUL,Management Services (DEC),MGT,Supplies and Services,E,Communications n Computing,EH,04/10/2017,PAY00999633,SPLE,Sport and Leisure,29.78,Revenue,O2 (UK) Ltd
Brighton & Hove City Council,http://statistics.data.gov.uk/id/local-authority/00ML,Cultural and Related Serv,BVACUL,Open Spaces,PEN,Supplies and Services,E,Communications n Computing,EH,04/10/2017,PAY00999633,CIPK,City Parks,142.73,Revenue,O2 (UK) Ltd
Brighton & Hove City Council,http://statistics.data.gov.uk/id/local-authority/00ML,Cultural and Related Serv,BVACUL,Recreation and Sport,REC,Supplies and Services,E,Communications n Computing,EH,04/10/2017,PAY00999633,SPLE,Sport and Leisure,121.12,Revenue,O2 (UK) Ltd
Brighton & Hove City Council,http://statistics.data.gov.uk/id/local-authority/00ML,Cultural and Related Serv,BVACUL,Tourism,TRM,Supplies and Services,E,Communications n Computing,EH,04/10/2017,PAY00999633,TOMA,Tourism and Marketing,10,Revenue,O2 (UK) Ltd
Brighton & Hove City Council,http://statistics.data.gov.uk/id/local-authority/00ML,Environment & Regulatory Serv,BVAERS,Cem Crem and Mortuary Services,CCM,Supplies and Services,E,Communications n Computing,EH,04/10/2017,PAY00999633,BERE,Bereavement,24.65,Revenue,O2 (UK) Ltd
Brighton & Hove City Council,http://statistics.data.gov.uk/id/local-authority/00ML,Environment & Regulatory Serv,BVAERS,Community Safety,CMY,Supplies and Services,E,Communications n Computing,EH,04/10/2017,PAY00999633,CSTP,Comm Safety Team & Partnership,63.8,Revenue,O2 (UK) Ltd
Brighton & Hove City Council,http://statistics.data.gov.uk/id/local-authority/00ML,Environment & Regulatory Serv,BVAERS,Consumer Protection,CNP,Supplies and Services,E,Communications n Computing,EH,04/10/2017,PAY00999633,PUPO,Public Protection,31.11,Revenue,O2 (UK) Ltd
Brighton & Hove City Council,http://statistics.data.gov.uk/id/local-authority/00ML,Environment & Regulatory Serv,BVAERS,Court Services,CRT,Supplies and Services,E,Communications n Computing,EH,04/10/2017,PAY00999633,CORO,Coroner,29.02,Revenue,O2 (UK) Ltd
Brighton & Hove City Council,http://statistics.data.gov.uk/id/local-authority/00ML,Environment & Regulatory Serv,BVAERS,Environmental Health,EVH,Supplies and Services,E,Communications n Computing,EH,04/10/2017,PAY00999633,HIGH,Traffic Management,87.44,Revenue,O2 (UK) Ltd
Brighton & Hove City Council,http://statistics.data.gov.uk/id/local-authority/00ML,Environment & Regulatory Serv,BVAERS,Environmental Health,EVH,Supplies and Services,E,Communications n Computing,EH,04/10/2017,PAY00999633,PUPO,Public Protection,524.99,Revenue,O2 (UK) Ltd
Brighton & Hove City Council,http://statistics.data.gov.uk/id/local-authority/00ML,Environment & Regulatory Serv,BVAERS,Flood Drainage and Coast Prtn,FDC,Supplies and Services,E,Communications n Computing,EH,04/10/2017,PAY00999633,HWEN,Highways Assets and Maint,10.26,Revenue,O2 (UK) Ltd
Brighton & Hove City Council,http://statistics.data.gov.uk/id/local-authority/00ML,Environment & Regulatory Serv,BVAERS,Management Services (DEC),MGT,Supplies and Services,E,Communications n Computing,EH,04/10/2017,PAY00999633,CICL,City Clean,153.12,Revenue,O2 (UK) Ltd
Brighton & Hove City Council,http://statistics.data.gov.uk/id/local-authority/00ML,Environment & Regulatory Serv,BVAERS,Management Services (DEC),MGT,Supplies and Services,E,Communications n Computing,EH,04/10/2017,PAY00999633,SPLE,Sport and Leisure,44.5,Revenue,O2 (UK) Ltd
Brighton & Hove City Council,http://statistics.data.gov.uk/id/local-authority/00ML,Environment & Regulatory Serv,BVAERS,Street Cleansing,CLE,Supplies and Services,E,Communications n Computing,EH,04/10/2017,PAY00999633,CICL,City Clean,178.56,Revenue,O2 (UK) Ltd
Brighton & Hove City Council,http://statistics.data.gov.uk/id/local-authority/00ML,Environment & Regulatory Serv,BVAERS,Waste Management,WMT,Supplies and Services,E,Communications n Computing,EH,04/10/2017,PAY00999633,CICL,City Clean,36.26,Revenue,O2 (UK) Ltd
Brighton & Hove City Council,http://statistics.data.gov.uk/id/local-authority/00ML,Highways and Transportation,BVAHRT,Highways and Roads - Mntnce,HRM,Supplies and Services,E,Communications n Computing,EH,04/10/2017,PAY00999633,HIGH,Traffic Management,485.78,Revenue,O2 (UK) Ltd
Brighton & Hove City Council,http://statistics.data.gov.uk/id/local-authority/00ML,Highways and Transportation,BVAHRT,Highways and Roads - Mntnce,HRM,Supplies and Services,E,Communications n Computing,EH,04/10/2017,PAY00999633,HWEN,Highways Assets and Maint,72.88,Revenue,O2 (UK) Ltd
Brighton & Hove City Council,http://statistics.data.gov.uk/id/local-authority/00ML,Highways and Transportation,BVAHRT,Management Services (DEC),MGT,Supplies and Services,E,Communications n Computing,EH,04/10/2017,PAY00999633,HOTR,Head of City Transport,12.88,Revenue,O2 (UK) Ltd
Brighton & Hove City Council,http://statistics.data.gov.uk/id/local-authority/00ML,Highways and Transportation,BVAHRT,Parking Services,PRK,Supplies and Services,E,Communications n Computing,EH,04/10/2017,PAY00999633,PARK,Parking Services,120.44,Revenue,O2 (UK) Ltd
Brighton & Hove City Council,http://statistics.data.gov.uk/id/local-authority/00ML,Highways and Transportation,BVAHRT,Traffic Mgmnt and Road Safety,TMR,Supplies and Services,E,Communications n Computing,EH,04/10/2017,PAY00999633,TPRS,Transport Projects,36.07,Revenue,O2 (UK) Ltd
Brighton & Hove City Council,http://statistics.data.gov.uk/id/local-authority/00ML,Highways and Transportation,BVAHRT,Transport Plan Policy Strategy,TPP,Supplies and Services,E,Communications n Computing,EH,04/10/2017,PAY00999633,TPRS,Transport Projects,28.44,Revenue,O2 (UK) Ltd
Brighton & Hove City Council,http://statistics.data.gov.uk/id/local-authority/00ML,Highways and Transportation,BVAHRT,Transport Plan Policy Strategy,TPP,Supplies and Services,E,Communications n Computing,EH,04/10/2017,PAY00999633,TRPO,Transport Policy and Strategy,24.59,Revenue,O2 (UK) Ltd
Brighton & Hove City Council,http://statistics.data.gov.uk/id/local-authority/00ML,Housing General Fund,BVAHOG,Homelessness,HML,Supplies and Services,E,Communications n Computing,EH,04/10/2017,PAY00999633,ASSA,Hostel Accommodation,60.37,Revenue,O2 (UK) Ltd
Brighton & Hove City Council,http://statistics.data.gov.uk/id/local-authority/00ML,Housing General Fund,BVAHOG,Homelessness,HML,Supplies and Services,E,Communications n Computing,EH,04/10/2017,PAY00999633,HOPT,Housing Options,30.18,Revenue,O2 (UK) Ltd
Brighton & Hove City Council,http://statistics.data.gov.uk/id/local-authority/00ML,Housing General Fund,BVAHOG,Homelessness,HML,Supplies and Services,E,Communications n Computing,EH,04/10/2017,PAY00999633,HSAD,Housing Strategy & Development,10.28,Revenue,O2 (UK) Ltd
Brighton & Hove City Council,http://statistics.data.gov.uk/id/local-authority/00ML,Housing General Fund,BVAHOG,Homelessness,HML,Supplies and Services,E,Communications n Computing,EH,04/10/2017,PAY00999633,TAAS,Temp Accom and Allocations,56.69,Revenue,O2 (UK) Ltd
Brighton & Hove City Council,http://statistics.data.gov.uk/id/local-authority/00ML,Housing General Fund,BVAHOG,Homelessness,HML,Supplies and Services,E,Communications n Computing,EH,04/10/2017,PAY00999633,TRAV,Travellers,68.57,Revenue,O2 (UK) Ltd
Brighton & Hove City Council,http://statistics.data.gov.uk/id/local-authority/00ML,Housing General Fund,BVAHOG,Hsing Benefits,HGB,Supplies and Services,E,Communications n Computing,EH,04/10/2017,PAY00999633,REVS,Revenues and Benefits,39.3,Revenue,O2 (UK) Ltd
Brighton & Hove City Council,http://statistics.data.gov.uk/id/local-authority/00ML,Housing General Fund,BVAHOG,Hsing Strat Advice and RSLs,HGR,Supplies and Services,E,Communications n Computing,EH,04/10/2017,PAY00999633,HSAD,Housing Strategy & Development,39.17,Revenue,O2 (UK) Ltd
Brighton & Hove City Council,http://statistics.data.gov.uk/id/local-authority/00ML,Housing General Fund,BVAHOG,Hsing Welfare,HGW,Supplies and Services,E,Communications n Computing,EH,04/10/2017,PAY00999633,ASSA,Hostel Accommodation,2.77,Revenue,O2 (UK) Ltd
Brighton & Hove City Council,http://statistics.data.gov.uk/id/local-authority/00ML,Housing General Fund,BVAHOG,Hsing Welfare,HGW,Supplies and Services,E,Communications n Computing,EH,04/10/2017,PAY00999633,HOPT,Housing Options,10.45,Revenue,O2 (UK) Ltd
Brighton & Hove City Council,http://statistics.data.gov.uk/id/local-authority/00ML,Housing General Fund,BVAHOG,Management Services (DEC),MGT,Supplies and Services,E,Communications n Computing,EH,04/10/2017,PAY00999633,HOHG,Head of Housing GF,15.17,Revenue,O2 (UK) Ltd
Brighton & Hove City Council,http://statistics.data.gov.uk/id/local-authority/00ML,Housing General Fund,BVAHOG,Private Sector Hsing Renewal,PHR,Supplies and Services,E,Communications n Computing,EH,04/10/2017,PAY00999633,PSHG,Private Sector Housing,11.05,Revenue,O2 (UK) Ltd
Brighton & Hove City Council,http://statistics.data.gov.uk/id/local-authority/00ML,Housing Revenue Account,BVAHOU,Housing Del & Regeneration HRA,HGD,Supplies and Services,E,Communications n Computing,EH,04/10/2017,PAY00999633,HDAR,Housing Development & Regen,31.06,Revenue,O2 (UK) Ltd
Brighton & Hove City Council,http://statistics.data.gov.uk/id/local-authority/00ML,Housing Revenue Account,BVAHOU,Hsing Management - HRA,HGM,Supplies and Services,E,Communications n Computing,EH,04/10/2017,PAY00999633,HIII,Income Involvement Improvement,167.95,Revenue,O2 (UK) Ltd
Brighton & Hove City Council,http://statistics.data.gov.uk/id/local-authority/00ML,Housing Revenue Account,BVAHOU,Hsing Management - HRA,HGM,Supplies and Services,E,Communications n Computing,EH,04/10/2017,PAY00999633,HOHH,Head of Housing HRA,10,Revenue,O2 (UK) Ltd
Brighton & Hove City Council,http://statistics.data.gov.uk/id/local-authority/00ML,Housing Revenue Account,BVAHOU,Hsing Management - HRA,HGM,Supplies and Services,E,Communications n Computing,EH,04/10/2017,PAY00999633,HPAI,Property & Investment,431.44,Revenue,O2 (UK) Ltd
Brighton & Hove City Council,http://statistics.data.gov.uk/id/local-authority/00ML,Housing Revenue Account,BVAHOU,Hsing Management - HRA,HGM,Supplies and Services,E,Communications n Computing,EH,04/10/2017,PAY00999633,HSUP,Housing Support,54.06,Revenue,O2 (UK) Ltd
Brighton & Hove City Council,http://statistics.data.gov.uk/id/local-authority/00ML,Housing Revenue Account,BVAHOU,Hsing Management - HRA,HGM,Supplies and Services,E,Communications n Computing,EH,04/10/2017,PAY00999633,HTEN,Tenancy Services,735.55,Revenue,O2 (UK) Ltd
Brighton & Hove City Council,http://statistics.data.gov.uk/id/local-authority/00ML,Housing Revenue Account,BVAHOU,Hsing Strategy - HRA,HGT,Supplies and Services,E,Communications n Computing,EH,04/10/2017,PAY00999633,HSTR,Housing Strategy,6.19,Revenue,O2 (UK) Ltd
Brighton & Hove City Council,http://statistics.data.gov.uk/id/local-authority/00ML,Library Services,BVACUL,Library Service,LBR,Supplies and Services,E,Communications n Computing,EH,04/10/2017,PAY00999633,LIBS,Libraries,143.87,Revenue,O2 (UK) Ltd
Brighton & Hove City Council,http://statistics.data.gov.uk/id/local-authority/00ML,Non I&E,BVANON,Non-Council,NNC,Supplies and Services,E,Communications n Computing,EH,04/10/2017,PAY00999633,NBHC,Non Council,10,Revenue,O2 (UK) Ltd
Brighton & Hove City Council,http://statistics.data.gov.uk/id/local-authority/00ML,Planning and Development,BVAPLA,Building Control,BLD,Supplies and Services,E,Communications n Computing,EH,04/10/2017,PAY00999633,DEVP,Development Planning,161.32,Revenue,O2 (UK) Ltd
Brighton & Hove City Council,http://statistics.data.gov.uk/id/local-authority/00ML,Planning and Development,BVAPLA,Community Development,CDV,Supplies and Services,E,Communications n Computing,EH,04/10/2017,PAY00999633,CMNY,Communities and Equalities,60.3,Revenue,O2 (UK) Ltd
Brighton & Hove City Council,http://statistics.data.gov.uk/id/local-authority/00ML,Planning and Development,BVAPLA,Economic Development,ECD,Supplies and Services,E,Communications n Computing,EH,04/10/2017,PAY00999633,ECOD,Economic Development,74.75,Revenue,O2 (UK) Ltd
Brighton & Hove City Council,http://statistics.data.gov.uk/id/local-authority/00ML,Planning and Development,BVAPLA,Economic Development,ECD,Supplies and Services,E,Communications n Computing,EH,04/10/2017,PAY00999633,MJPR,Major Projects,64.07,Revenue,O2 (UK) Ltd
Brighton & Hove City Council,http://statistics.data.gov.uk/id/local-authority/00ML,Planning and Development,BVAPLA,Economic Development,ECD,Supplies and Services,E,Communications n Computing,EH,04/10/2017,PAY00999633,PART,Partnerships,24.5,Revenue,O2 (UK) Ltd
Brighton & Hove City Council,http://statistics.data.gov.uk/id/local-authority/00ML,Planning and Development,BVAPLA,Economic Development,ECD,Supplies and Services,E,Communications n Computing,EH,04/10/2017,PAY00999633,SUAI,Sustainability & International,10.03,Revenue,O2 (UK) Ltd
Brighton & Hove City Council,http://statistics.data.gov.uk/id/local-authority/00ML,Planning and Development,BVAPLA,Management Services (DEC),MGT,Supplies and Services,E,Communications n Computing,EH,04/10/2017,PAY00999633,ADEC,Assistant Director - EEC,35,Revenue,O2 (UK) Ltd
Brighton & Hove City Council,http://statistics.data.gov.uk/id/local-authority/00ML,Planning and Development,BVAPLA,Management Services (DEC),MGT,Supplies and Services,E,Communications n Computing,EH,04/10/2017,PAY00999633,HREG,Head of Regeneration,20.57,Revenue,O2 (UK) Ltd
Brighton & Hove City Council,http://statistics.data.gov.uk/id/local-authority/00ML,Planning and Development,BVAPLA,Planning Policy,PLP,Supplies and Services,E,Communications n Computing,EH,04/10/2017,PAY00999633,DEVP,Development Planning,9.4,Revenue,O2 (UK) Ltd
Brighton & Hove City Council,http://statistics.data.gov.uk/id/local-authority/00ML,Public Health,BVAPHE,Community Safety,CMY,Supplies and Services,E,Communications n Computing,EH,04/10/2017,PAY00999633,CSTP,Comm Safety Team & Partnership,24.5,Revenue,O2 (UK) Ltd
Brighton & Hove City Council,http://statistics.data.gov.uk/id/local-authority/00ML,Public Health,BVAPHE,Management Services (DEC),MGT,Supplies and Services,E,Communications n Computing,EH,04/10/2017,PAY00999633,DIRO,Director Office,43.74,Revenue,O2 (UK) Ltd
Brighton & Hove City Council,http://statistics.data.gov.uk/id/local-authority/00ML,Public Health,BVAPHE,Public Health,PHE,Supplies and Services,E,Communications n Computing,EH,04/10/2017,PAY00999633,PHCM,PH Commissioning,76.73,Revenue,O2 (UK) Ltd
Brighton & Hove City Council,http://statistics.data.gov.uk/id/local-authority/00ML,Adult Social Care,BVASOC,Social Care Activities,ACM,Supplies and Services,E,Communications n Computing,EH,04/10/2017,PAY00999635,ASIT,Assessment and SIT,20.98,Revenue,Posturite (UK) Ltd
Brighton & Hove City Council,http://statistics.data.gov.uk/id/local-authority/00ML,Adult Social Care,BVASOC,Social Care Activities,ACM,Supplies and Services,E,Print Stat & Gen Office Exps,ED,04/10/2017,PAY00999635,ASIT,Assessment and SIT,206.52,Revenue,Posturite (UK) Ltd
Brighton & Hove City Council,http://statistics.data.gov.uk/id/local-authority/00ML,Cultural and Related Serv,BVACUL,Open Spaces,PEN,Supplies and Services,E,Equip't Furniture n Materials,EA,04/10/2017,PAY00999636,CIPK,City Parks,972.58,Revenue,Rigby Taylor Ltd
Brighton & Hove City Council,http://statistics.data.gov.uk/id/local-authority/00ML,Adult Social Care,BVASOC,ASC Mental Health Support,MHP,Third Party Payments,F,Other Establishments,FH,04/10/2017,PAY00999637,MENH,Mental Health Support,2622,Revenue,RNID t/a Action on Hearing Loss
Brighton & Hove City Council,http://statistics.data.gov.uk/id/local-authority/00ML,Cultural and Related Serv,BVACUL,Culture and Heritage,CHG,Premises Related,C,Repair Maint n Alterations,CA,04/10/2017,PAY00999638,RPMU,Royal Pavilion and Museums,442.2,Revenue,SELS Ltd
Brighton & Hove City Council,http://statistics.data.gov.uk/id/local-authority/00ML,Environment & Regulatory Serv,BVAERS,Management Services (DEC),MGT,Transport Related,D,Direct Transport Costs,DA,04/10/2017,PAY00999639,CICL,City Clean,320,Revenue,Certas Energy UK Ltd
Brighton & Hove City Council,http://statistics.data.gov.uk/id/local-authority/00ML,Highways and Transportation,BVAHRT,Parking Services,PRK,Premises Related,C,Repair Maint n Alterations,CA,04/10/2017,PAY00999640,PARK,Parking Services,346.67,Revenue,Shaws of Brighton and Shoreham
Brighton & Hove City Council,http://statistics.data.gov.uk/id/local-authority/00ML,Cultural and Related Serv,BVACUL,Recreation and Sport,REC,Third Party Payments,F,Independent Units of Council,FA,04/10/2017,PAY00999641,SPLE,Sport and Leisure,1345,Revenue,Thomas Door & Window Controls Ltd
Brighton & Hove City Council,http://statistics.data.gov.uk/id/local-authority/00ML,Adult Social Care,BVASOC,ASC Memory Cognition Support,MEM,Premises Related,C,Cleaning n Domestic Supps,CH,04/10/2017,PAY00999642,RCOP,Resource Centres Older People,72.11,Revenue,Southern Counties Janitorial Supplies Ld
Brighton & Hove City Council,http://statistics.data.gov.uk/id/local-authority/00ML,Housing Revenue Account,BVAHOU,Hsing Management - HRA,HGM,Premises Related,C,Cleaning n Domestic Supps,CH,04/10/2017,PAY00999642,HTEN,Tenancy Services,525.21,Revenue,Southern Counties Janitorial Supplies Ld
Brighton & Hove City Council,http://statistics.data.gov.uk/id/local-authority/00ML,Children`s & Education Serv,BVAEDU,Ed Ed Other Other,ENF,Premises Related,C,Repair Maint n Alterations,CA,04/10/2017,PAY00999646,PROP,Property and Design,420,Revenue,Sussex Alarms Ltd
Brighton & Hove City Council,http://statistics.data.gov.uk/id/local-authority/00ML,Central Support and Overheads,BVACEN,Support Services (SSC),PPT,Premises Related,C,Repair Maint n Alterations,CA,04/10/2017,PAY00999647,PROP,Property and Design,3525,Revenue,Technique Engineering Ltd
Brighton & Hove City Council,http://statistics.data.gov.uk/id/local-authority/00ML,Highways and Transportation,BVAHRT,Parking Services,PRK,Supplies and Services,E,Equip't Furniture n Materials,EA,04/10/2017,PAY00999648,PARK,Parking Services,220,Revenue,Technical Engineering Ltd
Brighton & Hove City Council,http://statistics.data.gov.uk/id/local-authority/00ML,Children`s & Education Serv,BVAEDU,Child Srvcs Leaving Care,FAL,Transfer Payments,G,Other Transfer Payments,GD,04/10/2017,PAY00999649,CARL,Care Leavers,4840.78,Revenue,University Of Sussex
Brighton & Hove City Council,http://statistics.data.gov.uk/id/local-authority/00ML,Adult Social Care,BVASOC,ASC Memory Cognition Support,MEM,Premises Related,C,Cleaning n Domestic Supps,CH,04/10/2017,PAY00999650,RCOP,Resource Centres Older People,120.09,Revenue,Wightman & Parrish Ltd
Brighton & Hove City Council,http://statistics.data.gov.uk/id/local-authority/00ML,Adult Social Care,BVASOC,ASC Memory Cognition Support,MEM,Supplies and Services,E,Clothing Uniforms n Laundry,EC,04/10/2017,PAY00999650,RCOP,Resource Centres Older People,53.66,Revenue,Wightman & Parrish Ltd
Brighton & Hove City Council,http://statistics.data.gov.uk/id/local-authority/00ML,Adult Social Care,BVASOC,ASC Memory Cognition Support,MEM,Supplies and Services,E,Equip't Furniture n Materials,EA,04/10/2017,PAY00999650,RCOP,Resource Centres Older People,42.44,Revenue,Wightman & Parrish Ltd
Brighton & Hove City Council,http://statistics.data.gov.uk/id/local-authority/00ML,Adult Social Care,BVASOC,ASC Physical Support,PHY,Supplies and Services,E,Equip't Furniture n Materials,EA,04/10/2017,PAY00999650,RCOP,Resource Centres Older People,49.5,Revenue,Wightman & Parrish Ltd
Brighton & Hove City Council,http://statistics.data.gov.uk/id/local-authority/00ML,Adult Social Care,BVASOC,ASC Learning Disabilities,ALD,Third Party Payments,F,Other Establishments,FH,04/10/2017,PAY00999651,LDIS,Adults LD Community Care,2782.09,Revenue,A TAD Ltd t/a Carewatch (Brighton & Hove)
Brighton & Hove City Council,http://statistics.data.gov.uk/id/local-authority/00ML,Adult Social Care,BVASOC,ASC Memory Cognition Support,MEM,Third Party Payments,F,Other Establishments,FH,04/10/2017,PAY00999651,COGN,Memory Cognition Support,4687.49,Revenue,A TAD Ltd t/a Carewatch (Brighton & Hove)
Brighton & Hove City Council,http://statistics.data.gov.uk/id/local-authority/00ML,Adult Social Care,BVASOC,ASC Mental Health Support,MHP,Third Party Payments,F,Other Establishments,FH,04/10/2017,PAY00999651,MENH,Mental Health Support,4818.59,Revenue,A TAD Ltd t/a Carewatch (Brighton & Hove)
Brighton & Hove City Council,http://statistics.data.gov.uk/id/local-authority/00ML,Adult Social Care,BVASOC,ASC Physical Support,PHY,Customer n Client Receipts,M,Fees n Charges,MB,04/10/2017,PAY00999651,PHYS,Physical Support,74,Revenue,A TAD Ltd t/a Carewatch (Brighton & Hove)
Brighton & Hove City Council,http://statistics.data.gov.uk/id/local-authority/00ML,Adult Social Care,BVASOC,ASC Physical Support,PHY,Third Party Payments,F,Other Establishments,FH,04/10/2017,PAY00999651,PHYS,Physical Support,51549.86,Revenue,A TAD Ltd t/a Carewatch (Brighton & Hove)
Brighton & Hove City Council,http://statistics.data.gov.uk/id/local-authority/00ML,Adult Social Care,BVASOC,ASC Physical Support,PHY,Third Party Payments,F,Other Establishments,FH,04/10/2017,PAY00999652,PHYS,Physical Support,4368.57,Revenue,Crescent House
Brighton & Hove City Council,http://statistics.data.gov.uk/id/local-authority/00ML,Children`s & Education Serv,BVAEDU,Ed EY PVI,ENP,Supplies and Services,E,Grants n Subscriptions,EK,04/10/2017,PAY00999654,EYRS,Early Years,540,Revenue,Fiveways Playcentre
Brighton & Hove City Council,http://statistics.data.gov.uk/id/local-authority/00ML,Children`s & Education Serv,BVAEDU,Ed EY PVI,ENP,Supplies and Services,E,Grants n Subscriptions,EK,04/10/2017,PAY00999655,EYRS,Early Years,638,Revenue,ACPH Ltd T/a Hopscotch 
Brighton & Hove City Council,http://statistics.data.gov.uk/id/local-authority/00ML,Children`s & Education Serv,BVAEDU,Ed EY PVI,ENP,Supplies and Services,E,Grants n Subscriptions,EK,04/10/2017,PAY00999656,EYRS,Early Years,370.5,Revenue,Amigos Pre-School Playgroup
Brighton & Hove City Council,http://statistics.data.gov.uk/id/local-authority/00ML,Children`s & Education Serv,BVAEDU,Ed EY PVI,ENP,Supplies and Services,E,Grants n Subscriptions,EK,04/10/2017,PAY00999658,EYRS,Early Years,680,Revenue,Oak Cottage Nursery
Brighton & Hove City Council,http://statistics.data.gov.uk/id/local-authority/00ML,Children`s & Education Serv,BVAEDU,Ed EY PVI,ENP,Supplies and Services,E,Grants n Subscriptions,EK,04/10/2017,PAY00999659,EYRS,Early Years,1532,Revenue,Playcare Nursery
Brighton & Hove City Council,http://statistics.data.gov.uk/id/local-authority/00ML,Children`s & Education Serv,BVAEDU,Child Srvcs Leaving Care,FAL,Transfer Payments,G,Other Transfer Payments,GD,04/10/2017,PAY00999661,CARL,Care Leavers,460,Revenue,Hamilton Lodge (Brighton) Ltd
Brighton & Hove City Council,http://statistics.data.gov.uk/id/local-authority/00ML,Children`s & Education Serv,BVAEDU,Ed EY PVI,ENP,Supplies and Services,E,Grants n Subscriptions,EK,04/10/2017,PAY00999662,EYRS,Early Years,3491,Revenue,Puffin Community Nursery
Brighton & Hove City Council,http://statistics.data.gov.uk/id/local-authority/00ML,Children`s & Education Serv,BVAEDU,Ed EY PVI,ENP,Supplies and Services,E,Grants n Subscriptions,EK,04/10/2017,PAY00999663,EYRS,Early Years,371,Revenue,Orchard Day Nursery
Brighton & Hove City Council,http://statistics.data.gov.uk/id/local-authority/00ML,Adult Social Care,BVASOC,ASC Memory Cognition Support,MEM,Third Party Payments,F,Other Establishments,FH,04/10/2017,PAY00999664,COGN,Memory Cognition Support,365.3,Revenue,Hallifax Care Ltd
Brighton & Hove City Council,http://statistics.data.gov.uk/id/local-authority/00ML,Adult Social Care,BVASOC,ASC Mental Health Support,MHP,Third Party Payments,F,Other Establishments,FH,04/10/2017,PAY00999664,MENH,Mental Health Support,208.65,Revenue,Hallifax Care Ltd
Brighton & Hove City Council,http://statistics.data.gov.uk/id/local-authority/00ML,Adult Social Care,BVASOC,ASC Physical Support,PHY,Third Party Payments,F,Other Establishments,FH,04/10/2017,PAY00999664,PHYS,Physical Support,23460.09,Revenue,Hallifax Care Ltd
Brighton & Hove City Council,http://statistics.data.gov.uk/id/local-authority/00ML,Children`s & Education Serv,BVAEDU,Ed EY PVI,ENP,Supplies and Services,E,Grants n Subscriptions,EK,04/10/2017,PAY00999666,EYRS,Early Years,463,Revenue,Joyland
Brighton & Hove City Council,http://statistics.data.gov.uk/id/local-authority/00ML,Children`s & Education Serv,BVAEDU,Ed EY PVI,ENP,Supplies and Services,E,Grants n Subscriptions,EK,04/10/2017,PAY00999668,EYRS,Early Years,463,Revenue,Stepping Stones Pre School - Portslade
Brighton & Hove City Council,http://statistics.data.gov.uk/id/local-authority/00ML,Central Support and Overheads,BVACEN,Support Services (SSC),PPT,Supplies and Services,E,Communications n Computing,EH,04/10/2017,PAY00999669,ICTA,ICT,4433.68,Revenue,Oracle Corporation UK Ltd
Brighton & Hove City Council,http://statistics.data.gov.uk/id/local-authority/00ML,Cultural and Related Serv,BVACUL,Culture and Heritage,CHG,Supplies and Services,E,Miscellaneous Expenses,EM,04/10/2017,PAY00999670,RPMU,Royal Pavilion and Museums,921.3,Revenue,R B Construction Group Limited
Brighton & Hove City Council,http://statistics.data.gov.uk/id/local-authority/00ML,Non I&E,BVANON,CAP Education Services,4ED,New Construction n Conversion,PB,New Construction n Conversion,PBL5,04/10/2017,PAY00999671,OEDS,Other Education Support,6518.58,Capital,Bramber Construction Co Ltd
Brighton & Hove City Council,http://statistics.data.gov.uk/id/local-authority/00ML,Highways and Transportation,BVAHRT,Highways and Roads - Mntnce,HRM,Premises Related,C,Repair Maint n Alterations,CA,04/10/2017,PAY00999672,HIGH,Traffic Management,988.44,Revenue,Colas Limited
Brighton & Hove City Council,http://statistics.data.gov.uk/id/local-authority/00ML,Highways and Transportation,BVAHRT,Traffic Mgmnt and Road Safety,TMR,Supplies and Services,E,Services,EF,04/10/2017,PAY00999672,HIGH,Traffic Management,525,Revenue,Colas Limited
Brighton & Hove City Council,http://statistics.data.gov.uk/id/local-authority/00ML,Highways and Transportation,BVAHRT,Highways and Roads - Mntnce,HRM,Supplies and Services,E,Miscellaneous Expenses,EM,04/10/2017,PAY00999673,HIGH,Traffic Management,891.55,Revenue,Edburton Contractors Ltd
Brighton & Hove City Council,http://statistics.data.gov.uk/id/local-authority/00ML,Central Support and Overheads,BVACEN,Holding Accounts,PPH,Premises Related,C,Repair Maint n Alterations,CA,04/10/2017,PAY00999675,PROP,Property and Design,287.5,Revenue,P H Beck Ltd
Brighton & Hove City Council,http://statistics.data.gov.uk/id/local-authority/00ML,Central Support and Overheads,BVACEN,Support Services (SSC),PPT,Premises Related,C,Repair Maint n Alterations,CA,04/10/2017,PAY00999675,PROP,Property and Design,1096.25,Revenue,P H Beck Ltd
Brighton & Hove City Council,http://statistics.data.gov.uk/id/local-authority/00ML,Non I&E,BVANON,CAP Transport,4TR,New Construction n Conversion,PB,New Construction n Conversion,PBL5,04/10/2017,PAY00999676,HWEN,Highways Assets and Maint,1207.45,Capital,R J Dance (Contractors) Ltd
Brighton & Hove City Council,http://statistics.data.gov.uk/id/local-authority/00ML,Non I&E,BVANON,CAP Education Services,4ED,New Construction n Conversion,PB,New Construction n Conversion,PBL5,04/10/2017,PAY00999677,OEDS,Other Education Support,42178.88,Capital,Tasker Catchpole Ltd
Brighton & Hove City Council,http://statistics.data.gov.uk/id/local-authority/00ML,Non I&E,BVANON,Cap - Housing Services - HRA,4HR,New Construction n Conversion,PB,New Construction n Conversion,PBL5,04/10/2017,PAY00999678,HPAI,Property & Investment,171130.58,Capital,Westridge Construction Ltd
Brighton & Hove City Council,http://statistics.data.gov.uk/id/local-authority/00ML,Adult Social Care,BVASOC,ASC Learning Disabilities,ALD,Customer n Client Receipts,M,Fees n Charges,MB,04/10/2017,PAY00999679,LDIS,Adults LD Community Care,-200,Revenue,Mencap H & S Region 4
Brighton & Hove City Council,http://statistics.data.gov.uk/id/local-authority/00ML,Adult Social Care,BVASOC,ASC Learning Disabilities,ALD,Third Party Payments,F,Other Establishments,FH,04/10/2017,PAY00999679,LDIS,Adults LD Community Care,2389.04,Revenue,Mencap H & S Region 4
Brighton & Hove City Council,http://statistics.data.gov.uk/id/local-authority/00ML,Children`s & Education Serv,BVAEDU,Ed Ed Other Other,ENF,Premises Related,C,Repair Maint n Alterations,CA,04/10/2017,PAY00999680,PROP,Property and Design,218,Revenue,Catercraft Supplies Ltd
Brighton & Hove City Council,http://statistics.data.gov.uk/id/local-authority/00ML,Children`s & Education Serv,BVAEDU,Ed Ed Other Other,ENF,Premises Related,C,Repair Maint n Alterations,CA,04/10/2017,PAY00999680,SCOR,School Organisation, -   ,Revenue,Catercraft Supplies Ltd
Brighton & Hove City Council,http://statistics.data.gov.uk/id/local-authority/00ML,Children`s & Education Serv,BVAEDU,Ed Ed Other LA Attrib Sch,ELA,Transport Related,D,Other Transport Costs,DG,04/10/2017,PAY00999681,SCOR,School Organisation,2498.2,Revenue,Brighton & Hove Radio Cabs Ltd
Brighton & Hove City Council,http://statistics.data.gov.uk/id/local-authority/00ML,Adult Social Care,BVASOC,Social Care Activities,ACM,Transport Related,D,Public Transport,DD,04/10/2017,PAY00999683,ASIT,Assessment and SIT,183,Revenue,Brighton & Hove Bus and Coach Co Ltd
Brighton & Hove City Council,http://statistics.data.gov.uk/id/local-authority/00ML,Children`s & Education Serv,BVAEDU,Child Srvcs - Other Fam Supp,FFX,Transfer Payments,G,Other Transfer Payments,GD,04/10/2017,PAY00999683,FAMP,Families\Prevention,342.1,Revenue,Brighton & Hove Bus and Coach Co Ltd
Brighton & Hove City Council,http://statistics.data.gov.uk/id/local-authority/00ML,Children`s & Education Serv,BVAEDU,Child Srvcs - Othr LAC Svcs,FLX,Transfer Payments,G,Other Transfer Payments,GD,04/10/2017,PAY00999683,AVFM,Agency Placements\VFM,224.1,Revenue,Brighton & Hove Bus and Coach Co Ltd
Brighton & Hove City Council,http://statistics.data.gov.uk/id/local-authority/00ML,Children`s & Education Serv,BVAEDU,Ed EY Central,EAE,Transport Related,D,Public Transport,DD,04/10/2017,PAY00999683,EYRS,Early Years,212.4,Revenue,Brighton & Hove Bus and Coach Co Ltd
Brighton & Hove City Council,http://statistics.data.gov.uk/id/local-authority/00ML,Environment & Regulatory Serv,BVAERS,Environmental Health,EVH,Transport Related,D,Other Transport Costs,DG,04/10/2017,PAY00999683,HIGH,Traffic Management,75,Revenue,Brighton & Hove Bus and Coach Co Ltd
Brighton & Hove City Council,http://statistics.data.gov.uk/id/local-authority/00ML,Children`s & Education Serv,BVAEDU,Ed EY PVI,ENP,Supplies and Services,E,Grants n Subscriptions,EK,04/10/2017,PAY00999684,EYRS,Early Years,1240,Revenue,University of Brighton
Brighton & Hove City Council,http://statistics.data.gov.uk/id/local-authority/00ML,Highways and Transportation,BVAHRT,Transport Plan Policy Strategy,TPP,Supplies and Services,E,Services,EF,04/10/2017,PAY00999684,TPRS,Transport Projects,1250,Revenue,University of Brighton
Brighton & Hove City Council,http://statistics.data.gov.uk/id/local-authority/00ML,Planning and Development,BVAPLA,Management Services (DEC),MGT,Direct Employees,A,Salaries,AA,04/10/2017,PAY00999685,HREG,Head of Regeneration,15240,Revenue,Penna PLC (Recruitment Solutions)
Brighton & Hove City Council,http://statistics.data.gov.uk/id/local-authority/00ML,Children`s & Education Serv,BVAEDU,Child Srvcs Leaving Care,FAL,Transfer Payments,G,Other Transfer Payments,GD,04/10/2017,PAY00999686,CARL,Care Leavers,1411.69,Revenue,Sanctuary Housing Association
Brighton & Hove City Council,http://statistics.data.gov.uk/id/local-authority/00ML,Housing General Fund,BVAHOG,Homelessness,HML,Premises Related,C,Rents Payable,CC,04/10/2017,PAY00999687,TAAS,Temp Accom and Allocations,975,Revenue,Payment to Individual
Brighton & Hove City Council,http://statistics.data.gov.uk/id/local-authority/00ML,Children`s & Education Serv,BVAEDU,Management Services (DEC),MGT,Supplies and Services,E,Services,EF,04/10/2017,PAY00999688,SOCK,Social Work,625,Revenue,Payment to Individual
Brighton & Hove City Council,http://statistics.data.gov.uk/id/local-authority/00ML,Children`s & Education Serv,BVAEDU,Child Srvcs - Fostering,FLF,Direct Employees,A,Salaries,AA,04/10/2017,PAY00999689,CHIC,Fostering and Adoption,336.25,Revenue,Time Out Fostering Ltd
Brighton & Hove City Council,http://statistics.data.gov.uk/id/local-authority/00ML,Children`s & Education Serv,BVAEDU,Child Srvcs - Other Fam Supp,FFX,Direct Employees,A,Salaries,AA,04/10/2017,PAY00999689,FAMP,Families\Prevention,732.65,Revenue,Time Out Fostering Ltd
Brighton & Hove City Council,http://statistics.data.gov.uk/id/local-authority/00ML,Environment & Regulatory Serv,BVAERS,Court Services,CRT,Premises Related,C,Rents Payable,CC,04/10/2017,PAY00999691,CORO,Coroner,6833.33,Revenue,Jurys Inn (UK) Ltd
Brighton & Hove City Council,http://statistics.data.gov.uk/id/local-authority/00ML,Housing General Fund,BVAHOG,Homelessness,HML,Premises Related,C,Rents Payable,CC,04/10/2017,PAY00999692,TAAS,Temp Accom and Allocations,1200,Revenue,Payment to Individual
Brighton & Hove City Council,http://statistics.data.gov.uk/id/local-authority/00ML,Non I&E,BVANON,CAP Housing Services GF,4HG,Capital Grants,PF,Capital Grants,PFL5,04/10/2017,PAY00999693,PSHG,Private Sector Housing,4254,Capital,Wealden Services Limited
Brighton & Hove City Council,http://statistics.data.gov.uk/id/local-authority/00ML,Housing General Fund,BVAHOG,Homelessness,HML,Premises Related,C,Rents Payable,CC,04/10/2017,PAY00999696,TAAS,Temp Accom and Allocations,1100,Revenue,CWP Residential LLP
Brighton & Hove City Council,http://statistics.data.gov.uk/id/local-authority/00ML,Children`s & Education Serv,BVAEDU,Management Services (DEC),MGT,Supplies and Services,E,Services,EF,04/10/2017,PAY00999697,SOCK,Social Work,2725,Revenue,Payment to Individual
Brighton & Hove City Council,http://statistics.data.gov.uk/id/local-authority/00ML,Housing General Fund,BVAHOG,Homelessness,HML,Premises Related,C,Rents Payable,CC,04/10/2017,PAY00999698,TAAS,Temp Accom and Allocations,885,Revenue,Sareen Properties & Co
Brighton & Hove City Council,http://statistics.data.gov.uk/id/local-authority/00ML,Housing General Fund,BVAHOG,Homelessness,HML,Premises Related,C,Rents Payable,CC,04/10/2017,PAY00999699,TAAS,Temp Accom and Allocations,925,Revenue,Payment to Individual
Brighton & Hove City Council,http://statistics.data.gov.uk/id/local-authority/00ML,Non I&E,BVANON,CAP Education Services,4ED,New Construction n Conversion,PB,New Construction n Conversion,PBL5,04/10/2017,PAY00999702,OEDS,Other Education Support,23967,Capital,Heatcraft (Heating & Ventilation) Ltd
Brighton & Hove City Council,http://statistics.data.gov.uk/id/local-authority/00ML,Adult Social Care,BVASOC,ASC Learning Disabilities,ALD,Supplies and Services,E,Equip't Furniture n Materials,EA,04/10/2017,PAY00999703,LDSU,Supported Employment,284.35,Revenue,Ralawise Ltd
Brighton & Hove City Council,http://statistics.data.gov.uk/id/local-authority/00ML,Adult Social Care,BVASOC,ASC Learning Disabilities,ALD,Customer n Client Receipts,M,Fees n Charges,MB,04/10/2017,PAY00999706,LDIS,Adults LD Community Care,-1312,Revenue,Livability
Brighton & Hove City Council,http://statistics.data.gov.uk/id/local-authority/00ML,Adult Social Care,BVASOC,ASC Learning Disabilities,ALD,Third Party Payments,F,Other Establishments,FH,04/10/2017,PAY00999706,LDIS,Adults LD Community Care,23481.28,Revenue,Livability
Brighton & Hove City Council,http://statistics.data.gov.uk/id/local-authority/00ML,Housing General Fund,BVAHOG,Homelessness,HML,Premises Related,C,Rents Payable,CC,04/10/2017,PAY00999707,TAAS,Temp Accom and Allocations,950,Revenue,Payment to Individual
Brighton & Hove City Council,http://statistics.data.gov.uk/id/local-authority/00ML,Children`s & Education Serv,BVAEDU,Ed EY PVI,ENP,Supplies and Services,E,Grants n Subscriptions,EK,04/10/2017,PAY00999708,EYRS,Early Years,371,Revenue,Ovingdean Nursery School
Brighton & Hove City Council,http://statistics.data.gov.uk/id/local-authority/00ML,Housing General Fund,BVAHOG,Homelessness,HML,Premises Related,C,Rents Payable,CC,04/10/2017,PAY00999709,TAAS,Temp Accom and Allocations,615,Revenue,NewCoast Ltd
Brighton & Hove City Council,http://statistics.data.gov.uk/id/local-authority/00ML,Housing General Fund,BVAHOG,Homelessness,HML,Premises Related,C,Rents Payable,CC,04/10/2017,PAY00999711,TAAS,Temp Accom and Allocations,725,Revenue,Payment to Individual
Brighton & Hove City Council,http://statistics.data.gov.uk/id/local-authority/00ML,Non I&E,BVANON,CAP Housing Services GF,4HG,Capital Grants,PF,Capital Grants,PFL5,04/10/2017,PAY00999712,PSHG,Private Sector Housing,1000,Capital,Brighton Able Ltd
Brighton & Hove City Council,http://statistics.data.gov.uk/id/local-authority/00ML,Central Support and Overheads,BVACEN,Support Services (SSC),PPT,Indirect Employees,B,Training,BM,04/10/2017,PAY00999713,ORGD,Organisational Development,600,Revenue,Habinteg Housing Association Ltd
Brighton & Hove City Council,http://statistics.data.gov.uk/id/local-authority/00ML,Housing General Fund,BVAHOG,Homelessness,HML,Premises Related,C,Rents Payable,CC,04/10/2017,PAY00999714,TAAS,Temp Accom and Allocations,1250,Revenue,Eagle Estates Ltd
Brighton & Hove City Council,http://statistics.data.gov.uk/id/local-authority/00ML,Central Support and Overheads,BVACEN,Support Services (SSC),PPT,Supplies and Services,E,Communications n Computing,EH,04/10/2017,PAY00999715,ICTA,ICT,3529.25,Revenue,Satisnet Limited
Brighton & Hove City Council,http://statistics.data.gov.uk/id/local-authority/00ML,Housing General Fund,BVAHOG,Homelessness,HML,Premises Related,C,Rents Payable,CC,04/10/2017,PAY00999718,TAAS,Temp Accom and Allocations,850,Revenue,Geneva Investments  Ltd
Brighton & Hove City Council,http://statistics.data.gov.uk/id/local-authority/00ML,Housing General Fund,BVAHOG,Homelessness,HML,Premises Related,C,Rents Payable,CC,04/10/2017,PAY00999719,TAAS,Temp Accom and Allocations,875,Revenue,Payment to Individual
Brighton & Hove City Council,http://statistics.data.gov.uk/id/local-authority/00ML,Children`s & Education Serv,BVAEDU,Child Srvcs Other,FAX,Direct Employees,A,Salaries,AA,04/10/2017,PAY00999722,SPEA,Specialist Assessment,300,Revenue,The AIM Project
Brighton & Hove City Council,http://statistics.data.gov.uk/id/local-authority/00ML,Children`s & Education Serv,BVAEDU,Child Srvcs - Other Fam Supp,FFX,Transfer Payments,G,Other Transfer Payments,GD,04/10/2017,PAY00999723,FAMP,Families\Prevention,950,Revenue,Belvoir Lettings
Brighton & Hove City Council,http://statistics.data.gov.uk/id/local-authority/00ML,Adult Social Care,BVASOC,ASC Physical Support,PHY,Third Party Payments,F,Other Establishments,FH,04/10/2017,PAY00999724,PHYS,Physical Support,1006.63,Revenue,Payment to Individual
Brighton & Hove City Council,http://statistics.data.gov.uk/id/local-authority/00ML,Children`s & Education Serv,BVAEDU,Child Srvcs Direct Pymts,FFD,Third Party Payments,F,Other Establishments,FH,04/10/2017,PAY00999727,DISS,Childrens Disability Services,613.5,Revenue,Payment to Individual
Brighton & Hove City Council,http://statistics.data.gov.uk/id/local-authority/00ML,Housing General Fund,BVAHOG,Homelessness,HML,Premises Related,C,Rents Payable,CC,04/10/2017,PAY00999728,TAAS,Temp Accom and Allocations,870,Revenue,Payment to Individual
Brighton & Hove City Council,http://statistics.data.gov.uk/id/local-authority/00ML,Children`s & Education Serv,BVAEDU,Child Srvcs - Secure Accomm,FLA,Third Party Payments,F,Other Local Authorities,FB,04/10/2017,PAY00999729,AVFM,Agency Placements\VFM,24800,Revenue,Neath Port Talbot County Borough Council
Brighton & Hove City Council,http://statistics.data.gov.uk/id/local-authority/00ML,Housing General Fund,BVAHOG,Homelessness,HML,Premises Related,C,Rents Payable,CC,04/10/2017,PAY00999731,TAAS,Temp Accom and Allocations,1320,Revenue,Payment to Individual
Brighton & Hove City Council,http://statistics.data.gov.uk/id/local-authority/00ML,Children`s & Education Serv,BVAEDU,Child Srvcs Asylum Seekers,FAY,Third Party Payments,F,Other Establishments,FH,04/10/2017,PAY00999732,AVFM,Agency Placements\VFM,420,Revenue,ISE Language Ltd (ISE Hove)
Brighton & Hove City Council,http://statistics.data.gov.uk/id/local-authority/00ML,Children`s & Education Serv,BVAEDU,Ed EY PVI,ENP,Supplies and Services,E,Grants n Subscriptions,EK,04/10/2017,PAY00999733,EYRS,Early Years,463,Revenue,Coral Pre School
Brighton & Hove City Council,http://statistics.data.gov.uk/id/local-authority/00ML,Housing General Fund,BVAHOG,Homelessness,HML,Premises Related,C,Rents Payable,CC,04/10/2017,PAY00999734,TAAS,Temp Accom and Allocations,925,Revenue,Payment to Individual
Brighton & Hove City Council,http://statistics.data.gov.uk/id/local-authority/00ML,Housing General Fund,BVAHOG,Homelessness,HML,Premises Related,C,Rents Payable,CC,04/10/2017,PAY00999735,TAAS,Temp Accom and Allocations,2750,Revenue,Pepita Investments Ltd
Brighton & Hove City Council,http://statistics.data.gov.uk/id/local-authority/00ML,Housing General Fund,BVAHOG,Homelessness,HML,Premises Related,C,Rents Payable,CC,04/10/2017,PAY00999736,TAAS,Temp Accom and Allocations,920,Revenue,Payment to Individual
Brighton & Hove City Council,http://statistics.data.gov.uk/id/local-authority/00ML,Housing General Fund,BVAHOG,Homelessness,HML,Premises Related,C,Rents Payable,CC,04/10/2017,PAY00999737,TAAS,Temp Accom and Allocations,900,Revenue,Payment to Individual
Brighton & Hove City Council,http://statistics.data.gov.uk/id/local-authority/00ML,Housing General Fund,BVAHOG,Homelessness,HML,Premises Related,C,Rents Payable,CC,04/10/2017,PAY00999739,TAAS,Temp Accom and Allocations,1025,Revenue,Payment to Individual
Brighton & Hove City Council,http://statistics.data.gov.uk/id/local-authority/00ML,Housing General Fund,BVAHOG,Homelessness,HML,Premises Related,C,Rents Payable,CC,04/10/2017,PAY00999742,TAAS,Temp Accom and Allocations,1000,Revenue,Payment to Individual
Brighton & Hove City Council,http://statistics.data.gov.uk/id/local-authority/00ML,Housing General Fund,BVAHOG,Homelessness,HML,Premises Related,C,Rents Payable,CC,04/10/2017,PAY00999743,TAAS,Temp Accom and Allocations,850,Revenue,Payment to Individual
Brighton & Hove City Council,http://statistics.data.gov.uk/id/local-authority/00ML,Housing General Fund,BVAHOG,Homelessness,HML,Premises Related,C,Rents Payable,CC,04/10/2017,PAY00999745,TAAS,Temp Accom and Allocations,967,Revenue,Payment to Individual
Brighton & Hove City Council,http://statistics.data.gov.uk/id/local-authority/00ML,Adult Social Care,BVASOC,ASC Learning Disabilities,ALD,Customer n Client Receipts,M,Fees n Charges,MB,04/10/2017,PAY00999746,LDIS,Adults LD Community Care,-100,Revenue,Outreach 3Way
Brighton & Hove City Council,http://statistics.data.gov.uk/id/local-authority/00ML,Adult Social Care,BVASOC,ASC Learning Disabilities,ALD,Third Party Payments,F,Other Establishments,FH,04/10/2017,PAY00999746,LDIS,Adults LD Community Care,10487,Revenue,Outreach 3Way
Brighton & Hove City Council,http://statistics.data.gov.uk/id/local-authority/00ML,Children`s & Education Serv,BVAEDU,Child Srvcs - Other Fam Supp,FFX,Supplies and Services,E,Services,EF,04/10/2017,PAY00999747,ITFF,Integrated Team For Families,4610.16,Revenue,Triple P UK Limited
Brighton & Hove City Council,http://statistics.data.gov.uk/id/local-authority/00ML,Housing General Fund,BVAHOG,Homelessness,HML,Premises Related,C,Rents Payable,CC,04/10/2017,PAY00999748,TAAS,Temp Accom and Allocations,1000,Revenue,Payment to Individual
Brighton & Hove City Council,http://statistics.data.gov.uk/id/local-authority/00ML,Environment & Regulatory Serv,BVAERS,Waste Management,WMT,Transport Related,D,Contract Hire n Operating Leas,DB,04/10/2017,PAY00999749,CICL,City Clean,2485.72,Revenue,Euro Self Drive
Brighton & Hove City Council,http://statistics.data.gov.uk/id/local-authority/00ML,Housing General Fund,BVAHOG,Homelessness,HML,Transport Related,D,Contract Hire n Operating Leas,DB,04/10/2017,PAY00999749,TAAS,Temp Accom and Allocations,480,Revenue,Euro Self Drive
Brighton & Hove City Council,http://statistics.data.gov.uk/id/local-authority/00ML,Housing General Fund,BVAHOG,Hsing Strat Advice and RSLs,HGR,Premises Related,C,Rents Payable,CC,04/10/2017,PAY00999750,HSAD,Housing Strategy & Development,5025,Revenue,Brook Data Consulting
Brighton & Hove City Council,http://statistics.data.gov.uk/id/local-authority/00ML,Housing General Fund,BVAHOG,Homelessness,HML,Premises Related,C,Rents Payable,CC,04/10/2017,PAY00999752,TAAS,Temp Accom and Allocations,1000,Revenue,Payment to Individual
Brighton & Hove City Council,http://statistics.data.gov.uk/id/local-authority/00ML,Housing General Fund,BVAHOG,Homelessness,HML,Premises Related,C,Rents Payable,CC,04/10/2017,PAY00999753,TAAS,Temp Accom and Allocations,875,Revenue,Payment to Individual
Brighton & Hove City Council,http://statistics.data.gov.uk/id/local-authority/00ML,Housing General Fund,BVAHOG,Homelessness,HML,Premises Related,C,Rents Payable,CC,04/10/2017,PAY00999754,TAAS,Temp Accom and Allocations,1950,Revenue,Payment to Individual
Brighton & Hove City Council,http://statistics.data.gov.uk/id/local-authority/00ML,Environment & Regulatory Serv,BVAERS,Environmental Health,EVH,Supplies and Services,E,Services,EF,04/10/2017,PAY00999756,PUPO,Public Protection,5700,Revenue,Alphaguard K9 Ltd
Brighton & Hove City Council,http://statistics.data.gov.uk/id/local-authority/00ML,Adult Social Care,BVASOC,ASC Physical Support,PHY,Third Party Payments,F,Other Establishments,FH,04/10/2017,PAY00999757,PHYS,Physical Support,897.5,Revenue,Payment to Individual
Brighton & Hove City Council,http://statistics.data.gov.uk/id/local-authority/00ML,Central Support and Overheads,BVACEN,Support Services (SSC),PPT,Supplies and Services,E,Services,EF,04/10/2017,PAY00999758,SCOR,School Organisation,10800.71,Revenue,Treetop Printing & Design LLP
Brighton & Hove City Council,http://statistics.data.gov.uk/id/local-authority/00ML,Cultural and Related Serv,BVACUL,Open Spaces,PEN,Supplies and Services,E,Equip't Furniture n Materials,EA,04/10/2017,PAY00999759,CIPK,City Parks,653.4,Revenue,Landscape Supply Company
Brighton & Hove City Council,http://statistics.data.gov.uk/id/local-authority/00ML,Housing General Fund,BVAHOG,Hsing Welfare,HGW,Transfer Payments,G,Supporting People,GF,04/10/2017,PAY00999761,CONT,Contracts,2500,Revenue,Sussex Nightstop Plus
Brighton & Hove City Council,http://statistics.data.gov.uk/id/local-authority/00ML,Housing General Fund,BVAHOG,Homelessness,HML,Premises Related,C,Rents Payable,CC,04/10/2017,PAY00999762,TAAS,Temp Accom and Allocations,850,Revenue,Payment to Individual
Brighton & Hove City Council,http://statistics.data.gov.uk/id/local-authority/00ML,Housing General Fund,BVAHOG,Homelessness,HML,Premises Related,C,Rents Payable,CC,04/10/2017,PAY00999764,TAAS,Temp Accom and Allocations,1150,Revenue,Payment to Individual
Brighton & Hove City Council,http://statistics.data.gov.uk/id/local-authority/00ML,Children`s & Education Serv,BVAEDU,Ed EY PVI,ENP,Supplies and Services,E,Grants n Subscriptions,EK,04/10/2017,PAY00999765,EYRS,Early Years,463,Revenue,Footsteps Day Nursery (Hove)
Brighton & Hove City Council,http://statistics.data.gov.uk/id/local-authority/00ML,Housing General Fund,BVAHOG,Homelessness,HML,Premises Related,C,Rents Payable,CC,04/10/2017,PAY00999766,TAAS,Temp Accom and Allocations,800,Revenue,Payment to Individual
Brighton & Hove City Council,http://statistics.data.gov.uk/id/local-authority/00ML,Adult Social Care,BVASOC,ASC Learning Disabilities,ALD,Third Party Payments,F,Other Establishments,FH,04/10/2017,PAY00999767,LDIS,Adults LD Community Care,318.69,Revenue,Care Outlook
Brighton & Hove City Council,http://statistics.data.gov.uk/id/local-authority/00ML,Adult Social Care,BVASOC,ASC Memory Cognition Support,MEM,Third Party Payments,F,Other Establishments,FH,04/10/2017,PAY00999767,COGN,Memory Cognition Support,2166.7,Revenue,Care Outlook
Brighton & Hove City Council,http://statistics.data.gov.uk/id/local-authority/00ML,Adult Social Care,BVASOC,ASC Mental Health Support,MHP,Customer n Client Receipts,M,Fees n Charges,MB,04/10/2017,PAY00999767,MENH,Mental Health Support,-71,Revenue,Care Outlook
Brighton & Hove City Council,http://statistics.data.gov.uk/id/local-authority/00ML,Adult Social Care,BVASOC,ASC Mental Health Support,MHP,Third Party Payments,F,Other Establishments,FH,04/10/2017,PAY00999767,MENH,Mental Health Support,2983.68,Revenue,Care Outlook
Brighton & Hove City Council,http://statistics.data.gov.uk/id/local-authority/00ML,Adult Social Care,BVASOC,ASC Physical Support,PHY,Customer n Client Receipts,M,Fees n Charges,MB,04/10/2017,PAY00999767,PHYS,Physical Support,-37,Revenue,Care Outlook
Brighton & Hove City Council,http://statistics.data.gov.uk/id/local-authority/00ML,Adult Social Care,BVASOC,ASC Physical Support,PHY,Third Party Payments,F,Other Establishments,FH,04/10/2017,PAY00999767,PHYS,Physical Support,16723.44,Revenue,Care Outlook
Brighton & Hove City Council,http://statistics.data.gov.uk/id/local-authority/00ML,Children`s & Education Serv,BVAEDU,Child Srvcs Leaving Care,FAL,Transfer Payments,G,Other Transfer Payments,GD,04/10/2017,PAY00999769,CARL,Care Leavers,271,Revenue,Payment to Individual
Brighton & Hove City Council,http://statistics.data.gov.uk/id/local-authority/00ML,Children`s & Education Serv,BVAEDU,Ed EY PVI,ENP,Supplies and Services,E,Grants n Subscriptions,EK,04/10/2017,PAY00999770,EYRS,Early Years,463,Revenue,Angmering Day Nurseries Ltd
Brighton & Hove City Council,http://statistics.data.gov.uk/id/local-authority/00ML,Housing General Fund,BVAHOG,Homelessness,HML,Premises Related,C,Rents Payable,CC,04/10/2017,PAY00999771,TAAS,Temp Accom and Allocations,1300,Revenue,Payment to Individual
Brighton & Hove City Council,http://statistics.data.gov.uk/id/local-authority/00ML,Housing General Fund,BVAHOG,Homelessness,HML,Premises Related,C,Rents Payable,CC,04/10/2017,PAY00999772,TAAS,Temp Accom and Allocations,2740,Revenue,L B Longley Investments Limited
Brighton & Hove City Council,http://statistics.data.gov.uk/id/local-authority/00ML,Housing General Fund,BVAHOG,Homelessness,HML,Premises Related,C,Rents Payable,CC,04/10/2017,PAY00999773,TAAS,Temp Accom and Allocations,975,Revenue,Payment to Individual
Brighton & Hove City Council,http://statistics.data.gov.uk/id/local-authority/00ML,Cultural and Related Serv,BVACUL,Culture and Heritage,CHG,Supplies and Services,E,Services,EF,04/10/2017,PAY00999777,RPMU,Royal Pavilion and Museums,4500,Revenue,Learning Unlimited
Brighton & Hove City Council,http://statistics.data.gov.uk/id/local-authority/00ML,Housing General Fund,BVAHOG,Homelessness,HML,Premises Related,C,Rents Payable,CC,04/10/2017,PAY00999778,TAAS,Temp Accom and Allocations,850,Revenue,Payment to Individual
Brighton & Hove City Council,http://statistics.data.gov.uk/id/local-authority/00ML,Housing General Fund,BVAHOG,Homelessness,HML,Premises Related,C,Rents Payable,CC,04/10/2017,PAY00999779,TAAS,Temp Accom and Allocations,1850,Revenue,Payment to Individual
Brighton & Hove City Council,http://statistics.data.gov.uk/id/local-authority/00ML,Children`s & Education Serv,BVAEDU,Management Services (DEC),MGT,Supplies and Services,E,Services,EF,04/10/2017,PAY00999780,SOCK,Social Work,425,Revenue,Payment to Individual
Brighton & Hove City Council,http://statistics.data.gov.uk/id/local-authority/00ML,Environment & Regulatory Serv,BVAERS,Environmental Health,EVH,Supplies and Services,E,Services,EF,04/10/2017,PAY00999781,PUPO,Public Protection,516.39,Revenue,Oathall Veterinary Group
Brighton & Hove City Council,http://statistics.data.gov.uk/id/local-authority/00ML,Housing General Fund,BVAHOG,Homelessness,HML,Premises Related,C,Rents Payable,CC,04/10/2017,PAY00999783,TAAS,Temp Accom and Allocations,1250,Revenue,Payment to Individual
Brighton & Hove City Council,http://statistics.data.gov.uk/id/local-authority/00ML,Children`s & Education Serv,BVAEDU,Management Services (DEC),MGT,Supplies and Services,E,Services,EF,04/10/2017,PAY00999786,SOCK,Social Work,5288.55,Revenue,Sanctuary Personnel Limited
Brighton & Hove City Council,http://statistics.data.gov.uk/id/local-authority/00ML,Central Support and Overheads,BVACEN,Support Services (SSC),PPT,Supplies and Services,E,Equip't Furniture n Materials,EA,04/10/2017,PAY00999788,SCOR,School Organisation,230.4,Revenue,Hexis (UK) Ltd
Brighton & Hove City Council,http://statistics.data.gov.uk/id/local-authority/00ML,Housing General Fund,BVAHOG,Homelessness,HML,Premises Related,C,Rents Payable,CC,04/10/2017,PAY00999789,TAAS,Temp Accom and Allocations,950,Revenue,Payment to Individual
Brighton & Hove City Council,http://statistics.data.gov.uk/id/local-authority/00ML,Children`s & Education Serv,BVAEDU,Child Srvcs Direct Pymts,FFD,Third Party Payments,F,Other Establishments,FH,04/10/2017,PAY00999790,DISS,Childrens Disability Services,423,Revenue,Payment to Individual
Brighton & Hove City Council,http://statistics.data.gov.uk/id/local-authority/00ML,Housing General Fund,BVAHOG,Homelessness,HML,Third Party Payments,F,Other Establishments,FH,04/10/2017,PAY00999793,TAAS,Temp Accom and Allocations,877.5,Revenue,Brighton Homes Ltd
Brighton & Hove City Council,http://statistics.data.gov.uk/id/local-authority/00ML,Children`s & Education Serv,BVAEDU,Ed EY Central,EAE,Supplies and Services,E,Catering,EB,04/10/2017,PAY00999795,EYRS,Early Years,1735.28,Revenue,Little Tums Ltd
Brighton & Hove City Council,http://statistics.data.gov.uk/id/local-authority/00ML,Cultural and Related Serv,BVACUL,Culture and Heritage,CHG,Supplies and Services,E,Equip't Furniture n Materials,EA,04/10/2017,PAY00999796,RPMU,Royal Pavilion and Museums,733.5,Revenue,Colebrooke Consulting Ltd
Brighton & Hove City Council,http://statistics.data.gov.uk/id/local-authority/00ML,Children`s & Education Serv,BVAEDU,Ed EY PVI,ENP,Supplies and Services,E,Grants n Subscriptions,EK,04/10/2017,PAY00999799,EYRS,Early Years,1817,Revenue,Early Explorers Limited
Brighton & Hove City Council,http://statistics.data.gov.uk/id/local-authority/00ML,Children`s & Education Serv,BVAEDU,Ed EY PVI,ENP,Supplies and Services,E,Grants n Subscriptions,EK,04/10/2017,PAY00999800,EYRS,Early Years,1275,Revenue,Supersaurus Nursery
Brighton & Hove City Council,http://statistics.data.gov.uk/id/local-authority/00ML,Housing General Fund,BVAHOG,Homelessness,HML,Customer n Client Receipts,M,Fees n Charges,MB,04/10/2017,PAY00999801,TAAS,Temp Accom and Allocations,-60,Revenue,Payment to Individual
Brighton & Hove City Council,http://statistics.data.gov.uk/id/local-authority/00ML,Housing General Fund,BVAHOG,Homelessness,HML,Premises Related,C,Rents Payable,CC,04/10/2017,PAY00999801,TAAS,Temp Accom and Allocations,2400,Revenue,Payment to Individual
Brighton & Hove City Council,http://statistics.data.gov.uk/id/local-authority/00ML,Highways and Transportation,BVAHRT,Parking Services,PRK,Supplies and Services,E,Equip't Furniture n Materials,EA,04/10/2017,PAY00999805,PARK,Parking Services,1577.8,Revenue,APS Aegis Limited
Brighton & Hove City Council,http://statistics.data.gov.uk/id/local-authority/00ML,Cultural and Related Serv,BVACUL,Management Services (DEC),MGT,Supplies and Services,E,Services,EF,04/10/2017,PAY00999806,RPMU,Royal Pavilion and Museums,933.03,Revenue,Science Museum Group
Brighton & Hove City Council,http://statistics.data.gov.uk/id/local-authority/00ML,Children`s & Education Serv,BVAEDU,Child Srvcs Direct Pymts,FFD,Third Party Payments,F,Other Establishments,FH,04/10/2017,PAY00999809,DISS,Childrens Disability Services,302.15,Revenue,Payment to Individual
Brighton & Hove City Council,http://statistics.data.gov.uk/id/local-authority/00ML,Children`s & Education Serv,BVAEDU,Ed EY PVI,ENP,Supplies and Services,E,Grants n Subscriptions,EK,04/10/2017,PAY00999810,EYRS,Early Years,773,Revenue,Growing Up Green Day Nursery (Preston Road)
Brighton & Hove City Council,http://statistics.data.gov.uk/id/local-authority/00ML,Children`s & Education Serv,BVAEDU,Ed EY PVI,ENP,Supplies and Services,E,Grants n Subscriptions,EK,04/10/2017,PAY00999811,EYRS,Early Years,1908,Revenue,Little Lambs Kindergarten
Brighton & Hove City Council,http://statistics.data.gov.uk/id/local-authority/00ML,Cultural and Related Serv,BVACUL,Culture and Heritage,CHG,Supplies and Services,E,Miscellaneous Expenses,EM,04/10/2017,PAY00999812,RPMU,Royal Pavilion and Museums,280,Revenue,Payment to Individual
Brighton & Hove City Council,http://statistics.data.gov.uk/id/local-authority/00ML,Public Health,BVAPHE,Public Health,PHE,Supplies and Services,E,Miscellaneous Expenses,EM,04/10/2017,PAY00999813,PHCM,PH Commissioning,450,Revenue,Universal Music Publishing Limited
Brighton & Hove City Council,http://statistics.data.gov.uk/id/local-authority/00ML,Children`s & Education Serv,BVAEDU,Management Services (DEC),MGT,Supplies and Services,E,Services,EF,04/10/2017,PAY00999814,SOCK,Social Work,500,Revenue,Payment to Individual
Brighton & Hove City Council,http://statistics.data.gov.uk/id/local-authority/00ML,Non I&E,BVANON,CAP Housing Services GF,4HG,Capital Grants,PF,Capital Grants,PFL5,04/10/2017,PAY00999815,PSHG,Private Sector Housing,2207.28,Capital,Mears Home Improvement Limited
Brighton & Hove City Council,http://statistics.data.gov.uk/id/local-authority/00ML,Non I&E,BVANON,CAP Housing Services GF,4HG,New Construction n Conversion,PB,New Construction n Conversion,PBL5,04/10/2017,PAY00999815,PSHG,Private Sector Housing,120,Capital,Mears Home Improvement Limited
Brighton & Hove City Council,http://statistics.data.gov.uk/id/local-authority/00ML,Housing General Fund,BVAHOG,Homelessness,HML,Premises Related,C,Rents Payable,CC,04/10/2017,PAY00999816,TAAS,Temp Accom and Allocations,900,Revenue,Payment to Individual
Brighton & Hove City Council,http://statistics.data.gov.uk/id/local-authority/00ML,Children`s & Education Serv,BVAEDU,Child Srvcs Direct Pymts,FFD,Third Party Payments,F,Other Establishments,FH,04/10/2017,PAY00999818,DISS,Childrens Disability Services,468.19,Revenue,Payment to Individual
Brighton & Hove City Council,http://statistics.data.gov.uk/id/local-authority/00ML,Children`s & Education Serv,BVAEDU,Child Srvcs Direct Pymts,FFD,Third Party Payments,F,Other Establishments,FH,04/10/2017,PAY00999820,DISS,Childrens Disability Services,405.65,Revenue,Payment to Individual
Brighton & Hove City Council,http://statistics.data.gov.uk/id/local-authority/00ML,Housing General Fund,BVAHOG,Homelessness,HML,Premises Related,C,Rents Payable,CC,04/10/2017,PAY00999826,TAAS,Temp Accom and Allocations,1000,Revenue,Payment to Individual
Brighton & Hove City Council,http://statistics.data.gov.uk/id/local-authority/00ML,Children`s & Education Serv,BVAEDU,Child Srvcs Adoption,FAA,Customer n Client Receipts,M,Fees n Charges,MB,04/10/2017,PAY00999829,CHIC,Fostering and Adoption,622,Revenue,Jigsaw Occupational Therapy Ltd
Brighton & Hove City Council,http://statistics.data.gov.uk/id/local-authority/00ML,Housing General Fund,BVAHOG,Homelessness,HML,Premises Related,C,Rents Payable,CC,04/10/2017,PAY00999830,TAAS,Temp Accom and Allocations,670,Revenue,Payment to Individual
Brighton & Hove City Council,http://statistics.data.gov.uk/id/local-authority/00ML,Adult Social Care,BVASOC,ASC Learning Disabilities,ALD,Third Party Payments,F,Other Establishments,FH,04/10/2017,PAY00999831,LDIS,Adults LD Community Care,1880.46,Revenue,Payment to Individual
Brighton & Hove City Council,http://statistics.data.gov.uk/id/local-authority/00ML,Housing General Fund,BVAHOG,Homelessness,HML,Premises Related,C,Rents Payable,CC,04/10/2017,PAY00999832,TAAS,Temp Accom and Allocations,925,Revenue,Payment to Individual
Brighton & Hove City Council,http://statistics.data.gov.uk/id/local-authority/00ML,Housing General Fund,BVAHOG,Homelessness,HML,Premises Related,C,Rents Payable,CC,04/10/2017,PAY00999834,TAAS,Temp Accom and Allocations,5435.89,Revenue,Payment to Individual
Brighton & Hove City Council,http://statistics.data.gov.uk/id/local-authority/00ML,Public Health,BVAPHE,Community Safety,CMY,Third Party Payments,F,Other Establishments,FH,04/10/2017,PAY00999835,CSTP,Comm Safety Team & Partnership,26210.08,Revenue,Brighton Voices in Exile
Brighton & Hove City Council,http://statistics.data.gov.uk/id/local-authority/00ML,Housing General Fund,BVAHOG,Homelessness,HML,Premises Related,C,Rents Payable,CC,04/10/2017,PAY00999836,TAAS,Temp Accom and Allocations,950,Revenue,Payment to Individual
Brighton & Hove City Council,http://statistics.data.gov.uk/id/local-authority/00ML,Cultural and Related Serv,BVACUL,Tourism,TRM,Supplies and Services,E,Miscellaneous Expenses,EM,04/10/2017,PAY00999837,TOMA,Tourism and Marketing,485,Revenue,Martha Mitchell Designs
Brighton & Hove City Council,http://statistics.data.gov.uk/id/local-authority/00ML,Housing General Fund,BVAHOG,Homelessness,HML,Premises Related,C,Rents Payable,CC,04/10/2017,PAY00999839,TAAS,Temp Accom and Allocations,925,Revenue,Payment to Individual
Brighton & Hove City Council,http://statistics.data.gov.uk/id/local-authority/00ML,Housing General Fund,BVAHOG,Homelessness,HML,Premises Related,C,Rents Payable,CC,04/10/2017,PAY00999841,TAAS,Temp Accom and Allocations,925,Revenue,Payment to Individual
Brighton & Hove City Council,http://statistics.data.gov.uk/id/local-authority/00ML,Non I&E,BVANON,CAP Libs Culture and Hertage,4LH,New Construction n Conversion,PB,New Construction n Conversion,PBL5,04/10/2017,PAY00999842,RPMU,Royal Pavilion and Museums,3200,Capital,Sam-culture
Brighton & Hove City Council,http://statistics.data.gov.uk/id/local-authority/00ML,Housing General Fund,BVAHOG,Homelessness,HML,Customer n Client Receipts,M,Fees n Charges,MB,04/10/2017,PAY00999843,SSHS,Seaside Homes (BHSCH),352431,Revenue,Brighton and Hove Seaside Community Homes Ltd
Brighton & Hove City Council,http://statistics.data.gov.uk/id/local-authority/00ML,Housing General Fund,BVAHOG,Homelessness,HML,Premises Related,C,Rents Payable,CC,04/10/2017,PAY00999845,TAAS,Temp Accom and Allocations,1075,Revenue,Payment to Individual
Brighton & Hove City Council,http://statistics.data.gov.uk/id/local-authority/00ML,Housing General Fund,BVAHOG,Homelessness,HML,Premises Related,C,Rents Payable,CC,04/10/2017,PAY00999846,TAAS,Temp Accom and Allocations,1100,Revenue,Payment to Individual
Brighton & Hove City Council,http://statistics.data.gov.uk/id/local-authority/00ML,Housing General Fund,BVAHOG,Homelessness,HML,Premises Related,C,Rents Payable,CC,04/10/2017,PAY00999851,TAAS,Temp Accom and Allocations,1700,Revenue,Payment to Individual
Brighton & Hove City Council,http://statistics.data.gov.uk/id/local-authority/00ML,Housing General Fund,BVAHOG,Homelessness,HML,Premises Related,C,Rents Payable,CC,04/10/2017,PAY00999855,TAAS,Temp Accom and Allocations,1825,Revenue,First Charterhouse Investments Ltd
Brighton & Hove City Council,http://statistics.data.gov.uk/id/local-authority/00ML,Housing General Fund,BVAHOG,Hsing Benefits,HGB,Supplies and Services,E,Communications n Computing,EH,04/10/2017,PAY00999859,REVS,Revenues and Benefits,3000,Revenue,MAG: NET Solutions Ltd
Brighton & Hove City Council,http://statistics.data.gov.uk/id/local-authority/00ML,Housing General Fund,BVAHOG,Homelessness,HML,Premises Related,C,Rents Payable,CC,04/10/2017,PAY00999862,TAAS,Temp Accom and Allocations,875,Revenue,Payment to Individual
Brighton & Hove City Council,http://statistics.data.gov.uk/id/local-authority/00ML,Housing General Fund,BVAHOG,Homelessness,HML,Premises Related,C,Rents Payable,CC,04/10/2017,PAY00999863,TAAS,Temp Accom and Allocations,1694.64,Revenue,Baron Developments Ltd
Brighton & Hove City Council,http://statistics.data.gov.uk/id/local-authority/00ML,Central Support and Overheads,BVACEN,Support Services (SSC),PPT,Supplies and Services,E,Communications n Computing,EH,04/10/2017,PAY00999864,ICTA,ICT,2311.08,Revenue,Softcat Ltd
Brighton & Hove City Council,http://statistics.data.gov.uk/id/local-authority/00ML,Adult Social Care,BVASOC,ASC Learning Disabilities,ALD,Third Party Payments,F,Other Establishments,FH,04/10/2017,PAY00999866,LDIS,Adults LD Community Care,3958.75,Revenue,Possability People Trading Ltd
Brighton & Hove City Council,http://statistics.data.gov.uk/id/local-authority/00ML,Adult Social Care,BVASOC,ASC Memory Cognition Support,MEM,Third Party Payments,F,Other Establishments,FH,04/10/2017,PAY00999866,COGN,Memory Cognition Support,417.68,Revenue,Possability People Trading Ltd
Brighton & Hove City Council,http://statistics.data.gov.uk/id/local-authority/00ML,Adult Social Care,BVASOC,ASC Mental Health Support,MHP,Third Party Payments,F,Other Establishments,FH,04/10/2017,PAY00999866,MENH,Mental Health Support,1172.13,Revenue,Possability People Trading Ltd
Brighton & Hove City Council,http://statistics.data.gov.uk/id/local-authority/00ML,Adult Social Care,BVASOC,ASC Physical Support,PHY,Third Party Payments,F,Other Establishments,FH,04/10/2017,PAY00999866,PHYS,Physical Support,11300.51,Revenue,Possability People Trading Ltd
Brighton & Hove City Council,http://statistics.data.gov.uk/id/local-authority/00ML,Adult Social Care,BVASOC,ASC Sensory Support,AHV,Third Party Payments,F,Other Establishments,FH,04/10/2017,PAY00999866,SORY,Sensory Support,258.52,Revenue,Possability People Trading Ltd
Brighton & Hove City Council,http://statistics.data.gov.uk/id/local-authority/00ML,Housing General Fund,BVAHOG,Homelessness,HML,Premises Related,C,Rents Payable,CC,04/10/2017,PAY00999869,TAAS,Temp Accom and Allocations,900,Revenue,Payment to Individual
Brighton & Hove City Council,http://statistics.data.gov.uk/id/local-authority/00ML,Environment & Regulatory Serv,BVAERS,Management Services (DEC),MGT,Transport Related,D,Direct Transport Costs,DA,04/10/2017,PAY00999872,CICL,City Clean,729.06,Revenue,S & B Commercials Plc
Brighton & Hove City Council,http://statistics.data.gov.uk/id/local-authority/00ML,Housing General Fund,BVAHOG,Homelessness,HML,Premises Related,C,Rents Payable,CC,04/10/2017,PAY00999876,TAAS,Temp Accom and Allocations,1000,Revenue,Payment to Individual
Brighton & Hove City Council,http://statistics.data.gov.uk/id/local-authority/00ML,Housing General Fund,BVAHOG,Homelessness,HML,Premises Related,C,Rents Payable,CC,04/10/2017,PAY00999877,TAAS,Temp Accom and Allocations,1075,Revenue,Payment to Individual
Brighton & Hove City Council,http://statistics.data.gov.uk/id/local-authority/00ML,Housing General Fund,BVAHOG,Homelessness,HML,Customer n Client Receipts,M,Fees n Charges,MB,04/10/2017,PAY00999879,TAAS,Temp Accom and Allocations,-61,Revenue,Payment to Individual
Brighton & Hove City Council,http://statistics.data.gov.uk/id/local-authority/00ML,Housing General Fund,BVAHOG,Homelessness,HML,Premises Related,C,Rents Payable,CC,04/10/2017,PAY00999879,TAAS,Temp Accom and Allocations,975,Revenue,Payment to Individual
Brighton & Hove City Council,http://statistics.data.gov.uk/id/local-authority/00ML,Housing General Fund,BVAHOG,Homelessness,HML,Premises Related,C,Rents Payable,CC,04/10/2017,PAY00999880,TAAS,Temp Accom and Allocations,825,Revenue,Payment to Individual
Brighton & Hove City Council,http://statistics.data.gov.uk/id/local-authority/00ML,Housing General Fund,BVAHOG,Hsing Benefits,HGB,Supplies and Services,E,Miscellaneous Expenses,EM,04/10/2017,PAY00999881,REVS,Revenues and Benefits,168,Revenue,BSL Link for Communication Ltd
Brighton & Hove City Council,http://statistics.data.gov.uk/id/local-authority/00ML,Housing General Fund,BVAHOG,Hsing Benefits,HGB,Supplies and Services,E,Services,EF,04/10/2017,PAY00999881,REVS,Revenues and Benefits,225.2,Revenue,BSL Link for Communication Ltd
Brighton & Hove City Council,http://statistics.data.gov.uk/id/local-authority/00ML,Housing General Fund,BVAHOG,Homelessness,HML,Premises Related,C,Rents Payable,CC,04/10/2017,PAY00999882,TAAS,Temp Accom and Allocations,1250,Revenue,Payment to Individual
Brighton & Hove City Council,http://statistics.data.gov.uk/id/local-authority/00ML,Housing General Fund,BVAHOG,Homelessness,HML,Premises Related,C,Rents Payable,CC,04/10/2017,PAY00999883,TAAS,Temp Accom and Allocations,1050,Revenue,Payment to Individual
Brighton & Hove City Council,http://statistics.data.gov.uk/id/local-authority/00ML,Cultural and Related Serv,BVACUL,Culture and Heritage,CHG,Supplies and Services,E,Services,EF,04/10/2017,PAY00999884,RPMU,Royal Pavilion and Museums,4500,Revenue,Margaret Quixano Piazza
Brighton & Hove City Council,http://statistics.data.gov.uk/id/local-authority/00ML,Children`s & Education Serv,BVAEDU,Ed EY PVI,ENP,Supplies and Services,E,Grants n Subscriptions,EK,04/10/2017,PAY00999885,EYRS,Early Years,548,Revenue,Shirley Street Day Nursery
Brighton & Hove City Council,http://statistics.data.gov.uk/id/local-authority/00ML,Housing General Fund,BVAHOG,Homelessness,HML,Premises Related,C,Rents Payable,CC,04/10/2017,PAY00999886,TAAS,Temp Accom and Allocations,1047,Revenue,Danworth Holdings Ltd
Brighton & Hove City Council,http://statistics.data.gov.uk/id/local-authority/00ML,Housing General Fund,BVAHOG,Homelessness,HML,Premises Related,C,Rents Payable,CC,04/10/2017,PAY00999887,TAAS,Temp Accom and Allocations,1225,Revenue,Payment to Individual
Brighton & Hove City Council,http://statistics.data.gov.uk/id/local-authority/00ML,Children`s & Education Serv,BVAEDU,Ed EY PVI,ENP,Supplies and Services,E,Grants n Subscriptions,EK,04/10/2017,PAY00999888,EYRS,Early Years,499,Revenue,Each Peach Childcare
Brighton & Hove City Council,http://statistics.data.gov.uk/id/local-authority/00ML,Central Support and Overheads,BVACEN,Support Services (SSC),PPT,Supplies and Services,E,Services,EF,04/10/2017,PAY00999889,PROP,Property and Design,1650,Revenue,Payment to Individual
Brighton & Hove City Council,http://statistics.data.gov.uk/id/local-authority/00ML,Environment & Regulatory Serv,BVAERS,Management Services (DEC),MGT,Transport Related,D,Direct Transport Costs,DA,04/10/2017,PAY00999890,CICL,City Clean,222.5,Revenue,S & D Commercials
Brighton & Hove City Council,http://statistics.data.gov.uk/id/local-authority/00ML,Housing General Fund,BVAHOG,Hsing Benefits,HGB,Transfer Payments,G,Other Transfer Payments,GD,04/10/2017,PAY00999892,REVS,Revenues and Benefits,1719,Revenue,The Fridge Shop
Brighton & Hove City Council,http://statistics.data.gov.uk/id/local-authority/00ML,Environment & Regulatory Serv,BVAERS,Management Services (DEC),MGT,Transport Related,D,Direct Transport Costs,DA,04/10/2017,PAY00999894,CICL,City Clean,267,Revenue,Carglass Windscreens Ltd
Brighton & Hove City Council,http://statistics.data.gov.uk/id/local-authority/00ML,Central Support and Overheads,BVACEN,Support Services (SSC),PPT,Supplies and Services,E,Communications n Computing,EH,04/10/2017,PAY00999900,LEGS,Legal Services,375,Revenue,Sake Cabling Ltd
Brighton & Hove City Council,http://statistics.data.gov.uk/id/local-authority/00ML,Children`s & Education Serv,BVAEDU,Ed Mgmt and Support Services,EMG,Supplies and Services,E,Communications n Computing,EH,04/10/2017,PAY00999900,INSS,Integrated Support Services,375,Revenue,Sake Cabling Ltd
Brighton & Hove City Council,http://statistics.data.gov.uk/id/local-authority/00ML,Housing General Fund,BVAHOG,Homelessness,HML,Premises Related,C,Rents Payable,CC,04/10/2017,PAY00999901,TAAS,Temp Accom and Allocations,950,Revenue,Edwards Property Investment Co Ltd
Brighton & Hove City Council,http://statistics.data.gov.uk/id/local-authority/00ML,Housing Revenue Account,BVAHOU,Hsing Management - HRA,HGM,Supplies and Services,E,Equip't Furniture n Materials,EA,04/10/2017,PAY00999903,HPAI,Property & Investment,300,Revenue,Stark Software International Ltd
Brighton & Hove City Council,http://statistics.data.gov.uk/id/local-authority/00ML,Children`s & Education Serv,BVAEDU,Ed Ed Other Other,ENF,Third Party Payments,F,Other Establishments,FH,04/10/2017,PAY00999907,VSCH,Virtual School,235,Revenue,Winchmore Tutors Ltd
Brighton & Hove City Council,http://statistics.data.gov.uk/id/local-authority/00ML,Adult Social Care,BVASOC,ASC Learning Disabilities,ALD,Customer n Client Receipts,M,Fees n Charges,MB,04/10/2017,PAY00999909,LDIS,Adults LD Community Care,-320,Revenue,Brighton Vision
Brighton & Hove City Council,http://statistics.data.gov.uk/id/local-authority/00ML,Adult Social Care,BVASOC,ASC Learning Disabilities,ALD,Third Party Payments,F,Other Establishments,FH,04/10/2017,PAY00999909,LDIS,Adults LD Community Care,4865.04,Revenue,Brighton Vision
Brighton & Hove City Council,http://statistics.data.gov.uk/id/local-authority/00ML,Cultural and Related Serv,BVACUL,Culture and Heritage,CHG,Supplies and Services,E,Services,EF,04/10/2017,PAY00999913,RPMU,Royal Pavilion and Museums,300,Revenue,Payment to Individual
Brighton & Hove City Council,http://statistics.data.gov.uk/id/local-authority/00ML,Housing General Fund,BVAHOG,Homelessness,HML,Premises Related,C,Rents Payable,CC,04/10/2017,PAY00999915,TAAS,Temp Accom and Allocations,625,Revenue,Payment to Individual
Brighton & Hove City Council,http://statistics.data.gov.uk/id/local-authority/00ML,Children`s & Education Serv,BVAEDU,Child Srvcs Leaving Care,FAL,Transfer Payments,G,Other Transfer Payments,GD,04/10/2017,PAY00999920,CARL,Care Leavers,4340,Revenue,OwnLife Ltd
Brighton & Hove City Council,http://statistics.data.gov.uk/id/local-authority/00ML,Children`s & Education Serv,BVAEDU,Child Srvcs - Othr LAC Svcs,FLX,Transfer Payments,G,Other Transfer Payments,GD,04/10/2017,PAY00999920,AVFM,Agency Placements\VFM,5828.62,Revenue,OwnLife Ltd
Brighton & Hove City Council,http://statistics.data.gov.uk/id/local-authority/00ML,Children`s & Education Serv,BVAEDU,Ed Ed Other Other,ENF,Third Party Payments,F,Other Establishments,FH,04/10/2017,PAY00999922,VSCH,Virtual School,2810,Revenue,The Angmering School
Brighton & Hove City Council,http://statistics.data.gov.uk/id/local-authority/00ML,Housing General Fund,BVAHOG,Homelessness,HML,Premises Related,C,Rents Payable,CC,04/10/2017,PAY00999923,TAAS,Temp Accom and Allocations,1250,Revenue,Payment to Individual
Brighton & Hove City Council,http://statistics.data.gov.uk/id/local-authority/00ML,Housing General Fund,BVAHOG,Homelessness,HML,Premises Related,C,Rents Payable,CC,04/10/2017,PAY00999924,TAAS,Temp Accom and Allocations,850,Revenue,Payment to Individual
Brighton & Hove City Council,http://statistics.data.gov.uk/id/local-authority/00ML,Environment & Regulatory Serv,BVAERS,Management Services (DEC),MGT,Transport Related,D,Direct Transport Costs,DA,04/10/2017,PAY00999928,CICL,City Clean,2265.8,Revenue,Burden Bros Agri Ltd
Brighton & Hove City Council,http://statistics.data.gov.uk/id/local-authority/00ML,Children`s & Education Serv,BVAEDU,Ed Ed Other Other,ENF,Premises Related,C,Repair Maint n Alterations,CA,04/10/2017,PAY00999930,PROP,Property and Design,734,Revenue,Banyard Maintenance Ltd
Brighton & Hove City Council,http://statistics.data.gov.uk/id/local-authority/00ML,Adult Social Care,BVASOC,S Svcs Other Adult Services,ADT,Indirect Employees,B,Training,BM,04/10/2017,PAY00999931,ORGD,Organisational Development,157,Revenue,Pulse First Aid Ltd
Brighton & Hove City Council,http://statistics.data.gov.uk/id/local-authority/00ML,Central Support and Overheads,BVACEN,Support Services (SSC),PPT,Indirect Employees,B,Training,BM,04/10/2017,PAY00999931,ORGD,Organisational Development,133,Revenue,Pulse First Aid Ltd
Brighton & Hove City Council,http://statistics.data.gov.uk/id/local-authority/00ML,Children`s & Education Serv,BVAEDU,Ed Mgmt and Support Services,EMG,Indirect Employees,B,Training,BM,04/10/2017,PAY00999931,GOVS,Governor Support,2000,Revenue,Pulse First Aid Ltd
Brighton & Hove City Council,http://statistics.data.gov.uk/id/local-authority/00ML,Adult Social Care,BVASOC,ASC Memory Cognition Support,MEM,Third Party Payments,F,Other Establishments,FH,04/10/2017,PAY00999933,COGN,Memory Cognition Support,1284.77,Revenue,Alina Homecare Ltd
Brighton & Hove City Council,http://statistics.data.gov.uk/id/local-authority/00ML,Adult Social Care,BVASOC,ASC Physical Support,PHY,Third Party Payments,F,Other Establishments,FH,04/10/2017,PAY00999933,PHYS,Physical Support,24098.38,Revenue,Alina Homecare Ltd
Brighton & Hove City Council,http://statistics.data.gov.uk/id/local-authority/00ML,Children`s & Education Serv,BVAEDU,Management Services (DEC),MGT,Supplies and Services,E,Services,EF,04/10/2017,PAY00999934,SOCK,Social Work,245.25,Revenue,Lextox
Brighton & Hove City Council,http://statistics.data.gov.uk/id/local-authority/00ML,Children`s & Education Serv,BVAEDU,Child Srvcs - Fostering,FLF,Third Party Payments,F,Other Establishments,FH,04/10/2017,PAY00999935,CHIC,Fostering and Adoption,1925.5,Revenue,Advanced Child Care Assessments Limited
Brighton & Hove City Council,http://statistics.data.gov.uk/id/local-authority/00ML,Housing General Fund,BVAHOG,Homelessness,HML,Premises Related,C,Rents Payable,CC,04/10/2017,PAY00999936,TAAS,Temp Accom and Allocations,950,Revenue,Payment to Individual
Brighton & Hove City Council,http://statistics.data.gov.uk/id/local-authority/00ML,Adult Social Care,BVASOC,ASC Physical Support,PHY,Third Party Payments,F,Other Establishments,FH,04/10/2017,PAY00999937,PHYS,Physical Support,344,Revenue,Peachy Clean
Brighton & Hove City Council,http://statistics.data.gov.uk/id/local-authority/00ML,Non I&E,BVANON,CAP Housing Services GF,4HG,Capital Grants,PF,Capital Grants,PFL5,04/10/2017,PAY00999940,PSHG,Private Sector Housing,1414.4,Capital,Mitchells Building Services
Brighton & Hove City Council,http://statistics.data.gov.uk/id/local-authority/00ML,Non I&E,BVANON,Cap - Housing Services - HRA,4HR,New Construction n Conversion,PB,New Construction n Conversion,PBL5,04/10/2017,PAY00999944,HPAI,Property & Investment,1240,Capital,Express Water Tanks and Mechanical Services Ltd
Brighton & Hove City Council,http://statistics.data.gov.uk/id/local-authority/00ML,Planning and Development,BVAPLA,Economic Development,ECD,Supplies and Services,E,Miscellaneous Expenses,EM,04/10/2017,PAY00999945,PART,Partnerships,9850,Revenue,Infocorp Ltd
Brighton & Hove City Council,http://statistics.data.gov.uk/id/local-authority/00ML,Housing General Fund,BVAHOG,Homelessness,HML,Premises Related,C,Rents Payable,CC,04/10/2017,PAY00999946,TAAS,Temp Accom and Allocations,6275,Revenue,Payment to Individual
Brighton & Hove City Council,http://statistics.data.gov.uk/id/local-authority/00ML,Children`s & Education Serv,BVAEDU,Child Srvcs Com and Scl Work,FCW,Supplies and Services,E,Miscellaneous Expenses,EM,04/10/2017,PAY00999949,DISS,Childrens Disability Services,300.6,Revenue,The OT Service Limited
Brighton & Hove City Council,http://statistics.data.gov.uk/id/local-authority/00ML,Housing General Fund,BVAHOG,Private Sector Hsing Renewal,PHR,Indirect Employees,B,Training,BM,04/10/2017,PAY00999949,PSHG,Private Sector Housing,340,Revenue,The OT Service Limited
Brighton & Hove City Council,http://statistics.data.gov.uk/id/local-authority/00ML,Housing General Fund,BVAHOG,Homelessness,HML,Premises Related,C,Rents Payable,CC,04/10/2017,PAY00999950,TAAS,Temp Accom and Allocations,1050,Revenue,Payment to Individual
Brighton & Hove City Council,http://statistics.data.gov.uk/id/local-authority/00ML,Housing General Fund,BVAHOG,Homelessness,HML,Premises Related,C,Rents Payable,CC,04/10/2017,PAY00999952,TAAS,Temp Accom and Allocations,1050,Revenue,Payment to Individual
Brighton & Hove City Council,http://statistics.data.gov.uk/id/local-authority/00ML,Central Support and Overheads,BVACEN,Support Services (SSC),PPT,Supplies and Services,E,Communications n Computing,EH,04/10/2017,PAY00999954,FINS,Financial Services,450,Revenue,ACB Ltd
Brighton & Hove City Council,http://statistics.data.gov.uk/id/local-authority/00ML,Housing General Fund,BVAHOG,Homelessness,HML,Supplies and Services,E,Print Stat & Gen Office Exps,ED,04/10/2017,PAY00999954,HOPT,Housing Options,2.5,Revenue,ACB Ltd
Brighton & Hove City Council,http://statistics.data.gov.uk/id/local-authority/00ML,Housing General Fund,BVAHOG,Homelessness,HML,Premises Related,C,Rents Payable,CC,04/10/2017,PAY00999955,TAAS,Temp Accom and Allocations,1000,Revenue,Payment to Individual
Brighton & Hove City Council,http://statistics.data.gov.uk/id/local-authority/00ML,Adult Social Care,BVASOC,ASC Physical Support,PHY,Customer n Client Receipts,M,Fees n Charges,MB,04/10/2017,PAY00999957,PHYS,Physical Support,-1213.16,Revenue,Titleworth Neuro Limited
Brighton & Hove City Council,http://statistics.data.gov.uk/id/local-authority/00ML,Adult Social Care,BVASOC,ASC Physical Support,PHY,Third Party Payments,F,Other Establishments,FH,04/10/2017,PAY00999957,PHYS,Physical Support,12442.86,Revenue,Titleworth Neuro Limited
Brighton & Hove City Council,http://statistics.data.gov.uk/id/local-authority/00ML,Housing General Fund,BVAHOG,Homelessness,HML,Premises Related,C,Rents Payable,CC,04/10/2017,PAY00999958,TAAS,Temp Accom and Allocations,700,Revenue,Payment to Individual
Brighton & Hove City Council,http://statistics.data.gov.uk/id/local-authority/00ML,Housing General Fund,BVAHOG,Homelessness,HML,Premises Related,C,Rents Payable,CC,04/10/2017,PAY00999960,TAAS,Temp Accom and Allocations,2300,Revenue,Payment to Individual
Brighton & Hove City Council,http://statistics.data.gov.uk/id/local-authority/00ML,Housing General Fund,BVAHOG,Homelessness,HML,Premises Related,C,Rents Payable,CC,04/10/2017,PAY00999961,TAAS,Temp Accom and Allocations,5670.57,Revenue,Moretons Investments Ltd
Brighton & Hove City Council,http://statistics.data.gov.uk/id/local-authority/00ML,Environment & Regulatory Serv,BVAERS,Environmental Health,EVH,Premises Related,C,Repair Maint n Alterations,CA,04/10/2017,PAY00999964,HIGH,Traffic Management,880,Revenue,Automobile Association Developments Ltd
Brighton & Hove City Council,http://statistics.data.gov.uk/id/local-authority/00ML,Housing General Fund,BVAHOG,Homelessness,HML,Premises Related,C,Rents Payable,CC,04/10/2017,PAY00999967,TAAS,Temp Accom and Allocations,847.32,Revenue,Payment to Individual
Brighton & Hove City Council,http://statistics.data.gov.uk/id/local-authority/00ML,Housing Revenue Account,BVAHOU,Hsing Management - HRA,HGM,Premises Related,C,Repair Maint n Alterations,CA,04/10/2017,PAY00999969,HIII,Income Involvement Improvement,111.13,Revenue,Crown Paints Ltd
Brighton & Hove City Council,http://statistics.data.gov.uk/id/local-authority/00ML,Housing Revenue Account,BVAHOU,Hsing Management - HRA,HGM,Premises Related,C,Repair Maint n Alterations,CA,04/10/2017,PAY00999969,HTEN,Tenancy Services,969.73,Revenue,Crown Paints Ltd
Brighton & Hove City Council,http://statistics.data.gov.uk/id/local-authority/00ML,Housing General Fund,BVAHOG,Homelessness,HML,Premises Related,C,Rents Payable,CC,04/10/2017,PAY00999970,TAAS,Temp Accom and Allocations,847.32,Revenue,Lyons Corporation Ltd
Brighton & Hove City Council,http://statistics.data.gov.uk/id/local-authority/00ML,Housing General Fund,BVAHOG,Homelessness,HML,Premises Related,C,Rents Payable,CC,04/10/2017,PAY00999971,TAAS,Temp Accom and Allocations,850,Revenue,Payment to Individual
Brighton & Hove City Council,http://statistics.data.gov.uk/id/local-authority/00ML,Public Health,BVAPHE,Public Health,PHE,Third Party Payments,F,Health Authorities,FC,04/10/2017,PAY00999975,PHCM,PH Commissioning,667.56,Revenue,The Royal Bournemouth and Christchurch Hospitals
Brighton & Hove City Council,http://statistics.data.gov.uk/id/local-authority/00ML,Non I&E,BVANON,Cap - Housing Services - HRA,4HR,New Construction n Conversion,PB,New Construction n Conversion,PBL5,04/10/2017,PAY00999978,HPAI,Property & Investment,1750,Capital,Promode Building Services Consultants Limited
Brighton & Hove City Council,http://statistics.data.gov.uk/id/local-authority/00ML,Housing General Fund,BVAHOG,Homelessness,HML,Supplies and Services,E,Services,EF,04/10/2017,PAY00999981,TAAS,Temp Accom and Allocations,1290.53,Revenue,Colgate & Gray Land Limited
Brighton & Hove City Council,http://statistics.data.gov.uk/id/local-authority/00ML,Children`s & Education Serv,BVAEDU,Ed Ed Other Other,ENF,Third Party Payments,F,Other Establishments,FH,04/10/2017,PAY00999984,VSCH,Virtual School,700,Revenue,Payment to Individual
Brighton & Hove City Council,http://statistics.data.gov.uk/id/local-authority/00ML,Housing General Fund,BVAHOG,Homelessness,HML,Third Party Payments,F,Other Establishments,FH,04/10/2017,PAY00999985,TAAS,Temp Accom and Allocations,377.38,Revenue,Payment to Individual
Brighton & Hove City Council,http://statistics.data.gov.uk/id/local-authority/00ML,Housing Revenue Account,BVAHOU,Hsing Management - HRA,HGM,Direct Employees,A,Salaries,AA,04/10/2017,PAY00999986,HPAI,Property & Investment,8189.64,Revenue,Resourcing Group
Brighton & Hove City Council,http://statistics.data.gov.uk/id/local-authority/00ML,Housing General Fund,BVAHOG,Homelessness,HML,Premises Related,C,Rents Payable,CC,04/10/2017,PAY00999987,TAAS,Temp Accom and Allocations,975,Revenue,Payment to Individual
Brighton & Hove City Council,http://statistics.data.gov.uk/id/local-authority/00ML,Children`s & Education Serv,BVAEDU,Ed EY PVI,ENP,Supplies and Services,E,Grants n Subscriptions,EK,04/10/2017,PAY00999989,EYRS,Early Years,670,Revenue,Fizzy Fish Nursery
Brighton & Hove City Council,http://statistics.data.gov.uk/id/local-authority/00ML,Non I&E,BVANON,CAP Education Services,4ED,New Construction n Conversion,PB,New Construction n Conversion,PBL5,04/10/2017,PAY00999990,OEDS,Other Education Support,5900,Capital,Stannah Microlifts Ltd
Brighton & Hove City Council,http://statistics.data.gov.uk/id/local-authority/00ML,Cultural and Related Serv,BVACUL,Open Spaces,PEN,Supplies and Services,E,Services,EF,04/10/2017,PAY00999992,SPLE,Sport and Leisure,750,Revenue,Actaland Ltd trading as Acta
Brighton & Hove City Council,http://statistics.data.gov.uk/id/local-authority/00ML,Children`s & Education Serv,BVAEDU,Ed EY PVI,ENP,Supplies and Services,E,Grants n Subscriptions,EK,04/10/2017,PAY00999995,EYRS,Early Years,1340,Revenue,Hove Village Day Nursery Ltd
Brighton & Hove City Council,http://statistics.data.gov.uk/id/local-authority/00ML,Housing General Fund,BVAHOG,Hsing Welfare,HGW,Transfer Payments,G,Supporting People,GF,04/10/2017,PAY00999996,CONT,Contracts,12841,Revenue,St Mungo`s
Brighton & Hove City Council,http://statistics.data.gov.uk/id/local-authority/00ML,Adult Social Care,BVASOC,ASC Physical Support,PHY,Third Party Payments,F,Other Establishments,FH,04/10/2017,PAY00999997,PHYS,Physical Support,625,Revenue,Payment to Individual
Brighton & Hove City Council,http://statistics.data.gov.uk/id/local-authority/00ML,Housing General Fund,BVAHOG,Homelessness,HML,Premises Related,C,Rents Payable,CC,04/10/2017,PAY00999998,TAAS,Temp Accom and Allocations,1120,Revenue,Payment to Individual
Brighton & Hove City Council,http://statistics.data.gov.uk/id/local-authority/00ML,Central Support and Overheads,BVACEN,Support Services (SSC),PPT,Supplies and Services,E,Services,EF,04/10/2017,PAY00999999,AUDB,Audit and Business Risk,1625,Revenue,TIAA Ltd
Brighton & Hove City Council,http://statistics.data.gov.uk/id/local-authority/00ML,Housing Revenue Account,BVAHOU,Hsing Management - HRA,HGM,Supplies and Services,E,Equip't Furniture n Materials,EA,04/10/2017,PAY01000000,HPAI,Property & Investment,2782.79,Revenue,Abmec Ltd T/A Abbamechatronics
Brighton & Hove City Council,http://statistics.data.gov.uk/id/local-authority/00ML,Non I&E,BVANON,Cap - Housing Services - HRA,4HR,New Construction n Conversion,PB,New Construction n Conversion,PBL5,04/10/2017,PAY01000000,HPAI,Property & Investment,374,Capital,Abmec Ltd T/A Abbamechatronics
Brighton & Hove City Council,http://statistics.data.gov.uk/id/local-authority/00ML,Housing General Fund,BVAHOG,Homelessness,HML,Premises Related,C,Rents Payable,CC,04/10/2017,PAY01000004,TAAS,Temp Accom and Allocations,900,Revenue,Payment to Individual
Brighton & Hove City Council,http://statistics.data.gov.uk/id/local-authority/00ML,Housing General Fund,BVAHOG,Homelessness,HML,Premises Related,C,Rents Payable,CC,04/10/2017,PAY01000005,TAAS,Temp Accom and Allocations,900,Revenue,Payment to Individual
Brighton & Hove City Council,http://statistics.data.gov.uk/id/local-authority/00ML,Children`s & Education Serv,BVAEDU,Ed Mgmt and Support Services,EMG,Supplies and Services,E,Services,EF,04/10/2017,PAY01000006,SACH,Standards and Achievement,900,Revenue,Payment to Individual
Brighton & Hove City Council,http://statistics.data.gov.uk/id/local-authority/00ML,Non I&E,BVANON,CAP Sport and Recreation,4RC,New Construction n Conversion,PB,New Construction n Conversion,PBL5,04/10/2017,PAY01000010,SPLE,Sport and Leisure,4561,Capital,Donald lnsall Associates Ltd
Brighton & Hove City Council,http://statistics.data.gov.uk/id/local-authority/00ML,Central Support and Overheads,BVACEN,Support Services (SSC),PPT,Supplies and Services,E,Services,EF,04/10/2017,PAY01000011,COMU,Communications,1225,Revenue,Honedesign
Brighton & Hove City Council,http://statistics.data.gov.uk/id/local-authority/00ML,Adult Social Care,BVASOC,Support to Carer,CAR,Third Party Payments,F,Other Establishments,FH,04/10/2017,PAY01000012,CONT,Contracts,1750,Revenue,Payment to Individual
Brighton & Hove City Council,http://statistics.data.gov.uk/id/local-authority/00ML,Housing General Fund,BVAHOG,Homelessness,HML,Premises Related,C,Rents Payable,CC,04/10/2017,PAY01000014,TAAS,Temp Accom and Allocations,1200,Revenue,Payment to Individual
Brighton & Hove City Council,http://statistics.data.gov.uk/id/local-authority/00ML,Children`s & Education Serv,BVAEDU,Child Srvcs Adoption,FAA,Customer n Client Receipts,M,Fees n Charges,MB,04/10/2017,PAY01000015,CHIC,Fostering and Adoption,288,Revenue,Beacon House Psychological Services
Brighton & Hove City Council,http://statistics.data.gov.uk/id/local-authority/00ML,Non I&E,BVANON,Cap - Housing Services - HRA,4HR,New Construction n Conversion,PB,New Construction n Conversion,PBL5,04/10/2017,PAY01000017,HPAI,Property & Investment,5501.37,Capital,K & T Heating Services Limited
Brighton & Hove City Council,http://statistics.data.gov.uk/id/local-authority/00ML,Children`s & Education Serv,BVAEDU,Ed Ed Other Other,ENF,Third Party Payments,F,Other Establishments,FH,04/10/2017,PAY01000021,VSCH,Virtual School,222.72,Revenue,Reed Specialist Recruitment Ltd
Brighton & Hove City Council,http://statistics.data.gov.uk/id/local-authority/00ML,Non I&E,BVANON,CAP Libs Culture and Hertage,4LH,New Construction n Conversion,PB,New Construction n Conversion,PBL5,04/10/2017,PAY01000024,LIBS,Libraries,6930,Capital,D-Tech International LTD
Brighton & Hove City Council,http://statistics.data.gov.uk/id/local-authority/00ML,Children`s & Education Serv,BVAEDU,Child Srvcs Adoption,FAA,Customer n Client Receipts,M,Fees n Charges,MB,04/10/2017,PAY01000025,CHIC,Fostering and Adoption,537.5,Revenue,New Perspective Theraputic Life Story Work Service
Brighton & Hove City Council,http://statistics.data.gov.uk/id/local-authority/00ML,Environment & Regulatory Serv,BVAERS,Cem Crem and Mortuary Services,CCM,Supplies and Services,E,Equip't Furniture n Materials,EA,04/10/2017,PAY01000026,BERE,Bereavement,657,Revenue,Brosch Direct Ltd
Brighton & Hove City Council,http://statistics.data.gov.uk/id/local-authority/00ML,Housing General Fund,BVAHOG,Homelessness,HML,Premises Related,C,Rents Payable,CC,04/10/2017,PAY01000027,TAAS,Temp Accom and Allocations,875,Revenue,Payment to Individual
Brighton & Hove City Council,http://statistics.data.gov.uk/id/local-authority/00ML,Housing General Fund,BVAHOG,Homelessness,HML,Premises Related,C,Rents Payable,CC,04/10/2017,PAY01000029,TAAS,Temp Accom and Allocations,1050,Revenue,Payment to Individual
Brighton & Hove City Council,http://statistics.data.gov.uk/id/local-authority/00ML,Children`s & Education Serv,BVAEDU,Ed Special Ed,EKE,Third Party Payments,F,Other Agencies,FL,04/10/2017,PAY01000030,SENS,Special Educational Needs,11313.66,Revenue,The Royal National College for the Blind
Brighton & Hove City Council,http://statistics.data.gov.uk/id/local-authority/00ML,Cultural and Related Serv,BVACUL,Culture and Heritage,CHG,Supplies and Services,E,Services,EF,04/10/2017,PAY01000035,RPMU,Royal Pavilion and Museums,2800,Revenue,Brighton Youth Film Festival CIC
Brighton & Hove City Council,http://statistics.data.gov.uk/id/local-authority/00ML,Children`s & Education Serv,BVAEDU,Ed Ed Other Other,ENF,Third Party Payments,F,Other Establishments,FH,04/10/2017,PAY01000037,VSCH,Virtual School,495,Revenue,Stagecoach Performing Arts Hove
Brighton & Hove City Council,http://statistics.data.gov.uk/id/local-authority/00ML,Children`s & Education Serv,BVAEDU,Management Services (DEC),MGT,Supplies and Services,E,Services,EF,04/10/2017,PAY01000044,SOCK,Social Work,229.5,Revenue,Children`s Medico-Legal Services Ltd
Brighton & Hove City Council,http://statistics.data.gov.uk/id/local-authority/00ML,Housing General Fund,BVAHOG,Homelessness,HML,Premises Related,C,Rents Payable,CC,04/10/2017,PAY01000045,TAAS,Temp Accom and Allocations,1250,Revenue,Payment to Individual
Brighton & Hove City Council,http://statistics.data.gov.uk/id/local-authority/00ML,Housing Revenue Account,BVAHOU,Hsing Management - HRA,HGM,Premises Related,C,Repair Maint n Alterations,CA,04/10/2017,PAY01000046,HTEN,Tenancy Services,550,Revenue,Ebsford Environmental Ltd
Brighton & Hove City Council,http://statistics.data.gov.uk/id/local-authority/00ML,Central Support and Overheads,BVACEN,Support Services (SSC),PPT,Indirect Employees,B,Advertising,BA,04/10/2017,PAY01000049,ICTA,ICT,2322.51,Revenue,Havas People Limited
Brighton & Hove City Council,http://statistics.data.gov.uk/id/local-authority/00ML,Highways and Transportation,BVAHRT,Highways and Roads - Mntnce,HRM,Premises Related,C,Repair Maint n Alterations,CA,04/10/2017,PAY01000049,HIGH,Traffic Management,66.05,Revenue,Havas People Limited
Brighton & Hove City Council,http://statistics.data.gov.uk/id/local-authority/00ML,Highways and Transportation,BVAHRT,Parking Services,PRK,Premises Related,C,Repair Maint n Alterations,CA,04/10/2017,PAY01000049,PARK,Parking Services,380.74,Revenue,Havas People Limited
Brighton & Hove City Council,http://statistics.data.gov.uk/id/local-authority/00ML,Highways and Transportation,BVAHRT,Parking Services,PRK,Supplies and Services,E,Equip't Furniture n Materials,EA,04/10/2017,PAY01000049,PARK,Parking Services,190.37,Revenue,Havas People Limited
Brighton & Hove City Council,http://statistics.data.gov.uk/id/local-authority/00ML,Planning and Development,BVAPLA,Planning Policy,PLP,Supplies and Services,E,Services,EF,04/10/2017,PAY01000049,PPMP,Planning Policy Major Projects,1364.54,Revenue,Havas People Limited
Brighton & Hove City Council,http://statistics.data.gov.uk/id/local-authority/00ML,Children`s & Education Serv,BVAEDU,Management Services (DEC),MGT,Supplies and Services,E,Services,EF,04/10/2017,PAY01000050,SOCK,Social Work,900,Revenue,Payment to Individual
Brighton & Hove City Council,http://statistics.data.gov.uk/id/local-authority/00ML,Adult Social Care,BVASOC,ASC Learning Disabilities,ALD,Supplies and Services,E,Catering,EB,04/10/2017,PAY01000051,RESP,Adults Respite Services,83.98,Revenue,Premier Fruits Tastables Ltd
Brighton & Hove City Council,http://statistics.data.gov.uk/id/local-authority/00ML,Adult Social Care,BVASOC,ASC Memory Cognition Support,MEM,Supplies and Services,E,Catering,EB,04/10/2017,PAY01000051,RCOP,Resource Centres Older People,192.68,Revenue,Premier Fruits Tastables Ltd
Brighton & Hove City Council,http://statistics.data.gov.uk/id/local-authority/00ML,Housing General Fund,BVAHOG,Homelessness,HML,Supplies and Services,E,Catering,EB,04/10/2017,PAY01000051,ASSA,Hostel Accommodation,28.9,Revenue,Premier Fruits Tastables Ltd
Brighton & Hove City Council,http://statistics.data.gov.uk/id/local-authority/00ML,Central Support and Overheads,BVACEN,Support Services (SSC),PPT,Supplies and Services,E,Catering,EB,04/10/2017,PAY01000053,DEMO,Democratic Services,151.09,Revenue,Sebastian`s Coffee Ltd
Brighton & Hove City Council,http://statistics.data.gov.uk/id/local-authority/00ML,Highways and Transportation,BVAHRT,Management Services (DEC),MGT,Transport Related,D,Public Transport,DD,04/10/2017,PAY01000053,HOTR,Head of City Transport,16.25,Revenue,Sebastian`s Coffee Ltd
Brighton & Hove City Council,http://statistics.data.gov.uk/id/local-authority/00ML,Planning and Development,BVAPLA,Planning Policy,PLP,Supplies and Services,E,Miscellaneous Expenses,EM,04/10/2017,PAY01000053,DEVP,Development Planning,83,Revenue,Sebastian`s Coffee Ltd
Brighton & Hove City Council,http://statistics.data.gov.uk/id/local-authority/00ML,Cultural and Related Serv,BVACUL,Culture and Heritage,CHG,Supplies and Services,E,Services,EF,04/10/2017,PAY01000057,RPMU,Royal Pavilion and Museums,1800,Revenue,Payment to Individual
Brighton & Hove City Council,http://statistics.data.gov.uk/id/local-authority/00ML,Housing General Fund,BVAHOG,Homelessness,HML,Premises Related,C,Rents Payable,CC,04/10/2017,PAY01000059,TAAS,Temp Accom and Allocations,850,Revenue,Payment to Individual
Brighton & Hove City Council,http://statistics.data.gov.uk/id/local-authority/00ML,Housing General Fund,BVAHOG,Homelessness,HML,Premises Related,C,Rents Payable,CC,04/10/2017,PAY01000061,TAAS,Temp Accom and Allocations,975,Revenue,Payment to Individual
Brighton & Hove City Council,http://statistics.data.gov.uk/id/local-authority/00ML,Central Support and Overheads,BVACEN,Support Services (SSC),PPT,Premises Related,C,Water Services,CE,04/10/2017,PAY01000062,PROP,Property and Design,10453.3,Revenue,Scottish Water Business Stream Limited
Brighton & Hove City Council,http://statistics.data.gov.uk/id/local-authority/00ML,Children`s & Education Serv,BVAEDU,Ed Primary Schools,EHH,Premises Related,C,Water Services,CE,04/10/2017,PAY01000062,SCHL,Schools,4245.62,Revenue,Scottish Water Business Stream Limited
Brighton & Hove City Council,http://statistics.data.gov.uk/id/local-authority/00ML,Children`s & Education Serv,BVAEDU,Ed Secondary Ed,EJE,Premises Related,C,Water Services,CE,04/10/2017,PAY01000062,SCHL,Schools,282.76,Revenue,Scottish Water Business Stream Limited
Brighton & Hove City Council,http://statistics.data.gov.uk/id/local-authority/00ML,Children`s & Education Serv,BVAEDU,Ed Secondary Schools,EJJ,Premises Related,C,Water Services,CE,04/10/2017,PAY01000062,SCHL,Schools,3235.07,Revenue,Scottish Water Business Stream Limited
Brighton & Hove City Council,http://statistics.data.gov.uk/id/local-authority/00ML,Children`s & Education Serv,BVAEDU,Ed Special Ed,EKE,Premises Related,C,Water Services,CE,04/10/2017,PAY01000062,PSEN,Pre School SEN,143.1,Revenue,Scottish Water Business Stream Limited
Brighton & Hove City Council,http://statistics.data.gov.uk/id/local-authority/00ML,Children`s & Education Serv,BVAEDU,Ed Special Schools,EKK,Premises Related,C,Water Services,CE,04/10/2017,PAY01000062,SCHL,Schools,1257.35,Revenue,Scottish Water Business Stream Limited
Brighton & Hove City Council,http://statistics.data.gov.uk/id/local-authority/00ML,Cultural and Related Serv,BVACUL,Culture and Heritage,CHG,Premises Related,C,Water Services,CE,04/10/2017,PAY01000062,RPMU,Royal Pavilion and Museums,19563.48,Revenue,Scottish Water Business Stream Limited
Brighton & Hove City Council,http://statistics.data.gov.uk/id/local-authority/00ML,Cultural and Related Serv,BVACUL,Open Spaces,PEN,Premises Related,C,Water Services,CE,04/10/2017,PAY01000062,CIPK,City Parks,18.94,Revenue,Scottish Water Business Stream Limited
Brighton & Hove City Council,http://statistics.data.gov.uk/id/local-authority/00ML,Environment & Regulatory Serv,BVAERS,Environmental Health,EVH,Premises Related,C,Water Services,CE,04/10/2017,PAY01000062,CICL,City Clean,5965.06,Revenue,Scottish Water Business Stream Limited
Brighton & Hove City Council,http://statistics.data.gov.uk/id/local-authority/00ML,Environment & Regulatory Serv,BVAERS,Management Services (DEC),MGT,Premises Related,C,Water Services,CE,04/10/2017,PAY01000062,CICL,City Clean,4801.31,Revenue,Scottish Water Business Stream Limited
Brighton & Hove City Council,http://statistics.data.gov.uk/id/local-authority/00ML,Highways and Transportation,BVAHRT,Parking Services,PRK,Premises Related,C,Water Services,CE,04/10/2017,PAY01000062,PARK,Parking Services,191.2,Revenue,Scottish Water Business Stream Limited
Brighton & Hove City Council,http://statistics.data.gov.uk/id/local-authority/00ML,Housing Revenue Account,BVAHOU,Hsing Management - HRA,HGM,Premises Related,C,Water Services,CE,04/10/2017,PAY01000062,HIII,Income Involvement Improvement,289.83,Revenue,Scottish Water Business Stream Limited
Brighton & Hove City Council,http://statistics.data.gov.uk/id/local-authority/00ML,Housing Revenue Account,BVAHOU,Hsing Management - HRA,HGM,Premises Related,C,Water Services,CE,04/10/2017,PAY01000062,HTEN,Tenancy Services,936.99,Revenue,Scottish Water Business Stream Limited
Brighton & Hove City Council,http://statistics.data.gov.uk/id/local-authority/00ML,Non I&E,BVANON,CAP Education Services,4ED,New Construction n Conversion,PB,New Construction n Conversion,PBL5,04/10/2017,PAY01000064,OEDS,Other Education Support,14460.94,Capital,Invictus Roofing Ltd
Brighton & Hove City Council,http://statistics.data.gov.uk/id/local-authority/00ML,Adult Social Care,BVASOC,ASC Memory Cognition Support,MEM,Third Party Payments,F,Other Establishments,FH,04/10/2017,PAY01000066,COGN,Memory Cognition Support,3192.92,Revenue,Q Care Ltd
Brighton & Hove City Council,http://statistics.data.gov.uk/id/local-authority/00ML,Children`s & Education Serv,BVAEDU,Child Srvcs - Fostering,FLF,Supplies and Services,E,Services,EF,04/10/2017,PAY01000069,CHIC,Fostering and Adoption,842,Revenue,CAB Social Care
Brighton & Hove City Council,http://statistics.data.gov.uk/id/local-authority/00ML,Children`s & Education Serv,BVAEDU,Ed Ed Other Other,ENF,Third Party Payments,F,Other Establishments,FH,04/10/2017,PAY01000071,VSCH,Virtual School,850.42,Revenue,Ferring CE Primary School
Brighton & Hove City Council,http://statistics.data.gov.uk/id/local-authority/00ML,Children`s & Education Serv,BVAEDU,Ed Ed Other Other,ENF,Third Party Payments,F,Other Establishments,FH,04/10/2017,PAY01000081,VSCH,Virtual School,1350,Revenue,Octopus Family Contact Centre
Brighton & Hove City Council,http://statistics.data.gov.uk/id/local-authority/00ML,Cultural and Related Serv,BVACUL,Culture and Heritage,CHG,Supplies and Services,E,Miscellaneous Expenses,EM,04/10/2017,PAY01000082,VENU,Venues,340,Revenue,Town and City Outdoor Ltd
Brighton & Hove City Council,http://statistics.data.gov.uk/id/local-authority/00ML,Children`s & Education Serv,BVAEDU,Child Srvcs - Other Fam Supp,FFX,Transfer Payments,G,Other Transfer Payments,GD,04/10/2017,PAY01000090,FAMP,Families\Prevention,265.39,Revenue,Payment to Individual
Brighton & Hove City Council,http://statistics.data.gov.uk/id/local-authority/00ML,Housing General Fund,BVAHOG,Homelessness,HML,Premises Related,C,Rents Payable,CC,04/10/2017,PAY01000091,TAAS,Temp Accom and Allocations,960,Revenue,Payment to Individual
Brighton & Hove City Council,http://statistics.data.gov.uk/id/local-authority/00ML,Housing Revenue Account,BVAHOU,Hsing Management - HRA,HGM,Supplies and Services,E,Services,EF,04/10/2017,PAY01000092,HTEN,Tenancy Services,280,Revenue,Payment to Individual
Brighton & Hove City Council,http://statistics.data.gov.uk/id/local-authority/00ML,Central Support and Overheads,BVACEN,Support Services (SSC),PPT,Indirect Employees,B,Training,BM,04/10/2017,PAY01000096,PERR,Performance & Improvement,900,Revenue,Silicon Beach Training Ltd
Brighton & Hove City Council,http://statistics.data.gov.uk/id/local-authority/00ML,Non I&E,BVANON,CAP Sport and Recreation,4RC,New Construction n Conversion,PB,New Construction n Conversion,PBL5,04/10/2017,PAY01000105,SPLE,Sport and Leisure,3500,Capital,First Fix Drylining Ltd
Brighton & Hove City Council,http://statistics.data.gov.uk/id/local-authority/00ML,Central Support and Overheads,BVACEN,Support Services (SSC),PPT,Premises Related,C,Repair Maint n Alterations,CA,04/10/2017,PAY01000106,PROP,Property and Design,300,Revenue,Fowl Electrical Services
Brighton & Hove City Council,http://statistics.data.gov.uk/id/local-authority/00ML,Housing General Fund,BVAHOG,Homelessness,HML,Premises Related,C,Rents Payable,CC,04/10/2017,PAY01000107,TAAS,Temp Accom and Allocations,900,Revenue,Payment to Individual
Brighton & Hove City Council,http://statistics.data.gov.uk/id/local-authority/00ML,Adult Social Care,BVASOC,Support to Carer,CAR,Third Party Payments,F,Other Establishments,FH,04/10/2017,PAY01000111,CONT,Contracts,300,Revenue,Payment to Individual
Brighton & Hove City Council,http://statistics.data.gov.uk/id/local-authority/00ML,Cultural and Related Serv,BVACUL,Management Services (DEC),MGT,Supplies and Services,E,Services,EF,04/10/2017,PAY01000113,ARTS,Arts,465.7,Revenue,Practical Participation Ltd
Brighton & Hove City Council,http://statistics.data.gov.uk/id/local-authority/00ML,Children`s & Education Serv,BVAEDU,Child Srvcs Direct Pymts,FFD,Third Party Payments,F,Other Establishments,FH,04/10/2017,PAY01000114,DISS,Childrens Disability Services,506.4,Revenue,Payment to Individual
Brighton & Hove City Council,http://statistics.data.gov.uk/id/local-authority/00ML,Children`s & Education Serv,BVAEDU,Child Srvcs Direct Pymts,FFD,Third Party Payments,F,Other Establishments,FH,04/10/2017,PAY01000115,DISS,Childrens Disability Services,316.4,Revenue,Payment to Individual
Brighton & Hove City Council,http://statistics.data.gov.uk/id/local-authority/00ML,Children`s & Education Serv,BVAEDU,Child Srvcs Direct Pymts,FFD,Third Party Payments,F,Other Establishments,FH,04/10/2017,PAY01000116,DISS,Childrens Disability Services,378.48,Revenue,Payment to Individual
Brighton & Hove City Council,http://statistics.data.gov.uk/id/local-authority/00ML,Adult Social Care,BVASOC,ASC Memory Cognition Support,MEM,Customer n Client Receipts,M,Fees n Charges,MB,04/10/2017,PAY01000117,COGN,Memory Cognition Support,-652.8,Revenue,Dorley House Residential Care Home
Brighton & Hove City Council,http://statistics.data.gov.uk/id/local-authority/00ML,Adult Social Care,BVASOC,ASC Memory Cognition Support,MEM,Third Party Payments,F,Other Establishments,FH,04/10/2017,PAY01000117,COGN,Memory Cognition Support,11873.6,Revenue,Dorley House Residential Care Home
Brighton & Hove City Council,http://statistics.data.gov.uk/id/local-authority/00ML,Children`s & Education Serv,BVAEDU,Child Srvcs - Other Fam Supp,FFX,Transfer Payments,G,Other Transfer Payments,GD,04/10/2017,PAY01000119,FAMP,Families\Prevention,335,Revenue,Bang Tidy Property Management Services Ltd
Brighton & Hove City Council,http://statistics.data.gov.uk/id/local-authority/00ML,Children`s & Education Serv,BVAEDU,Child Srvcs - Other Fam Supp,FFX,Transfer Payments,G,Other Transfer Payments,GD,04/10/2017,PAY01000169,FAMP,Families\Prevention,300,Revenue,Payment to Individual
Brighton & Hove City Council,http://statistics.data.gov.uk/id/local-authority/00ML,Housing General Fund,BVAHOG,Homelessness,HML,Third Party Payments,F,Other Establishments,FH,04/10/2017,PAY01000179,TAAS,Temp Accom and Allocations,1000,Revenue,Payment to Individual
Brighton & Hove City Council,http://statistics.data.gov.uk/id/local-authority/00ML,Central Support and Overheads,BVACEN,Support Services (SSC),PPT,Supplies and Services,E,Miscellaneous Expenses,EM,04/10/2017,PAY01000180,BIPR,Bulk Insurance Premia,18250,Revenue,Joseph Fraiser Solicitors
Brighton & Hove City Council,http://statistics.data.gov.uk/id/local-authority/00ML,Housing General Fund,BVAHOG,Private Sector Hsing Renewal,PHR,Customer n Client Receipts,M,Fees n Charges,MB,04/10/2017,PAY01000181,PSHG,Private Sector Housing,792,Revenue,Payment to Individual
Brighton & Hove City Council,http://statistics.data.gov.uk/id/local-authority/00ML,Children`s & Education Serv,BVAEDU,Child Srvcs - Fostering,FLF,Third Party Payments,F,Other Establishments,FH,04/10/2017,PAY01000184,CHIC,Fostering and Adoption,300,Revenue,Payment to Individual
Brighton & Hove City Council,http://statistics.data.gov.uk/id/local-authority/00ML,Housing General Fund,BVAHOG,Homelessness,HML,Third Party Payments,F,Other Establishments,FH,04/10/2017,PAY01000186,TAAS,Temp Accom and Allocations,1100,Revenue,Payment to Individual
Brighton & Hove City Council,http://statistics.data.gov.uk/id/local-authority/00ML,Housing General Fund,BVAHOG,Homelessness,HML,Third Party Payments,F,Other Establishments,FH,04/10/2017,PAY01000187,TAAS,Temp Accom and Allocations,450,Revenue,Payment to Individual
Brighton & Hove City Council,http://statistics.data.gov.uk/id/local-authority/00ML,Housing General Fund,BVAHOG,Homelessness,HML,Third Party Payments,F,Other Establishments,FH,04/10/2017,PAY01000191,TAAS,Temp Accom and Allocations,1300,Revenue,Payment to Individual
Brighton & Hove City Council,http://statistics.data.gov.uk/id/local-authority/00ML,Children`s & Education Serv,BVAEDU,Child Srvcs - Fostering,FLF,Third Party Payments,F,Other Establishments,FH,05/10/2017,PAY515772,CHIC,Fostering and Adoption,602,Revenue,Payment to Individual
Brighton & Hove City Council,http://statistics.data.gov.uk/id/local-authority/00ML,Adult Social Care,BVASOC,Social Care Activities,ACM,Supplies and Services,E,Miscellaneous Expenses,EM,05/10/2017,PAY515794,ASIT,Assessment and SIT,400,Revenue,HM Courts & Tribunals Service
Brighton & Hove City Council,http://statistics.data.gov.uk/id/local-authority/00ML,Environment & Regulatory Serv,BVAERS,Cem Crem and Mortuary Services,CCM,Supplies and Services,E,Services,EF,06/10/2017,PAY01000271,BERE,Bereavement,1877.01,Revenue,Dignity Funerals Ltd
Brighton & Hove City Council,http://statistics.data.gov.uk/id/local-authority/00ML,Housing Revenue Account,BVAHOU,Hsing Management - HRA,HGM,Supplies and Services,E,Miscellaneous Expenses,EM,06/10/2017,PAY01000272,HTEN,Tenancy Services,414.74,Revenue,Carpet Right Plc
Brighton & Hove City Council,http://statistics.data.gov.uk/id/local-authority/00ML,Children`s & Education Serv,BVAEDU,Child Srvcs Leaving Care,FAL,Transfer Payments,G,Other Transfer Payments,GD,06/10/2017,PAY01000273,CARL,Care Leavers,600,Revenue,Greenways Guest House
Brighton & Hove City Council,http://statistics.data.gov.uk/id/local-authority/00ML,Cultural and Related Serv,BVACUL,Tourism,TRM,Customer n Client Receipts,M,Fees n Charges,MB,06/10/2017,PAY01000277,TOMA,Tourism and Marketing,359.25,Revenue,Nichotel Ltd t/a Ambassador Hotel
Brighton & Hove City Council,http://statistics.data.gov.uk/id/local-authority/00ML,Central Services to the Public,BVACEN,Elections,ELE,Direct Employees,A,Salaries,AA,06/10/2017,PAY01000278,ELEC,Elections,2702.93,Revenue,Assoc Of Electoral Administrators Ltd
Brighton & Hove City Council,http://statistics.data.gov.uk/id/local-authority/00ML,Housing General Fund,BVAHOG,Homelessness,HML,Premises Related,C,Rents Payable,CC,06/10/2017,PAY01000279,TAAS,Temp Accom and Allocations,1150,Revenue,Payment to Individual
Brighton & Hove City Council,http://statistics.data.gov.uk/id/local-authority/00ML,Children`s & Education Serv,BVAEDU,Child Srvcs - Fostering,FLF,Third Party Payments,F,Other Establishments,FH,06/10/2017,PAY01000282,CHIC,Fostering and Adoption,501,Revenue,Payment to Individual
Brighton & Hove City Council,http://statistics.data.gov.uk/id/local-authority/00ML,Children`s & Education Serv,BVAEDU,Child Srvcs Adoption,FAA,Third Party Payments,F,Other Establishments,FH,06/10/2017,PAY01000283,CHIC,Fostering and Adoption,126.3,Revenue,Payment to Individual
Brighton & Hove City Council,http://statistics.data.gov.uk/id/local-authority/00ML,Children`s & Education Serv,BVAEDU,Child Srvcs - Fostering,FLF,Third Party Payments,F,Other Establishments,FH,06/10/2017,PAY01000283,CHIC,Fostering and Adoption,768,Revenue,Payment to Individual
Brighton & Hove City Council,http://statistics.data.gov.uk/id/local-authority/00ML,Children`s & Education Serv,BVAEDU,Child Srvcs - Fostering,FLF,Third Party Payments,F,Other Establishments,FH,06/10/2017,PAY01000284,CHIC,Fostering and Adoption,768,Revenue,Payment to Individual
Brighton & Hove City Council,http://statistics.data.gov.uk/id/local-authority/00ML,Children`s & Education Serv,BVAEDU,Child Srvcs - Fostering,FLF,Third Party Payments,F,Other Establishments,FH,06/10/2017,PAY01000286,CHIC,Fostering and Adoption,1228,Revenue,Payment to Individual
Brighton & Hove City Council,http://statistics.data.gov.uk/id/local-authority/00ML,Children`s & Education Serv,BVAEDU,Child Srvcs - Fostering,FLF,Third Party Payments,F,Other Establishments,FH,06/10/2017,PAY01000287,CHIC,Fostering and Adoption,414,Revenue,Payment to Individual
Brighton & Hove City Council,http://statistics.data.gov.uk/id/local-authority/00ML,Children`s & Education Serv,BVAEDU,Ed EY PVI,ENP,Supplies and Services,E,Grants n Subscriptions,EK,06/10/2017,PAY01000290,EYRS,Early Years,2821.5,Revenue,Young Sussex (Dyke Road)
Brighton & Hove City Council,http://statistics.data.gov.uk/id/local-authority/00ML,Central Support and Overheads,BVACEN,Support Services (SSC),PPT,Premises Related,C,Repair Maint n Alterations,CA,06/10/2017,PAY01000292,PROP,Property and Design,11189,Revenue,N P Dechaine Ltd
Brighton & Hove City Council,http://statistics.data.gov.uk/id/local-authority/00ML,Highways and Transportation,BVAHRT,Parking Services,PRK,Third Party Payments,F,Private Contractors,FJ,06/10/2017,PAY01000293,PARK,Parking Services,8710,Revenue,NSL Ltd
Brighton & Hove City Council,http://statistics.data.gov.uk/id/local-authority/00ML,Environment & Regulatory Serv,BVAERS,Cem Crem and Mortuary Services,CCM,Supplies and Services,E,Catering,EB,06/10/2017,PAY01000295,BERE,Bereavement,219,Revenue,Siemens Financial Services Ltd
Brighton & Hove City Council,http://statistics.data.gov.uk/id/local-authority/00ML,Housing General Fund,BVAHOG,Homelessness,HML,Premises Related,C,Rents Payable,CC,06/10/2017,PAY01000296,TAAS,Temp Accom and Allocations,925,Revenue,Payment to Individual
Brighton & Hove City Council,http://statistics.data.gov.uk/id/local-authority/00ML,Central Support and Overheads,BVACEN,Support Services (SSC),PPT,Supplies and Services,E,Services,EF,06/10/2017,PAY01000299,PROP,Property and Design,6795,Revenue,M J Zara Associates
Brighton & Hove City Council,http://statistics.data.gov.uk/id/local-authority/00ML,Non-BHC Organisations,BVANON,Trusts,TRT,Supplies and Services,E,Miscellaneous Expenses,EM,06/10/2017,PAY01000302,NBHC,Non Council,140,Revenue,Parkview Care Home Ltd
Brighton & Hove City Council,http://statistics.data.gov.uk/id/local-authority/00ML,Central Support and Overheads,BVACEN,Support Services (SSC),PPT,Premises Related,C,Repair Maint n Alterations,CA,06/10/2017,PAY01000303,PROP,Property and Design,910,Revenue,Baqus Group Plc t/a Baqus Boxall Sayer 
Brighton & Hove City Council,http://statistics.data.gov.uk/id/local-authority/00ML,Central Support and Overheads,BVACEN,Support Services (SSC),PPT,Supplies and Services,E,Communications n Computing,EH,06/10/2017,PAY01000306,ICTA,ICT,2635.31,Revenue,Phoenix Software Ltd
Brighton & Hove City Council,http://statistics.data.gov.uk/id/local-authority/00ML,Environment & Regulatory Serv,BVAERS,Management Services (DEC),MGT,Supplies and Services,E,Communications n Computing,EH,06/10/2017,PAY01000306,CICL,City Clean,293.48,Revenue,Phoenix Software Ltd
Brighton & Hove City Council,http://statistics.data.gov.uk/id/local-authority/00ML,Housing General Fund,BVAHOG,Homelessness,HML,Premises Related,C,Rents Payable,CC,06/10/2017,PAY01000309,TAAS,Temp Accom and Allocations,950,Revenue,Payment to Individual
Brighton & Hove City Council,http://statistics.data.gov.uk/id/local-authority/00ML,Housing General Fund,BVAHOG,Homelessness,HML,Premises Related,C,Rents Payable,CC,06/10/2017,PAY01000310,TAAS,Temp Accom and Allocations,950,Revenue,Payment to Individual
Brighton & Hove City Council,http://statistics.data.gov.uk/id/local-authority/00ML,Housing General Fund,BVAHOG,Homelessness,HML,Premises Related,C,Rents Payable,CC,06/10/2017,PAY01000311,TAAS,Temp Accom and Allocations,1005,Revenue,Tanat-Jones & Company
Brighton & Hove City Council,http://statistics.data.gov.uk/id/local-authority/00ML,Environment & Regulatory Serv,BVAERS,Management Services (DEC),MGT,Transport Related,D,Direct Transport Costs,DA,06/10/2017,PAY01000312,CICL,City Clean,1427.97,Revenue,Rossetts Commercials
Brighton & Hove City Council,http://statistics.data.gov.uk/id/local-authority/00ML,Central Support and Overheads,BVACEN,Holding Accounts,PPH,Supplies and Services,E,Communications n Computing,EH,06/10/2017,PAY01000313,PROP,Property and Design,5755.62,Revenue,Royal Mail Group Ltd
Brighton & Hove City Council,http://statistics.data.gov.uk/id/local-authority/00ML,Children`s & Education Serv,BVAEDU,Ed Srvcs YP Youth Srvcs,ENY,Supplies and Services,E,Communications n Computing,EH,06/10/2017,PAY01000313,SKEM,Skills and Employment,3.02,Revenue,Royal Mail Group Ltd
Brighton & Hove City Council,http://statistics.data.gov.uk/id/local-authority/00ML,Environment & Regulatory Serv,BVAERS,Cem Crem and Mortuary Services,CCM,Supplies and Services,E,Communications n Computing,EH,06/10/2017,PAY01000313,BERE,Bereavement,78.52,Revenue,Royal Mail Group Ltd
Brighton & Hove City Council,http://statistics.data.gov.uk/id/local-authority/00ML,Environment & Regulatory Serv,BVAERS,Environmental Health,EVH,Supplies and Services,E,Communications n Computing,EH,06/10/2017,PAY01000313,PUPO,Public Protection,9.75,Revenue,Royal Mail Group Ltd
Brighton & Hove City Council,http://statistics.data.gov.uk/id/local-authority/00ML,Housing Revenue Account,BVAHOU,Hsing Management - HRA,HGM,Supplies and Services,E,Communications n Computing,EH,06/10/2017,PAY01000313,HIII,Income Involvement Improvement,27.53,Revenue,Royal Mail Group Ltd
Brighton & Hove City Council,http://statistics.data.gov.uk/id/local-authority/00ML,Adult Social Care,BVASOC,Social Care Activities,ACM,Third Party Payments,F,Other Establishments,FH,06/10/2017,PAY01000314,ASIT,Assessment and SIT,909.7,Revenue,Sussex Interpreting Services
